{"text_format":"3","workbook":"xlsx","n_sheets":8,"sheets":["INSTRUCC","Ficha","MIR","SinMatriz","Avances","AvancesAnual","Base","Listas"],"not_rendered":{"images":23,"macros":1,"external_links":3,"defined_names":21,"comments":1},"read":"whole","date_system":"1900"}

{"sheet":"INSTRUCC","index":0,"n_rows":12,"n_cols":1,"rows_kept":12}
[]
["LEA ESTO ANTES DE INICIAR"]
[]
["A continuación en la hoja \"MIR\" registre los programas que deban tener matiz de Indicadores para resultados. Esta hoja esta dispuesta con la estructura de una matriz de indicadores de resultados básica, que deberá llenar con los datos de sus programas y sus indicadores. El formulario solo incluye un nivel de componente y dos de actividades por programa, pero es posible que necesite más, para ello agregue componentes o actividades con los botones de comando que están dispuestos en la parte superior derecha del área de trabajo. Este es solo un formulario que le ayudará a registrar correctamente sus programas uno a uno. Después de llenar un formulario asegúrese de revisarlo en su totalidad y luego guárdelo con el botón \"Guardar programa\"  eso enviará la información a la hoja llamada \"base\" donde adquiere propiedades de base de datos y no podrá modificarlo. Una vez guardado estará seguro ahí, continúe en la hoja MIR pulsando el botón de comando \"Agregar nuevo programa\" lo que limpiará el formulario dejándolo listo para registrar otro programa."]
["Hay guías contextuales que parecen al colocarse sobre el título de la columna. Si tiene dudas sobre cómo llenar el formulario por favor ingrese a la página de la ASEJ, (www.asej.gob.mx) y ahí ingrese a Material de Consulta/ Cursos de capacitación 2018/  Presupuesto Municipal 2019, ahí podrá descargar el manual que explica con detalle cómo llenar una matriz de indicadores para resultados."]
["Para los programas que no requieren MIR utilice la hoja \"Sin Matriz\", en ella únicamente se registra un programa por línea, llenando las columnas conforme lo indicado. En esta hoja no hay un proceso de guardado como en la hoja MIR simplemente se llenan las columnas y se guarda con el botón de \"guardar\" de Excel."]
["En este archivo se encuentra la pestaña “Avances” que es donde registrará la información de avances semestrales con lo que cumplirá con el informe de desempeño de la gestión.  Este es el medio para hacerlo y no existe otro método para ello."]
["Oprima el botón “1” de la derecha. Esto desplegará la información proporcionada en la integración del presupuesto y de la que deberá registrar los avances. Una vez que registre los avances, puede imprimir el formulario lleno, sea en papel o como archivo PDF, para su control interno."]
["No olvide oprimir el botón “3” que guarda su información. Al hacerlo se borrará toda la información del formulario y estará listo para registrar avances de los demás programas que haya registrado en la integración del  presupuesto anual. No se preocupe, su información ha sido correctamente guardada en la base de datos, pero no puede ser recuperada ni modificada,  por lo que se sugiere que la revise bien antes de guardarla. La información de los avances de los programas se da por entregada con la hoja “Base” en las condiciones, formato y características con las que posee al momento de entregar este archivo."]
["Si su archivo en la pestaña de “AVANCES” no despliega ningún programa para reportar avances, se debe a que registró sus programas en la Pestaña “SINMIR”, ahí mismo encontrará nuevas columnas en donde podrá registrar sus avances. Si no hay programas para reportar avances ni en la pestaña “SINMIR” ni en “AVANCES” es porque aún no ha registrado programas en el sistema de evaluación de desempeño. Deberá hacerlo en las pestañas “MIR” y “SINMIR” y después continuar con la pestaña “AVANCES” para registrar sus avances."]
["La programación de este sistema no permite el ingreso de caracteres como ', ´, \" o @, por favor no los utilice al llenar sus programas o avances. Por favor no intente desbloquear las celdas protegidas, ni alterar o modificar la programación o el diseño de este archivo."]
["Atte. Dirección de Auditoría de Desempeño."]

{"sheet":"Ficha","index":1,"n_rows":64,"n_cols":8,"rows_kept":64}
[]
[]
[]
[]
[{"$nulls":3},"Información para la evaluación del desempeño"]
[]
[{"$nulls":3},"Nombre del ente fiscalizable:"]
[{"$nulls":3},"Municipio de la Huerta, Jalisco"]
[]
[{"$nulls":3},"Registre por favor los programas que fueron capturados en la pestaña MIR",{"$nulls":3},"Registre por favor los programas que fueron capturados en la pestaña SinMatriz"]
[null,null,1,"Rastro municipal",null,null,1,"Mejora interna, sindicatura"]
[null,null,2,"Pertinencia de jovenes en la Educacion de calidad ",null,null,2,"Mantenimiento de Espacios Públicos Limpios"]
[null,null,3,"La Huerta a una Planeación Sustentable",null,null,3,"Tecnologias de la Información Funcionales"]
[null,null,4,"Manejo del Marco Juridico Municipal",null,null,4,"Programa del Organo de Control Interno"]
[null,null,5,"Programa de Participación Ciudadana",null,null,5,"Programa Anual de Recursos Humanos"]
[null,null,6,"Fortalecer la Cultura de Prevención en el Municipio",null,null,6,"Garantizar la Legalidad Municipal, Manteniendo una Adecuada Comunicación entre Gobierno y Sociedad"]
[null,null,7,"Manejo del Patrimonio municipal",null,null,7,"Garantizar el bienestar social, Manteniendo una Adecuada Comunicación entre Gobierno y Sociedad"]
[null,null,8,"Manejo de los ingresos catastrales de la Hacienda Municipal ",null,null,8,"Un cabildo con amplitud de crecimiento por un municipio mejor"]
[null,null,9,"Atención de Calidad al Ciudadano",null,null,9,"Programa Anual del Vivero Municipal"]
[null,null,10,"Programa anual de Dirección de Turismo ",null,null,10,"Información en Tiempo de las Actividades Gubernamentales"]
[null,null,11,"Programa Anual de Promoción Economica",null,null,11,"Eventos deportivos en el municipio, de futbol, voleibol, basquetbol, bicepaseos y competencias de box"]
[null,null,12,"Programa Anual de Desarrollo Rural",null,null,12,"Garantizar el acceso a la información pública"]
[null,null,13,"Coordinación y Aplicación Eficaz ",null,null,13,"Alumbrado Público"]
[null,null,14,"Integración Social Juvenil",null,null,14,"Amigables con el medio ambiente."]
[null,null,15,"Area de Zona Federal",null,null,15,"Derecho y acceso a la salud de todas las personas del municipio"]
[null,null,16,"Apoyo Social y Humano",null,null,16,"Información a la mano y cumpliendo con la normatividad"]
[null,null,17,"Manejo de los Ingresos de la Hacienda Municipal",null,null,17,"Rescatando las tradiciones del municipio"]
[null,null,18,"Aplicación del Reglamento  de Policia y Buen Gobierno ",null,null,18,"Infraestructura Vial de Calidad"]
[null,null,19,"Prevencion social de las violencias y la delincuencia",null,null,19,"Infraestructura Urbana de Calidad"]
[null,null,20,"Agenda de Goboierno",null,null,20,"Atención de fugas de aguas en las agencias y delegaciones municipales"]
[null,null,21,"Manejo de la Hacienda Municipal",null,null,21,"Un municipio con equidad de genero"]
[null,null,22,"Vigilancia permanente y resguardo de la Seguridad Publica",null,null,22,"Expedición de documentación oficial"]
[null,null,23,{"$nulls":3},23," Recolección de Residuos Solidos  y Organicos "]
[null,null,24,{"$nulls":3},24]
[null,null,25,{"$nulls":3},25]
[null,null,26,{"$nulls":3},26]
[null,null,27,{"$nulls":3},27]
[null,null,28,{"$nulls":3},28]
[null,null,29,{"$nulls":3},29]
[null,null,30,{"$nulls":3},30]
[null,null,31,{"$nulls":3},31]
[null,null,32,{"$nulls":3},32]
[null,null,33,{"$nulls":3},33]
[null,null,34,{"$nulls":3},34]
[null,null,35,{"$nulls":3},35]
[null,null,36,{"$nulls":3},36]
[null,null,37,{"$nulls":3},37]
[null,null,38,{"$nulls":3},38]
[null,null,39,{"$nulls":3},39]
[null,null,40,{"$nulls":3},40]
[null,null,41,{"$nulls":3},41]
[null,null,42,{"$nulls":3},42]
[null,null,43,{"$nulls":3},43]
[null,null,44,{"$nulls":3},44]
[null,null,45,{"$nulls":3},45]
[null,null,46,{"$nulls":3},46]
[null,null,47,{"$nulls":3},47]
[null,null,48,{"$nulls":3},48]
[null,null,49,{"$nulls":3},49]
[null,null,50,{"$nulls":3},50]
[]
[{"$nulls":3},"Número de programas con MIR (programas que fueron capturados en la pestaña MIR)",null,31,null,"Número de programas sin matriz (programas que fueron capturados en la pestaña SinMatriz)"]
[]
[{"$nulls":3},"TOTAL",null,{"$f":"F62+J62","v":31}]

{"sheet":"MIR","index":2,"n_rows":23,"n_cols":26,"rows_kept":23,"merged":[[2,2,2,3],[3,2,3,3],[4,2,4,3],[5,2,5,3],[6,2,6,3],[7,2,7,3],[8,2,8,3],[9,1,10,1],[9,2,9,3],[10,2,10,3],[11,1,12,1],[11,2,11,3],[11,11,11,20],[12,2,12,3],[12,11,12,20],[13,1,14,1],[13,2,13,3],[13,11,13,20],[14,2,14,3],[14,11,14,20],[16,4,16,16],[16,17,16,25]]}
[]
[{"$nulls":11},"  MATRIZ DE INDICADORES PARA RESULTADOS POR PROGRAMA "]
[null,null,"Nombre del ente fiscalizable",{"$nulls":7},"."]
[null,null,"Denominación del Programa",{"$nulls":7},"."]
[null,null,"Categoría programática",{"$nulls":7},"."]
[null,null,"Unidad Responsable/OPD",{"$nulls":7},"."]
[null,null,"Finalidad",{"$nulls":7},"."]
[null,null,"Función",{"$nulls":7},"."]
[null,null,"Sub-función",{"$nulls":7},"."]
[null,"Plan Nacional de Desarrollo","Alineación con objetivos superiores del PND",{"$nulls":7},"."]
[null,null,"Alineación con objetivos secundarios del PND",{"$nulls":7},"."]
[null,"Plan Estatal de Desarrollo","Alineación con objetivos superiores del PED",{"$nulls":7},".","Llene la sección de la izquierda primero con los datos solicitados. \nLlene la sección de abajo con los datos solicitados."]
[null,null,"Alineación con objetivos secundarios del PED",{"$nulls":7},".","Si es necesario agrege componentes y actividades con los botones de la derecha.\nUna vez que termine de escribir los datos del programa Pulse GUARDAR PROGRAMA con el botón del panel de la derecha. Despues de esto no es posible hacer cambios."]
[null,"Plan Municipal de Desarrollo","Alineación con objetivos superiores del PMD",{"$nulls":7},".","Si requiere imprimir la información de este progarma pulse IMPRIMIR en el botón del panel de la derecha. \nSolo es posible imprimir un programa a la vez, NO INTENTE AGREGAR OTRO PROGARAMA."]
[null,null,"Alineación con objetivos secundarios del PMD",{"$nulls":7},".","NO PUSE EL BOTON DE AGREGAR OTRO PROGRAMA ANTES DE GUARDAR O IMPRIMIR.\nUna vez que haya GUARDADO e IMPRESO pulse AGREGAR NUEVO PROGRAMA, los datos de la plantilla se borrarán, no se precupe los datos de su programa estan salvados"]
[]
[{"$nulls":4},"I N D I C A D O R E S",{"$nulls":12},"P R E S U P U E S T O"]
[{"$nulls":4},"Resumen Narrativo","Nombre del indicador","Definición","Dimensión","Tipo","Método de cálculo","Valor programado 1 (Numerador)","Valor programado 2 (Denominador)","Frecuencia de medición","Unidad de medida","Metas","Medios de verificación","Supuestos","Capítulo 1000","Capítulo 2000","Capítulo 3000","Capítulo 4000","Capítulo 5000","Capítulo 6000","Capítulo 7000","Capítulo 8000","Capítulo 9000"]
[null,null,"Fin"]
[null,null,"Propósito"]
[null,null,"Componente 1"]
[null,null,"Actividad 1.1"]
[null,null,"Actividad 1.2"]

{"sheet":"SinMatriz","index":3,"n_rows":40,"n_cols":52,"rows_kept":40,"merged":[[2,1,2,14],[27,0,28,0]]}
[]
[]
["Nombre ente fiscalizable","Municipio de la Huerta, Jalisco"]
[]
["No. ",null,"Denominación del programa","Objetivo","Nombre del indicador","Definición del indicador","Dimensión","Tipo de Indicador","Método de cálculo","Valor programado 1 (Numerador)","Valor programado 2 (Denominador)","Frecuencia de medición del indicador","Unidad de medida del indicador","Meta","Unidad responsable OPD","Alineación con objetivos superiores del PND","Alineación con objetivos secundarios del PND","Alineación con objetivos superiores del PED","Alineación con objetivos secundarios del PED","Alineación con objetivos superiores del PMD","Alineación con objetivos secundarios del PMD","Capítulo 1000","Capítulo 2000","Capítulo 3000","Capítulo 4000","Capítulo 5000","Capítulo 6000","Capítulo 7000","Capítulo 8000","Capítulo 9000","Avance 1er Semestre del Valor programado 1 (Numerador)","Avance 1er Semestre del Valor programado 2 (Denominador)","Avance Anual del Valor programado 1 (Numerador)","Avance Anual del Valor programado 2 (Denominador)","Avance 1er Semestre del Capítulo 1000","Avance 1er Semestre del Capítulo 2000","Avance 1er Semestre del Capítulo 3000","Avance 1er Semestre del Capítulo 4000","Avance 1er Semestre del Capítulo 5000","Avance 1er Semestre del Capítulo 6000","Avance 1er Semestre del Capítulo 7000","Avance 1er Semestre del Capítulo 8000","Avance 1er Semestre del Capítulo 9000","Avance Anual del Capítulo 1000","Avance Anual del Capítulo 2000","Avance Anual del Capítulo 3000","Avance Anual del Capítulo 4000","Avance Anual del Capítulo 5000","Avance Anual del Capítulo 6000","Avance Anual del Capítulo 7000","Avance Anual del Capítulo 8000","Avance Anual del Capítulo 9000"]
[1,{"$f":"$B$3","v":"Municipio de la Huerta, Jalisco"},"MEJORA INTERNA, SINDICATURA","Promover un programa de mejora interna, acompañado de una flexibilización y agilización de los procedimientos operativos y administrativos. ","ATENCION A CIUDADANOS",null,"Calidad","Estrategico",{"$nulls":3},"Anual","%",90,"Sindicatura","México_Incluyente","2.1. Garantizar el ejercicio efectivo de los derechos sociales para toda la población","O13_Proteger_los_derechos_y_ampliar_las_oportunidades_de_desarrollo_de_los_grupos_prioritarios",{"$nulls":3},573334,49000,35500,null,22000,{"$nulls":8},207229.5,1740,13084.88,null,8490]
[2,{"$f":"$B$3","v":"Municipio de la Huerta, Jalisco"},"MANTENIMIENTO DE ESPACIOS PUBLICOS LIMPIOS","Mejorar  y mantener limpios los Espacios Públicos ","Ascendente","Los ciudadanos de el municipio esten conformes con el servicio del mantenimiento de  parques jardines y los Espacios públicos","Eficacia","Gestión","Porcentaje ",100,150,"Bimestral","Porcentaje",90,"Mantenimiento de Espacios Públicos","Promover el bienestar de las personas al facilitarles la posibilidad de recrearse, al contar con la disponibilidad de tiempo libre, el acceso a espacios públicos seguros y de calidad, así como la oportunidad de disfrutar diversas alternativas de recreación.","Garantizar la disponibilidad, seguridad y conservación de los espacios públicos y de recreación.","Mantener los espacios públicos y de recreación en óptimas condiciones para que sean atractivos para los ciudadanos.","Dotar a las personas de entornos urbanos y rurales con infraestructura moderna, dinámica, así como espacios públicos que enriquezcan la experiencia del lugar y convivencia en la vida cotidiana.","Mejorar las condiciones actuales de las áreas verdes de nuestro Municipio, impulsando ante todo la participación de la sociedad en las acciones de creación, restauración, forestación y reforestación; establece las recomendaciones necesarias para evitar algún daño en las personas por consecuencia de instalar alambres de púas, cercas que obstruyen el paso peatonal en las banquetas, parques, jardines y glorietas; contempla mecanismos de participación ciudadana para el mejoramiento de las áreas verdes.","Elaborar un padrón de todas las áreas verdes existentes, permitiendo que cualquier persona pueda tener acceso a él para efecto de que participen en su vigilancia y conservación.",1223015,1470311,718630,null,141000,{"$nulls":8},267448.5,107580.41,108479.12,null,12750]
[3,"Municipio de la Huerta, Jalisco","Tecnologias de la Información Funcionales","Mantener  en optimo funcionamiento los equipos de computo y perifericos, asi como la infraestructura de red para transmision de voz y datos.","equipos 100% funcionales","planear y gestionar los recursos informaticos del Gobierno Municiapal y sus dependencias, lineando con las necesidades y dentro del presupuesto.","Eficacia","Estratégico","Numero de equipos de computo funcionales en cada Area o Dependencia del Municipio.",null,null,"Anual","Porcentaje",90,"Informatica","Política Social","Construir un país con bienestar",null,null,"Generar un buen servicio para los contribuyentes.","Mejorar el servicio a los ciudananos del municipio.",185661,321000,144400,{"$nulls":10},67107,106354.24,67558.03,null,227932.51]
[4,"Municipio de la Huerta, Jalisco","Programa del Órgano de Control Interno","EVALUAR LOS INDICADORES DE DESEMPEÑO DE LOS DEPARTAMENTOS","EVALUACIONES DE INDICADORES","VALORACIÓN DE CONOCIMIENTOS, ACTITUD Y RENDIMIENTO DE UNA PERSONA O DE UN SERVICIO","EFICACIA","ESTRATEGICO","EVALUACIONES DE INDICADORE X 100 SOBRE EL NUMERO DE DEPARTAMENTOS DEL H. AYUNTAMIENTO DE LA HUERTA JALISCO",42,42,"ANUAL","PORCENTAJE",1,"ORGANO INTERNO DE CONTROL","POLÍTICA Y GOBIERNO","Erradicar la corrupción, el dispendio y la frivolidad","O25_Mejorar_la_efectividad_de_las_instituciones_públicas_y_gubernamentales","O25E1 Disminuir la incidencia de los actos de corrupción","Mejorar las capacidades de los servidores públicos.","Crear mecanismos de evaluación al desempeño de los servidores públicos",397697,26988,42000,null,8000,{"$nulls":8},143746.5,null,5548.9,null,840]
[5,"Municipio de la Huerta, Jalisco","Programa Anual de Recursos Humanos","ADMINISTRAR PLANTILLA DE PERSONAL","PLANTILLA DE PERSONAL ACTUALIZADA, CAMBIOS QUINCENALES,  DERECHOS Y OBLIGACIONES DEL PERSONAL","EXPEDIENTES COMPLETOS, CONTROL DE ALTAS Y BAJAS, CAMBIOS PARA PAGOS QINCENALES Y OTORGAMIENTO DE PERMISOS O LICENCIAS, PASES DE SALIDA, VACACIONES. REGISTRO DE ASISTENCIA, CAPACITACION SEGÚN SEA NECESARIO EN CADA AREA.","Eficacia","Estratégico","Numero de Expedientes laborales  por 100, sobre el numero de digitalizados y actualizados en el area de Recursos Humanos del H. Ayuntamiento de la Huerta Jalisco",{"$f":"+K10*100","v":46600},466,"ANUAL","Porcentaje",100,"RECURSOS HUMANOS","RECUPERAR EL ESTADO DE DERECHO","Los empleados\npúblicos deberán acatar y aplicar el conjunto de leyes\nvigentes en el país","Competencias y capacidades\ndel capital humano\n","Incrementar la cantidad y calidad de los empleos en Jalisco","Gobierno","Capacitar a los servidores publicos para mejorar su desempeño",14305086,35300,44200,null,15000,{"$nulls":8},6821851.8,4498.73,7000]
[6,"Municipio de la Huerta, Jalisco","Garantizar la Legalidad Municipal, Manteniendo una Adecuada Comunicación entre Gobierno y Sociedad","ATENDER DE MANERARESPONSABLE LOS ASUNOS DERIVADOS DE LA SECRETARIA GENERAL, LOS QUE ASIGNE EL PRESIDENTE MUNICIPAL, ASI COMO TAMBIEN LOS ACUERDOS Y ASUNTOS DEL H. AYUNTAMIENTO","QUE LOS SERVICIOS BRINDADOS SEA DE LA MEJOR CALIDAD","TRABAJAR DE MANERA CONJUNTA CON EL PRESIDENTE MUNICIPAL, Y EL H. AYUNTAMIENTO EN LA TOMA DE DECISIONES.  ATENDER DE MANERA RESPONSABLE LOS ASUNTOS Y ACCIONES DE ESTA SECRETARIA, LOS ACUERDOS DEL H. AYUNTAMIENTO, COLABORANDO CON OTRAS AREAS ADMINISTRATIVAS","CALIDAD","GESTION","(LA TOTALIDAD DE PERSONAS ATENDIDAS/LOS MESES TRANSCURRIDOS EN EL AÑO)*100",1500,12,"MENSIUAL","ASCENDENTE",100,"SECRETARIA GENERAL","DEMOCRACIA","NOS DOTAMOS DE UNA DEMOCRACIA PARTICIPATIVA PARA SOCIALIZAR EL PODER POLITICO E INVOLUCRAR A LA SOCIEDAD EN LAS GRANDES DECISIONES NACIONALES. TAL ES EL SENTIDO DE MECANISMOS COMO LA CONSULTA POPULAR O CIUDADANA, LA REVOCACION PERIODICA DE MANDATO Y LAS ASAMBLEAS COMUNITARIAS COMO INSTANCIAS EFECTIVAS DE PARTICIPACION.","GOBERNABILIDAD","LOS  PROCESOS Y LAS RELACIONES ENTRE GOBIERNO Y CIUDADANIA PARA QUE EL PODER Y LAS DECISIONES PUBLICAS SE UTILICEN PARA ATENDER Y ARTICULAR  INTERESES COMUNES","REDUCIR LA BUROCRACIA Y LA INEFICIENCIA DE LAS DEPENDENCIAS DEL GOBIERNO","IMPLEMETAR MEJORAS REGULATORIAS EN LOS TRAMITES Y SERVICIOS QUE BRINDAN LAS DIFERENTES DEPENDENCIAS DEL GOBIERNO",740361,84000,20000,null,45000,{"$nulls":8},271379.25]
[7,"Municipio de la Huerta, Jalisco","Garantizar el bienestar social, Manteniendo una Adecuada Comunicación entre Gobierno y Sociedad","ATENDER DE MANERARESPONSABLE LOS ASUNOS EN LAS AGENCIAS Y DELEGACIONES, QUE ASIGNE EL PRESIDENTE MUNICIPAL","QUE LOS SERVICIOS BRINDADOS SEA DE LA MEJOR CALIDAD","TRABAJAR DE MANERA CONJUNTA CON EL PRESIDENTE MUNICIPAL, Y EL H. AYUNTAMIENTO BRINDANDO ATENCION DE MANERA RESPONSABLE A LOS ASUNTOS Y ACCIONES QUE SE REQUIERAN EN LAS COMUNIDADES ","CALIDAD","GESTION","(LA TOTALIDAD DE PERSONAS ATENDIDAS/LOS MESES TRANSCURRIDOS EN EL AÑO)*100",2500,12,"MENSIUAL","ASCENDENTE",100,"Agencias y Delegaciones","DEMOCRACIA","NOS DOTAMOS DE UNA DEMOCRACIA PARTICIPATIVA PARA SOCIALIZAR EL PODER POLITICO E INVOLUCRAR A LA SOCIEDAD EN LAS GRANDES DECISIONES NACIONALES. TAL ES EL SENTIDO DE MECANISMOS COMO LA CONSULTA POPULAR O CIUDADANA, LA REVOCACION PERIODICA DE MANDATO Y LAS ASAMBLEAS COMUNITARIAS COMO INSTANCIAS EFECTIVAS DE PARTICIPACION.","GOBERNABILIDAD","LOS  PROCESOS Y LAS RELACIONES ENTRE GOBIERNO Y CIUDADANIA PARA QUE EL PODER Y LAS DECISIONES PUBLICAS SE UTILICEN PARA ATENDER Y ARTICULAR  INTERESES COMUNES","REDUCIR LA BUROCRACIA Y LA INEFICIENCIA DE LAS DEPENDENCIAS DEL GOBIERNO","IMPLEMETAR MEJORAS REGULATORIAS EN LOS TRAMITES Y SERVICIOS QUE BRINDAN LAS DIFERENTES DEPENDENCIAS DEL GOBIERNO",2076754,null,12000,{"$nulls":10},707843.4,null,4695.55]
[8,"Municipio de la Huerta, Jalisco","Un cabildo con amplitud de crecimiento por un municipio mejor","Mejorar el acceso a las seciones de cabildo","Porcentaje de seciones realizadas","Mide el numero de seciones realizadas en el año","Eficiencia","Estrategico","(Cantida de seciones realizadas / Cantidad de seciones anuales obligratorias)*100",24,12,"Trimestral","Porcentaje ",100,"Regidores","Mexico en paz","NOS DOTAMOS DE UNA DEMOCRACIA PARTICIPATIVA PARA SOCIALIZAR EL PODER POLITICO E INVOLUCRAR A LA SOCIEDAD EN LAS GRANDES DECISIONES NACIONALES. TAL ES EL SENTIDO DE MECANISMOS COMO LA CONSULTA POPULAR O CIUDADANA, LA REVOCACION PERIODICA DE MANDATO Y LAS ASAMBLEAS COMUNITARIAS COMO INSTANCIAS EFECTIVAS DE PARTICIPACION.","GOBERNABILIDAD","LOS  PROCESOS Y LAS RELACIONES ENTRE GOBIERNO Y CIUDADANIA PARA QUE EL PODER Y LAS DECISIONES PUBLICAS SE UTILICEN PARA ATENDER Y ARTICULAR  INTERESES COMUNES","REDUCIR LA BUROCRACIA Y LA INEFICIENCIA DE LAS DEPENDENCIAS DEL GOBIERNO","IMPLEMETAR MEJORAS REGULATORIAS EN LOS TRAMITES Y SERVICIOS QUE BRINDAN LAS DIFERENTES DEPENDENCIAS DEL GOBIERNO",3159977,{"$nulls":12},1142154]
[9,"Municipio de la Huerta, Jalisco","PROGRAMA ANUAL DE VIVERO MUNICIPAL.","REPRODUCIR PLANTA PARA ABASTECER AL MUNICIPIO Y SUS LOCALIDADES.","PRODUCIR Y ENTREGAR PLANTA PARA REFORESTACION DEL MUNICIPIO Y SUS LOCALIDADES.","SE REPRODUCIRA MAS PLANTA PARA QUE TODAS LAS AGENCIAS Y DELEGACIONES DEL MUNICIPIO CUENTEN CON EL PORCENTAJE ADECUADO Y CORRESPONDIENTE.","EFICACIA","TECNICO","NUMERO DE LOCALIDADES BENEFICIADAS POR 100.",40020,870,"ANUAL","PORCENTAJE",1,"VIVERO MUNICIPAL","Política Social","Construir un país con bienestar","Desarrollo sostenible del territorio","Protección y gestión ambiental","Temáticas transversales","Cambio climático",338632,107200,8000,102000,{"$nulls":9},96046.05,18630,2879.98]
[10,"Municipio de la Huerta, Jalisco","Información en Tiempo de las Actividades Gubernamentales","implementar estrategias en materia de comunicación diseñando y desarrollando campañas publicitarias de difusion atraves de diferentes medios de comunicacion, para dar a concer avances y compromisos del gobierno","mantener informado a la ciudadania","publicar todos los acontecimientos de la administracion en la pagina oficial de ayuntamietno","eficacia","estrategico","crear un rol semanal de cobertura de actividades por parte del personal de comunicación social….elaborar semanal mente una agenda de actividades del presidente municial y publicarla en los diferentes medios de comunicación",null,null,"anual","porcentaje ","fortalecer la imagen del presidente municipal y de su quipo de colaboradores","comunicación social","implementar estrategias en materia de comunicación diseñando y desarrollando campañas publicitarias de difusion atraves de difernetres medios de co municacion, para dar a concer avances y compromisos del gobierno","mantener a la ciudadania bien ifrormada de los acontecimiento del municipio","poner a la disposicon los nombre de las paginas de gobierno para que los ciudadanos esten informados",{"$nulls":3},294128,11000,397700,null,25000,{"$nulls":8},87046.95]
[11,"Municipio de la Huerta, Jalisco","EVENTOS DEPORTIVOS EN EL MUNICIPIO, DE FUTBOL, VOLIBOL Y BALONCESTO, BICEPAESOS Y COMPETENCIAS DE BOX.","FOMENTAR EN LAS PERSONAS DE TODAS LAS EDADES LOS HÁBITOS DEPORTIVOS POR MEDIO TORNEOS  DONDE PUEDA ASISITIR TODA LA FAMILIA A PARTICIPAR O PRESENCIAR. ","TORNEOS DEPORTIVOS","LOS TORNEOS SE REALIZAN CADA CIERTO TIEMPO CON DISTINTA DURACIÓN, DEPENDE DE VARIOS FACTORES COMO LA CANTIDAD DE EQUIPOS QUE LO INTEGREN; SE LLEVAN A CABO EN LA CABECERA MUNICIPAL, EXCEPTO EL DE FUTBOL, ÉSTE, SE LLEVA A CABO EN DISTINTAS LOCALIDADES Y EN LA CABECERA MUNICIPAL, DEBIDO A QUE A ALGUNOS EQUIPOS SON DE DELEGACIONES O COMUNIDADES. ","EFICACIA","ESTRATÉGICO","NUMERO DE TORNEOS DEPORTIVOS (FUTBOL, VOLIBOL Y BALONCESTO)   REALIZADOS X 100 SOBRE EL PRONOSTICO DE TORNEOS DEPORTIVOS QUE SE ESTIMAN REALIZAR",1000,12,"ANUAL ","PORCENTAJE",83,"JEFATURAS DE DEPORTES","Impulsar ligas deportivas inter-escolares e intermunicipales.","Fomentar semilleros de futuros atletas en escuelas y deportivos públicos.","Aumentar la calidad de vida de las personas\na través de la promoción de la actividad física\ny el deporte con oportunidades de acceso\nincluyentes, diversas y bajo la perspectiva de\nigualdad de género.",null,"Incrementar la escolaridad promedio.","Reducir la deserción en secundaria y media superior",390156,345912,12000,{"$nulls":10},170569.5,52478.85,9322.4]
[12,"Municipio de la Huerta, Jalisco","GARANTIZAR EL ACCESO A LA INFORMACION PUBLICA.","Se contribuye a garantizar la transparencia y el acceso a la información como base para la constitución de un Gobierno Abierto mediante la atención de calidad a todos los usuarios.","Índice de satisfacción para la Transparencia y Acceso a la Información","SE GARANTIZA LA TRANSPARENCIA Y EL ACCESO A LA INFORMACION PUBLICA A LA POBLACION EN GENERAL PARA LA CREACION DE UN GOBIERNO EFICIENTE, PROACTIVO Y DE PUERTAS ABIERTAS.","CALIDAD","ESTRATEGICO","AGENDA DE ACTIVIDADES, MECANISMOS ESTABLECIDOS POR EL MARCO NORMATIVO APLICABLE",90,90,"ANUAL","PORCENTAJE",90,"Transparencia","Se cuenta con los recursos necesarios",{"$nulls":5},236196,28100,94800,null,6000,{"$nulls":8},106311,128781.96,157961.02]
[13,"Municipio de la Huerta, Jalisco","Alumbrado Público","Mantener funcional el alumbrado público en el municipio de La Huerta, Jalisco.","Lámparas funcionales","Instalar luminarias con buen rendimiento luminico y eficiencia energetica, implementándolas en donde se necesiten.","Eficacia","Estratégico","Número de lamparas descompuestas en el municipio X 100 sobre el número de lámparas existentes.",1300,3339,"Anual","Porcentaje",38.93,"Alumbrado publico","Política Social","Construir un país con bienestar","Seguridad","Problemas municipales","Mejorar los servicios públicos municipales.","Mejorar el servicio de alumbrado público.",551932,1428500,115000,null,27000,{"$nulls":8},187790.25,168734.91,2500]
[14,"Municipio de la Huerta, Jalisco","Amigables con el medio ambiente.","Disminuir la contaminación.","Vertederos funcionales.","Vigilar que la basura sea depositada en el relleno sanitario y vertederos, conforme a las normas vigentes.","Eficacia","Estratégico","Número de relleno y vertederos funcionales en el municipio x 100 sobre el número de relleno y vertederos que hay en el municipio",3,3,"Anual","Porcentaje",1,"Ecología","Política Social","Desarrollo sostenible","Desarrollo sostenible del territorio","Protección y gestión ambiental","Desarrollo Sostenible del Territorio","Conservar el patrimonio natural.",185665,79000,93000,null,16000,{"$nulls":8},67108.5,3016]
[15,"Municipio de la Huerta, Jalisco","Derecho y acceso a la salud de todas las personas del municipio","Mejorar la salud de la población","Porcentaje de personas que reciben la atención de los servicios medicos municipales","Mide el grado de cumplimiento que se le da a las personas con base al medicamento que se requiere","Eficacia","Estratégico","(Cantidad de personas que son atendidas en los servicios medicos municipales  / cantidad de personas del municipio)*100",9312,23722,"Semestral","Porcentaje",100,"Servicios Medicos","México Incluyente","2.3. Asegurar el acceso a los servicios de salud","O_14 Mejorar la salud de la población","O14E2 Incrementar el acceso efectivo a los servicios de salud, en especial la población en condiciones de vulnerabilidad y pobreza",null,null,831007,1777200,1003000,{"$nulls":10},299731.06,677319.72,150035.85]
[16,"Municipio de la Huerta, Jalisco","Información a la mano y cumpliendo con la normatividad","Cumplir con la normatividad de resguardo de la documentación oficial","Porcentaje de digitalización de la documentacón que se encuentra en el archivo municipal","Mide el grado de cumplimiento de ley general de archivos","Eficacia","Gestión","(cantidad de cajas totales / Cantidad de cajas digitalizadas)*100",2000,1000,"Semestral","Porcentaje",100,"Archivo Municipal",{"$nulls":6},266257,{"$nulls":3},20000,{"$nulls":8},85372.5,1416.58,6032]
[17,"Municipio de la Huerta, Jalisco","Rescatando las tradiciones del municipio","Fomentar las tradiciones culturales","Porcentaje de eventos culturales realizados por la casa de la cultura","Mide la cantidad de eventos realizados por la casa de la culturan ","Eficacia","Gestión","(cantidad total de eventos realizados / cantidad de eventos realizados por mes)*100",12,6,"Semestral","Porcentaje",100,"Arte y Cultura",{"$nulls":6},1148980,472900,3081520,null,30000,{"$nulls":8},519983.65,45928.35,800173.03]
[18,"Municipio de la Huerta, Jalisco","Infraestructura Vial de Calidad","Mejorar la infrestructura vial y urbana del municipio","Porcentaje de vialidades reparadas con la maquinaria ","Mide la cantidad de trabajos realizados a las vialidades","Eficacia","Estratégico","(cantidad de solicitudes de mantenimiento de vialidades / cantidad de trabajos realizados con la maquinaria)*100",50,25,"Semestral","Porcentaje",100,"Maquinaria",{"$nulls":6},1272159,42000,12000,{"$nulls":10},314973.22,41024.4,55190.72]
[19,"Municipio de la Huerta, Jalisco","Infraestructura Urbana de Calidad","Mejoramiento de la infraestructura urbana del municipio","Porcentaje de obras realizadas en el municipio","Mide el grado de mejoramiento urbano del municipio","Eficacia","Estratégico","(cantidad de obras realizadas / cantidad de peticiones de obras recibidas para obras)*100",null,null,"Semestral","Porcentaje",null,"Obras Públicas",{"$nulls":6},1141844,75400,69000,null,26500,18306130,null,null,3575934,{"$nulls":4},385167,7834.22,1489.2,null,17300]
[20,"Municipio de la Huerta, Jalisco","Atención de fugas de aguas en las agencias y delegaciones municipales","Resolver lo problemas de agua potable en las agencias municipales que todavia no forman parte del OPD del agua Municipal","Porcentaje de fallas atendidas","Mide la cantidad de fallas en la red de agua de diversas localidades","Eficacia","Gestión","(cantidad de falas atendidas / cantidad de localidades del municipio)*100",150,15,"Semestral","Porcentaje",100,"Agua Potbale","México Incluyente",{"$nulls":5},578346,36000,{"$nulls":11},250501.5]
[21,"Municipio de la Huerta, Jalisco","Un municipio con equidad de genero","Combatir la violencia dentro del seno familiar y fomentar el liderazgo de las mujeres en los diversos campos","Porcentaje de mujeres dentro del municipio que participan activamente en la sociedad","Mide el grado de equidad que hay de las mujeres del municipio","Eficacia","Estratégico","(cantidad de mujeres que trabajan en el municipio / cantidad de mujeres que viven dentro del municipio)*100",7563,14058,"Semestral","Porcentaje",50,"CE Mujer","México Incluyente",{"$nulls":5},124256,23000,24500,{"$nulls":10},44911.5,null,300]
[22,"Municipio de la Huerta, Jalisco","Expedición de documentación oficial","Mejorar el servicio brindado para la entrega de documentación oficial","Porcentaje de personas que acuden a solicitar un documento oficial","Mide el grado de recaudación del municipio por los ervicios prestados en el registro civil","Eficacia","Estratégico","(cantidad de personas que realizan algun tramite en el registro civil / cantidad de personas que viven en el municipio)*100",9750,23722,"Semestral","Porcentaje",50,"Registro Civil","Mexico prospero",{"$nulls":5},448232,390700,10200,{"$nulls":10},162012,63389.31,2450]
[23,"Municipio de la Huerta, Jalisco"," Recolección de Residuos Solidos  y Organicos ","Preservar   el equilibrio ecologico y la protección al medio ambiente reduciendo el efecto invernadero  ","Ascendente","Mediante este indicador es Tener un mejor control en la recolección de los residuos solidos y organicos que son depositados en los vertederos y rellenos sanitarios de la cabecera y sus delegaciones","Eficiencia","Estratégico","Toneladas de basura depositadas adecuadamente trimestral",50,80,"Mensual","Toneladas",100,"Residuos Sólidos","Asegurar la sustentabilidad ambiental mediante la participación responsable de los mexicanos,en el cuidado, la protección, la preservación y el aprovechamiento racional de la riqueza y la calidad de vida de las generaciones futuras.","El PND tiene como objetivo principar la Sustentabilidad ambiental y en materia de residuos es el de reducir el impacto ambiental de los mismos, \natendiendo el problema de la disposición inadecuada en nuestro país para lo que se requiere\nfavorecer la valorización de los residuos, así como el diseño y construcción de infraestructura\napropiada que permita la recolección, separación, reciclaje y disposición final de éstos.","Asegurar la protección y gestión ambiental integral que revierta el deterioro de los ecosistemas, provocado por la generación de residuos y la contaminación, para proteger la salud de las personas y el equilibrio ecológico.","Mejorar la gestión integral de residuos.","Fortalecer la transferencia de capacidades en el municipio, a través del pleno conocimiento del Programa  Estatal de Gestión Integral de residuos y su aplicación.","reducir la contaminacion y la recoleccion de basura a traves de la separacion",1464539,326188,524900,null,44000,{"$nulls":8},847456.35,28490.5,700,null,3290]
[null,"Municipio de la Huerta, Jalisco"]
[25,"Municipio de la Huerta, Jalisco"]
[26,"Municipio de la Huerta, Jalisco"]
[27,"Municipio de la Huerta, Jalisco"]
[28,"Municipio de la Huerta, Jalisco"]
[29,"Municipio de la Huerta, Jalisco"]
[30,"Municipio de la Huerta, Jalisco"]
[31,"Municipio de la Huerta, Jalisco"]
[32,"Municipio de la Huerta, Jalisco"]
[33,"Municipio de la Huerta, Jalisco"]
[34,"Municipio de la Huerta, Jalisco"]
[35,"Municipio de la Huerta, Jalisco"]

{"sheet":"Avances","index":4,"n_rows":99,"n_cols":21,"rows_kept":99,"merged":[[1,21,3,21],[5,1,5,2],[6,1,6,2],[7,1,7,2],[7,21,8,21],[8,1,8,2],[10,3,10,9],[10,10,10,20]]}
[null,null,1]
[null,null,1]
[null,null,"REPORTE DE AVANCES PARA MATRIZ DE INDICADORES PARA RESULTADOS POR PROGRAMA "]
[null,null,1,null,"A V A N C E      S E M E S T R A L"]
[null,null,1]
[null,"Nombre del ente fiscalizable"]
[null,"Denominación del Programa",null,"Construccion y rehabilitacion"]
[null,"Unidad Responsable/OPD"]
[null,"Periodo que se reporta",null,"SEMESTRAL"]
[null,null,1]
[null,null,1,"I N D I C A D O R E S",{"$nulls":6},"A V A N C E S"]
[null,null,"Nivel","Resumen Narrativo","Nombre del indicador","Método de cálculo","Valor programado 1 (Numerador)","Valor programado 2 (Denominador)","Frecuencia de medición","Meta","Avance del valor programado 1 (numerador)","Avance del valor programado 2 (denominador)","Avance del Capítulo 1000","Avance del Capítulo 2000","Avance del Capítulo 3000","Avance del Capítulo 4000","Avance del Capítulo 5000","Avance del Capítulo 6000","Avance del Capítulo 7000","Avance del Capítulo 8000","Avance del Capítulo 9000"]
[{"$f":"$D$6","v":0},{"$f":"$D$7","v":"Construccion y rehabilitacion"}]
[{"$f":"$D$6","v":0},{"$f":"$D$7","v":"Construccion y rehabilitacion"}]
[0,"Construccion y rehabilitacion"]
[0,"Construccion y rehabilitacion"]
[0,"Construccion y rehabilitacion"]
[0,"Construccion y rehabilitacion"]
[0,"Construccion y rehabilitacion"]
[0,"Construccion y rehabilitacion"]
[0,"Construccion y rehabilitacion"]
[0,"Construccion y rehabilitacion"]
[0,"Construccion y rehabilitacion"]
[0,"Construccion y rehabilitacion"]
[0,"Construccion y rehabilitacion"]
[0,"Construccion y rehabilitacion"]
[0,"Construccion y rehabilitacion"]
[0,"Construccion y rehabilitacion"]
[0,"Construccion y rehabilitacion"]
[0,"Construccion y rehabilitacion"]
[0,"Construccion y rehabilitacion"]
[0,"Construccion y rehabilitacion"]
[0,"Construccion y rehabilitacion"]
[0,"Construccion y rehabilitacion"]
[0,"Construccion y rehabilitacion"]
[0,"Construccion y rehabilitacion"]
[0,"Construccion y rehabilitacion"]
[0,"Construccion y rehabilitacion"]
[0,"Construccion y rehabilitacion"]
[0,"Construccion y rehabilitacion"]
[0,"Construccion y rehabilitacion"]
[0,"Construccion y rehabilitacion"]
[0,"Construccion y rehabilitacion"]
[0,"Construccion y rehabilitacion"]
[0,"Construccion y rehabilitacion"]
[0,"Construccion y rehabilitacion"]
[0,"Construccion y rehabilitacion"]
[0,"Construccion y rehabilitacion"]
[0,"Construccion y rehabilitacion"]
[0,"Construccion y rehabilitacion"]
[0,"Construccion y rehabilitacion"]
[0,"Construccion y rehabilitacion"]
[0,"Construccion y rehabilitacion"]
[0,"Construccion y rehabilitacion"]
[0,"Construccion y rehabilitacion"]
[0,"Construccion y rehabilitacion"]
[0,"Construccion y rehabilitacion"]
[0,"Construccion y rehabilitacion"]
[0,"Construccion y rehabilitacion"]
[0,"Construccion y rehabilitacion"]
[0,"Construccion y rehabilitacion"]
[0,"Construccion y rehabilitacion"]
[0,"Construccion y rehabilitacion"]
[0,"Construccion y rehabilitacion"]
[0,"Construccion y rehabilitacion"]
[0,"Construccion y rehabilitacion"]
[0,"Construccion y rehabilitacion"]
[0,"Construccion y rehabilitacion"]
[0,"Construccion y rehabilitacion"]
[0,"Construccion y rehabilitacion"]
[0,"Construccion y rehabilitacion"]
[0,"Construccion y rehabilitacion"]
[0,"Construccion y rehabilitacion"]
[0,"Construccion y rehabilitacion"]
[0,"Construccion y rehabilitacion"]
[0,"Construccion y rehabilitacion"]
[0,"Construccion y rehabilitacion"]
[{"$f":"$D$6","v":0},{"$f":"$D$7","v":"Construccion y rehabilitacion"}]
[0,"Construccion y rehabilitacion"]
[0,"Construccion y rehabilitacion"]
[0,"Construccion y rehabilitacion"]
[0,"Construccion y rehabilitacion"]
[0,"Construccion y rehabilitacion"]
[0,"Construccion y rehabilitacion"]
[0,"Construccion y rehabilitacion"]
[0,"Construccion y rehabilitacion"]
[0,"Construccion y rehabilitacion"]
[0,"Construccion y rehabilitacion"]
[0,"Construccion y rehabilitacion"]
[0,"Construccion y rehabilitacion"]
[0,"Construccion y rehabilitacion"]
[0,"Construccion y rehabilitacion"]
[0,"Construccion y rehabilitacion"]
[0,"Construccion y rehabilitacion"]
[0,"Construccion y rehabilitacion"]
[0,"Construccion y rehabilitacion"]
[0,"Construccion y rehabilitacion"]
[0,"Construccion y rehabilitacion"]
[0,"Construccion y rehabilitacion"]

{"sheet":"AvancesAnual","index":5,"n_rows":99,"n_cols":21,"rows_kept":99,"merged":[[1,21,3,21],[5,1,5,2],[6,1,6,2],[7,1,7,2],[7,21,8,21],[8,1,8,2],[10,3,10,9],[10,10,10,20]]}
[null,null,1]
[null,null,1]
[null,null,"REPORTE DE AVANCES PARA MATRIZ DE INDICADORES PARA RESULTADOS POR PROGRAMA "]
[null,null,1,null,"A V A N C E      A N U A L"]
[null,null,1]
[null,"Nombre del ente fiscalizable"]
[null,"Denominación del Programa"]
[null,"Unidad Responsable/OPD"]
[null,"Periodo que se reporta",null,"ANUAL"]
[null,null,1]
[null,null,1,"I N D I C A D O R E S",{"$nulls":6},"A V A N C E S"]
[null,null,"Nivel","Resumen Narrativo","Nombre del indicador","Método de cálculo","Valor programado 1 (Numerador)","Valor programado 2 (Denominador)","Frecuencia de medición","Meta","Avance del valor programado 1 (numerador)","Avance del valor programado 2 (denominador)","Avance del Capítulo 1000","Avance del Capítulo 2000","Avance del Capítulo 3000","Avance del Capítulo 4000","Avance del Capítulo 5000","Avance del Capítulo 6000","Avance del Capítulo 7000","Avance del Capítulo 8000","Avance del Capítulo 9000"]
[{"$f":"$D$6","v":0},{"$f":"$D$7","v":0}]
[{"$f":"$D$6","v":0},{"$f":"$D$7","v":0}]
[0,0]
[0,0]
[0,0]
[0,0]
[0,0]
[0,0]
[0,0]
[0,0]
[0,0]
[0,0]
[0,0]
[0,0]
[0,0]
[0,0]
[0,0]
[0,0]
[0,0]
[0,0]
[0,0]
[0,0]
[0,0]
[0,0]
[0,0]
[0,0]
[0,0]
[0,0]
[0,0]
[0,0]
[0,0]
[0,0]
[0,0]
[0,0]
[0,0]
[0,0]
[0,0]
[0,0]
[0,0]
[0,0]
[0,0]
[0,0]
[0,0]
[0,0]
[0,0]
[0,0]
[0,0]
[0,0]
[0,0]
[0,0]
[0,0]
[0,0]
[0,0]
[0,0]
[0,0]
[0,0]
[0,0]
[0,0]
[0,0]
[0,0]
[0,0]
[0,0]
[0,0]
[0,0]
[0,0]
[{"$f":"$D$6","v":0},{"$f":"$D$7","v":0}]
[0,0]
[0,0]
[0,0]
[0,0]
[0,0]
[0,0]
[0,0]
[0,0]
[0,0]
[0,0]
[0,0]
[0,0]
[0,0]
[0,0]
[0,0]
[0,0]
[0,0]
[0,0]
[0,0]
[0,0]
[0,0]

{"sheet":"Base","index":6,"n_rows":150,"n_cols":60,"rows_kept":150}
["ID","Ente auditable","Denominación del Programa","Categoría programática","Unidad Responsable","Finalidad","Función","Sub-función","Alineación con objetivos superiores del PND","Alineación con objetivos secundarios del PND","Alineación con objetivos superiores del PED","Alineación con objetivos secundarios del PED","Alineación con objetivos superiores del PMD","Alineación con objetivos secundarios del PMD","Nivel MIR","Código del nivel MIR","Resumen Narrativo (objetivos)","Nombre del indicador","Definición del indicador","Dimensión del indicador","Tipo de indicador","Método de Cálculo del indicador","Valor programado 1 (Numerador)","Valor programado 2 (Denominador)","Frecuencia de Medición del indicador","Unidad de Medida del indicador","Metas del indicador","Medios de Verificación del indicador","Supuestos del indicador","Capítulo 1000","Capítulo 2000","Capítulo 3000","Capítulo 4000","Capítulo 5000","Capítulo 6000","Capítulo 7000","Capítulo 8000","Capítulo 9000","Avance 1er Semestre del Valor programado 1 (Numerador)","Avance 1er Semestre del Valor programado 2 (Denominador)","Avance Anual del Valor programado 1 (Numerador)","Avance Anual del Valor programado 2 (Denominador)","Avance 1er Semestre del Capítulo 1000","Avance 1er Semestre del Capítulo 2000","Avance 1er Semestre del Capítulo 3000","Avance 1er Semestre del Capítulo 4000","Avance 1er Semestre del Capítulo 5000","Avance 1er Semestre del Capítulo 6000","Avance 1er Semestre del Capítulo 7000","Avance 1er Semestre del Capítulo 8000","Avance 1er Semestre del Capítulo 9000","Avance Anual del Capítulo 1000","Avance Anual del Capítulo 2000","Avance Anual del Capítulo 3000","Avance Anual del Capítulo 4000","Avance Anual del Capítulo 5000","Avance Anual del Capítulo 6000","Avance Anual del Capítulo 7000","Avance Anual del Capítulo 8000","Avance Anual del Capítulo 9000"]
[null,"Municipio de la Huerta, Jalisco","RASTRO MUNICIPAL","Prestación de servicios públicos","RASTRO MUNICIPAL","Desarrollo Social","Vivienda y Servicios a la Comunidad","Servicios Comunales","México_Próspero","4.10. Construir un sector agropecuario y pesquero productivo que garantice la seguridad alimentaria del país","O9_Incrementar_de_forma_sostenible_la_productividad_y_rentabilidad_de_las_actividades_del_sector_primario","O9E6 Mejorar la sanidad e inocuidad de los productos agropecuarios","CREAR INCENTIVOS PARA INCREMENTAR LA COMPETITIVIDAD DE LOS PRODUCTORES DEL CAMPO","N/A","Fin",null,"CONTRIBUIR A MEJORAR LA OPERATIVIDAD DEL RASTRO","OPERACIÓN ","MIDE LA OPERACIÓN DEL RASTRO","Eficacia","Estratégico","NUMERO DE SACRIFICIOS POR 100 ENTRE EL NÚMERO DE SACRIFICIOS DE 2019",3900,3000,"Anual","PORCENTAJE",30,"EVALUACION MIR","PRESUPUESTO",{"$nulls":13},259118.11,13398.19]
[null,"Municipio de la Huerta, Jalisco","RASTRO MUNICIPAL","Prestación de servicios públicos","RASTRO MUNICIPAL","Desarrollo Social","Vivienda y Servicios a la Comunidad","Servicios Comunales","México_Próspero","4.10. Construir un sector agropecuario y pesquero productivo que garantice la seguridad alimentaria del país","O9_Incrementar_de_forma_sostenible_la_productividad_y_rentabilidad_de_las_actividades_del_sector_primario","O9E6 Mejorar la sanidad e inocuidad de los productos agropecuarios","CREAR INCENTIVOS PARA INCREMENTAR LA COMPETITIVIDAD DE LOS PRODUCTORES DEL CAMPO","N/A","Propósito",null,"RASTRO OPERA CON EFICACIA","OPERACIÓN ","MIDE LA OPERACIÓN DEL RASTRO","Eficacia","Estratégico","OPERACIÓN SATISFACTORIA MENSUAL POR 100 ENTRE LA META",12,12,"Mensual","PORCENTAJE",80,"EVALUACION MIR","PRESUPUESTO"]
[null,"Municipio de la Huerta, Jalisco","RASTRO MUNICIPAL","Prestación de servicios públicos","RASTRO MUNICIPAL","Desarrollo Social","Vivienda y Servicios a la Comunidad","Servicios Comunales","México_Próspero","4.10. Construir un sector agropecuario y pesquero productivo que garantice la seguridad alimentaria del país","O9_Incrementar_de_forma_sostenible_la_productividad_y_rentabilidad_de_las_actividades_del_sector_primario","O9E6 Mejorar la sanidad e inocuidad de los productos agropecuarios","CREAR INCENTIVOS PARA INCREMENTAR LA COMPETITIVIDAD DE LOS PRODUCTORES DEL CAMPO","N/A","Componente 1",null,"RASTRO OPERANDO CON EFICACIA","OPERACIÓN ","MIDE LA OPERACIÓN DEL RASTRO","Eficacia","Estratégico","OPERACIÓN SATISFACTORIA MENSUAL POR 100 ENTRE LA META",12,12,"Mensual","PORCENTAJE",80,"RESULTADOS POA","PRESUPUESTO",742223,110300,3000,null,348000]
[null,"Municipio de la Huerta, Jalisco","RASTRO MUNICIPAL","Prestación de servicios públicos","RASTRO MUNICIPAL","Desarrollo Social","Vivienda y Servicios a la Comunidad","Servicios Comunales","México_Próspero","4.10. Construir un sector agropecuario y pesquero productivo que garantice la seguridad alimentaria del país","O9_Incrementar_de_forma_sostenible_la_productividad_y_rentabilidad_de_las_actividades_del_sector_primario","O9E6 Mejorar la sanidad e inocuidad de los productos agropecuarios","CREAR INCENTIVOS PARA INCREMENTAR LA COMPETITIVIDAD DE LOS PRODUCTORES DEL CAMPO","N/A","Actividad 1.1",null,"GARANTIZAR LOS RECURSOS PARA LA OPERACIÓN","RECURSOS","REVISIONES MENSUALES DE SUFICIENCIA DE RECURSOS","Economía","Gestión","REVISIONES POR 100 ENTRE LA META",12,12,"Mensual","PORCENTAJE",80,"REQUISICONES","PRESUPUESTO"]
[null,"Municipio de la Huerta, Jalisco","RASTRO MUNICIPAL","Prestación de servicios públicos","RASTRO MUNICIPAL","Desarrollo Social","Vivienda y Servicios a la Comunidad","Servicios Comunales","México_Próspero","4.10. Construir un sector agropecuario y pesquero productivo que garantice la seguridad alimentaria del país","O9_Incrementar_de_forma_sostenible_la_productividad_y_rentabilidad_de_las_actividades_del_sector_primario","O9E6 Mejorar la sanidad e inocuidad de los productos agropecuarios","CREAR INCENTIVOS PARA INCREMENTAR LA COMPETITIVIDAD DE LOS PRODUCTORES DEL CAMPO","N/A","Actividad 1.2",null,"MEJORAR EL EQUIPAMIENTO","EQUIPO","MEJORAS DE EQUIPAMIENTO","Eficiencia","Gestión","MEJORAS POR 100 ENTRE LA META",4,4,"Trimestral","PORCENTAJE",80,"REQUISICIONES","PRESUPUESTO"]
[null,"Municipio de la Huerta, Jalisco","Pertinencia de jovenes en la Educacion de calidad ","Prestacion de servicios","Direcion de educacion ","Desarrollo_Social","Educación","2.5.2 Educación Media Superior","México_con_Educación_de_Calidad","3.1. Desarrollar el potencial humano de los mexicanos con educación de calidad","O16_Incrementar_el_acceso_la_equidad_y_la_calidad_de_la_educación",{"$nulls":3},"Fin",null,"Contribuir a fortalecer  aque los jovenes sigan estudiando.","porcentage de jovenes estudiando","los jovenes se precentan a estudiar en las instituciones publicas de educacion.","Calidad","Gestión","jovenes que entran a educacion basica el 50% entran a educacion superior.",50,100,"Anual","%",0.5,"padron de la DERCE","Falta de acción de otras\ninstituciones",{"$nulls":13},57706.5,10350.55,41174,2386.51]
[null,"Municipio de la Huerta, Jalisco","Pertinencia de jovenes en la Educacion de calidad ","Prestacion de servicios","Direcion de educacion ","Desarrollo_Social","Educación","2.5.2 Educación Media Superior","México_con_Educación_de_Calidad","3.1. Desarrollar el potencial humano de los mexicanos con educación de calidad","O16_Incrementar_el_acceso_la_equidad_y_la_calidad_de_la_educación",{"$nulls":3},"Propósito",null,"jovenes  con pertenencia en la educacion por el apoyo del trasporte escoelar.","joves que sigan estudiando","Los principales objetivos son la calidad educativa.","Calidad","Gestión","jovenes que entran a educacion basica el 50% entran a educacion superior.",50,100,"Anual","%",0.5,"padron de la DERCE","Eventos de la naturaleza"]
[null,"Municipio de la Huerta, Jalisco","Pertinencia de jovenes en la Educacion de calidad ","Prestacion de servicios","Direcion de educacion ","Desarrollo_Social","Educación","2.5.2 Educación Media Superior","México_con_Educación_de_Calidad","3.1. Desarrollar el potencial humano de los mexicanos con educación de calidad","O16_Incrementar_el_acceso_la_equidad_y_la_calidad_de_la_educación",{"$nulls":3},"Componente 1",null,"a poyo en traslado alas diferentes instituciones educativas.","motivacion para el estudio ","con animacion para estudiar ","Calidad","Gestión","dando prioridad al 50% de estudiantes de educacion media superior.",50,100,"Anual","%",0.5,"padron de la DERCE","Inestabilidad política,\neconómica y social",257743,84000,352000]
[null,"Municipio de la Huerta, Jalisco","Pertinencia de jovenes en la Educacion de calidad ","Prestacion de servicios","Direcion de educacion ","Desarrollo_Social","Educación","2.5.2 Educación Media Superior","México_con_Educación_de_Calidad","3.1. Desarrollar el potencial humano de los mexicanos con educación de calidad","O16_Incrementar_el_acceso_la_equidad_y_la_calidad_de_la_educación",{"$nulls":3},"Actividad 1.1",null,"indentificar los jovenes en las diferentes localidades que quieren seguir estudiando media superior ","beneficiarios del trasporte ","se reflrjara en el ingreso y egreso de las instituciones publicas.","Calidad","Gestión","dando prioridad al 50% de estudiantes de educacion media superior.",50,100,"Anual","%",0.5,"revisando padron de alumnado.","Falta de acción de otras\ninstituciones"]
[null,"Municipio de la Huerta, Jalisco","Pertinencia de jovenes en la Educacion de calidad ","Prestacion de servicios","Direcion de educacion ","Desarrollo_Social","Educación","2.5.2 Educación Media Superior","México_con_Educación_de_Calidad","3.1. Desarrollar el potencial humano de los mexicanos con educación de calidad","O16_Incrementar_el_acceso_la_equidad_y_la_calidad_de_la_educación",{"$nulls":3},"Actividad 1.2",null,"realizar el lebantamiento del padron de los jovenes que estudian nivel media superior","para una mejor organización ","se reflrjara en el ingreso y egreso de las instituciones publicas.","Calidad","Gestión","dando prioridad al 50% de estudiantes de educacion media superior.",50,100,"Anual",null,null,"revisando padron de alumnado.","Eventos de la naturaleza"]
[null,"Municipio de la Huerta, Jalisco","Pertinencia de jovenes en la Educacion de calidad ","Prestacion de servicios","Direcion de educacion ","Desarrollo_Social","Educación","2.5.2 Educación Media Superior","México_con_Educación_de_Calidad","3.1. Desarrollar el potencial humano de los mexicanos con educación de calidad","O16_Incrementar_el_acceso_la_equidad_y_la_calidad_de_la_educación",{"$nulls":3},"ActividadX.X",null,"trasladar de las diferentes localidades a los jovenes ala instituciones de educacion ","beneficiarios del trasporte ","se reflrjara en el ingreso y egreso de las instituciones publicas.","Calidad","Gestión","dando prioridad al 50% de estudiantes de educacion media superior.",50,100,"Anual","%",0.5,"revisando padron de alumnado.","Inestabilidad política,\neconómica y social"]
[null,"Municipio de la Huerta, Jalisco","Pertinencia de jovenes en la Educacion de calidad ","Prestacion de servicios","Direcion de educacion ","Desarrollo_Social","Educación","2.5.2 Educación Media Superior","México_con_Educación_de_Calidad","3.1. Desarrollar el potencial humano de los mexicanos con educación de calidad","O16_Incrementar_el_acceso_la_equidad_y_la_calidad_de_la_educación",{"$nulls":3},"ComponenteX",null,"cordinar actos civicos con las diferentes instituciones de educacion.","un omenaje atodos los aspectos historicos ","rescatando nuestras tradiciones civicas para recordar nuestro erues padrios.","Calidad","Gestión","rescatando un 50% de las tradiciones civicas ",50,100,"Anual","%",0.5,"convocando y firmando la acistencia de los planteles educativos","Falta de acción de otras\ninstituciones",{"$nulls":3},300000]
[null,"Municipio de la Huerta, Jalisco","Pertinencia de jovenes en la Educacion de calidad ","Prestacion de servicios","Direcion de educacion ","Desarrollo_Social","Educación","2.5.2 Educación Media Superior","México_con_Educación_de_Calidad","3.1. Desarrollar el potencial humano de los mexicanos con educación de calidad","O16_Incrementar_el_acceso_la_equidad_y_la_calidad_de_la_educación",{"$nulls":3},"ActividadX.X",null,"plan para elavorar programas de aspectos civicos y tradiciones ","un omenaje atodos los aspectos historicos ","rescatando nuestras tradiciones civicas para recordar nuestro erues padrios.","Calidad","Gestión","rescatando un 50% de las tradiciones civicas ",50,100,"Anual","%",0.5,"convocando y firmando la acistencia de los planteles educativos","Eventos de la naturaleza"]
[null,"Municipio de la Huerta, Jalisco","Pertinencia de jovenes en la Educacion de calidad ","Prestacion de servicios","Direcion de educacion ","Desarrollo_Social","Educación","2.5.2 Educación Media Superior","México_con_Educación_de_Calidad","3.1. Desarrollar el potencial humano de los mexicanos con educación de calidad","O16_Incrementar_el_acceso_la_equidad_y_la_calidad_de_la_educación",{"$nulls":3},"ActividadX.X",null,"ejecutar lo aspectos acordados con las diferentes instituciones publicas ","un omenaje atodos los aspectos historicos ","rescatando nuestras tradiciones civicas para recordar nuestro erues padrios.","Calidad","Gestión","rescatando un 50% de las tradiciones civicas ",50,100,"Anual","%",0.5,"convocando y firmando la acistencia de los planteles educativos","Inestabilidad política,\neconómica y social"]
[null,"Municipio de La Huerta, Jalisco.","La Huerta a una Planeación Sustentable","Prestacion de Servicios Publicos.","Jefatura de Desarrollo Urbano y Ordenamiento Territorial","Desarrollo Social","Vivienda y Servicios a la Comunidad","Desarrollo Comunitario","Politica Social","Desarrollo sostenible","Apartado estrategico: objetivos, metas y proyectos estrategicos","Desarrollo sosntenible del territorio","Apartado estrategico","Vision de futuro","Fin",null,"FOMENTAR UN DESARROLLO TERRITORIAL SUSTENTABLE","DESARROLLO SOSTENIBLE Y SUSTENTABLE","REGULACION APROPIADA DE LA ORGANIZACIZACION Y UTILIZACION DEL USO DE SUELO, UNA PROYECCION ESPACIAL DE POLITICA SOCIAL, ECONOMICA, AMBIENTAL Y CULTURAL.","EFICACIA","ESTRATEGICO","NUMERO DE PERSONAS BENEFICIADAS POR 100, ENTRE EL NUMERO TOTAL DE LA POBLACION DE LA HUERTA",800,24564,"ANUAL","PORCENTAJE",70,"BITACORA DE TRABAJOS Y REPORTE DE ACTIVIDAD MENSUAL","LA POBLACION PARTICIPA DE MANERA FAVORABLE PARA LLEGAR A LA META.",{"$nulls":13},184104,null,3152.99]
[null,"Municipio de La Huerta, Jalisco.","La Huerta a una Planeación Sustentable","Prestacion de Servicios Publicos.","Jefatura de Desarrollo Urbano y Ordenamiento Territorial","Desarrollo Social","Vivienda y Servicios a la Comunidad","Desarrollo Comunitario","Politica Social","Desarrollo sostenible","Apartado estrategico: objetivos, metas y proyectos estrategicos","Desarrollo sosntenible del territorio","Apartado estrategico","Vision de futuro","Propósito",null,"DAR CERTEZA JURIDICA A LOS PROPIETARIOS Y POSESIONARIOS DE PREDIOS IRREGULARES.","REGULARIZACION Y TITULACION DE PREDIOS URBANOS","RECONOCER O PROMOVER UN PATRIMONIO DIGNO JURIDICAMENTE ANTE LOS PROPIETARIOS O POSESIONARIOR DE PREDIOS IRREGULARES.","EFICACIA","ESTRATEGICO","VERIFICAR SI SE LOGRO EL INCREMENTO DE REGULARIZACION Y TITULACION DE PREDIOS IRREGULARES CON RELACION AL AÑO ANTERIOR",200,24564,"ANUAL","PORCENTAJE",60,"REPORTE ANUAL DE ACTVIDADES Y EVIDENCIA CON FOTOGRAFICA DE TITULOS ENTREGADOS","SE CUENTA CON LOS RECURSOS NECESARIOS PARA EL DESARROLLO DE LOS PROYECTOS A DESARROLLAR."]
[null,"Municipio de La Huerta, Jalisco.","La Huerta a una Planeación Sustentable","Prestacion de Servicios Publicos.","Jefatura de Desarrollo Urbano y Ordenamiento Territorial","Desarrollo Social","Vivienda y Servicios a la Comunidad","Desarrollo Comunitario","Politica Social","Desarrollo sostenible","Apartado estrategico: objetivos, metas y proyectos estrategicos","Desarrollo sosntenible del territorio","Apartado estrategico","Vision de futuro","Componente 1",null,"REGULARIZACION Y TITULACION DE FRACCIONAMIENTOS IRREGULARES EN EL MUNICIPIO DE LA HUERTA, JALISCO.","FRACCIONAMIENTOS IRREGULARES","REGULARIZACION Y TITULACION DE PREDIOS URBANOS IRREGULARES EN EL MUNICIPIO DE LA HUERTA, JALISCO.","Eficacia","Estratégico","SE INICIA PROCESO DE REGULARIZACION Y TITULACION DE PREDIOS IRREGULARES EN TODO EL AÑO 2020 (ENERO - DICIEMBRE).",200,24564,"Anual","PORCENTAJE",60,"CONVOCATORIAS, REUNIONES DE TRABAJO, BITACORA DE TRABAJO Y EVIDENCIA FOTOGRAFICA DE ENTREGA DE TITULOS.","SE CUENTA CON LOS INSUMOS NECESARIOS.",509351,272357,20000,null,385000]
[null,"Municipio de La Huerta, Jalisco.","La Huerta a una Planeación Sustentable","Prestacion de Servicios Publicos.","Jefatura de Desarrollo Urbano y Ordenamiento Territorial","Desarrollo Social","Vivienda y Servicios a la Comunidad","Desarrollo Comunitario","Politica Social","Desarrollo sostenible","Apartado estrategico: objetivos, metas y proyectos estrategicos","Desarrollo sosntenible del territorio","Apartado estrategico","Vision de futuro","Actividad 1.1",null,"MEDICION DE FRACCIONAMIENTOS NUEVOS","MEDICION","LEVANTAMIENTO TOPOGRAFICO DE FRACCIONAMIENTOS NUEVOS.","Eficacia","Gestión","SE CUMPLEN 1/5 PARTE DEL PROYECTO",1,5,"Trimestral","POCENTAJE",20,"PLANOS DE LEVANTAMIENTO TOPOGRAFICO.","SE CUENTA CON LOS INSUMOS Y PERSONAL NECESARIO."]
[null,"Municipio de La Huerta, Jalisco.","La Huerta a una Planeación Sustentable","Prestacion de Servicios Publicos.","Jefatura de Desarrollo Urbano y Ordenamiento Territorial","Desarrollo Social","Vivienda y Servicios a la Comunidad","Desarrollo Comunitario","Politica Social","Desarrollo sostenible","Apartado estrategico: objetivos, metas y proyectos estrategicos","Desarrollo sosntenible del territorio","Apartado estrategico","Vision de futuro","Actividad 1.2",null,"PROYECTOS DEFINITIVO DE URBANIZACION","ELABORACION","ELABORACION DEL DIBUJO TECNICO DEL PROYECTO DEFINITIVO DE URBANIZACION DE CADA FRACCIONAMIENTO","Eficacia","Gestión","SE CUMPLEN 1/5 PARTE DEL PROYECTO",1,5,"Anual","PORCENTAJE",20,"PLANOS DE PROYECTO DEFINITIVO DE URBANIZACION Y PLANOS INDIVIDUALES DE LOTES Y VIALIDADES.","SE CUENTA CON LOS INSUMOS Y PERSONAL NECESARIO."]
[null,"Municipio de La Huerta, Jalisco.","La Huerta a una Planeación Sustentable","Prestacion de Servicios Publicos.","Jefatura de Desarrollo Urbano y Ordenamiento Territorial","Desarrollo Social","Vivienda y Servicios a la Comunidad","Desarrollo Comunitario","Politica Social","Desarrollo sostenible","Apartado estrategico: objetivos, metas y proyectos estrategicos","Desarrollo sosntenible del territorio","Apartado estrategico","Vision de futuro","ActividadX.X",null,"GESTION DE REGULARIZACION","REGULARIZACION","TRAMITES ANTES LAS DIFERENTES DEPENDENCIAS PARA LOGRAR LA REGULARIZACION DE LOS FRACCIONAMIENTOS Y PREDIOS IRREGULARES.","Eficacia","Gestión","SE CUMPLEN 1/5 PARTE DEL PROYECTO",1,5,"Anual","PORCENTAJE",20,"REUNIONES DE LA COMISION MUNICIPAL DE REGULARIZACION, DICTAMEN DE PROCEDENCIA DE FORMALMENTE REGULARIZADO, CONVENIOS DE OBRAS FALTANTES Y FOLIOS REALES AUTORIZADOS POR RPPC.","SE CUENTA CON LOS INSUMOS Y PERSONAL NECESARIO."]
[null,"Municipio de La Huerta, Jalisco.","La Huerta a una Planeación Sustentable","Prestacion de Servicios Publicos.","Jefatura de Desarrollo Urbano y Ordenamiento Territorial","Desarrollo Social","Vivienda y Servicios a la Comunidad","Desarrollo Comunitario","Politica Social","Desarrollo sostenible","Apartado estrategico: objetivos, metas y proyectos estrategicos","Desarrollo sosntenible del territorio","Apartado estrategico","Vision de futuro","ActividadX.X",null,"GESTION DE TITULACION","TITULACION","TRAMITES ANTES LAS DIFERENTES DEPENDENCIAS PARA LOGRAR LA REGULARIZACION DE LOS FRACCIONAMIENTOS Y PREDIOS IRREGULARES.","Eficacia","Gestión","SE CUMPLEN 1/5 PARTE DEL PROYECTO",1,5,"Anual","PORCENTAJE",20,"REUNIONES DE LA COMISION MUNICIPAL DE REGULARIZACION Y TITULOS REGISTRADOS EN RPPC Y CATASTRO MUNICIPAL.","SE CUENTA CON LOS INSUMOS Y PERSONAL NECESARIO."]
[null,"Municipio de La Huerta, Jalisco.","La Huerta a una Planeación Sustentable","Prestacion de Servicios Publicos.","Jefatura de Desarrollo Urbano y Ordenamiento Territorial","Desarrollo Social","Vivienda y Servicios a la Comunidad","Desarrollo Comunitario","Politica Social","Desarrollo sostenible","Apartado estrategico: objetivos, metas y proyectos estrategicos","Desarrollo sosntenible del territorio","Apartado estrategico","Vision de futuro","ActividadX.X",null,"CERTEZA JURIDICA","ENTREGA DE TITULOS ","ENTREGA DE TITULO DE PROPIEDAD EL CUAL AMPARA DA CERTEZA JURIDICA A LOS PROPIETARIOS DE UN PATRIMONIO DIGNO.","Eficacia","Gestión","SE CUMPLEN 1/5 PARTE DEL PROYECTO",1,5,"Anual","PORCENTAJE",20,"EVIDENCIA FOTOGRAFICA DE REUNION DE ENTREGA DE TITULOS CON LOS DIFERENTES POSESIONARIOS O PROPIETARIOS.","SE CUENTA CON LOS INSUMOS Y PERSONAL NECESARIO."]
[null,"Municipio de la Huerta, Jalisco","Manejo del Marco Juridico Municipal","Regulación y Supervisión","Juridico","Gobierno","Coordinación_Política_de_Gobierno","1.3.5 Asuntos Jurídicos","México_en_Paz","1.1. Promover y fortalecer la gobernabilidad democrática","Justicia y Paz Social en el Municipio aplicando los reglamentos de Gobienro y fomentando la mediacion.","Innovación Gubernamental","Gobierno","Reducir la burocracia y la inneficiencia de las dependencias del gobierno municipal","Fin",null,"GARANTIZAR LA JUSTICIA Y LA PAZ SOCIAL EN EL TERRITORIO APLICANDO LOS REGLAMENTOS DE GOBIERNO Y FOMENTANDO LA MEDIACION, EL DIALOGO  Y LA PREVENCION A FAVOR DE LOS DERECHOS HUMANOS","VARIACION PROCENTIAL ANUAL DE PERSONAS ATENDIDAS EN LA IMPARTICION DE JUSTICIA ","PERSONAS ATENDIDAS EN AUDENCIAS PARA LA IMPARTICION DE JUSTICIA EN EL MUNICIPIO.","Eficiencia","Estratégico","NUMERO DE PERSONAS ATENDIDAS EN LA IMPARTICION DE JUSTICIA AL AÑO ACTUAL/ PERSONAS ATENDIDAS EN LA IMPARTICION DE JUSTICIA EL AÑO ANTERIOR.",70,100,"Anual","Porcentaje",80,"Informes y Estadisticas","Se cuenta con los recursos necesarios",{"$nulls":13},85372.5,null,328499.48]
[null,"Municipio de la Huerta, Jalisco","Manejo del Marco Juridico Municipal","Regulación y Supervisión","Juridico","Gobierno","Coordinación_Política_de_Gobierno","1.3.5 Asuntos Jurídicos","México_en_Paz","1.1. Promover y fortalecer la gobernabilidad democrática","Justicia y Paz Social en el Municipio aplicando los reglamentos de Gobienro y fomentando la mediacion.","Innovación Gubernamental","Gobierno","Reducir la burocracia y la inneficiencia de las dependencias del gobierno municipal","Propósito",null,"CIUDADANOS RECIBEN LA CERTEZA JURIDICA Y PROTECCION DE SUS DERECHOS HUMANOS","CERTEZA JURIDICA PARA LA POBLACION.","TASA DE CRECIMIENTO EN LOS PROCESOS DE CONTROL Y SUPERVICION DE LA JEFATURA JURIDICA","Eficiencia","Estratégico","NUMERO DE PROCESOS DE VISITADURIAS Y SUEPRVISION EJECUTADOS EN EL PERIODO ACTUAL DE LA JEFATURA JURIDICA MUNICIPAL  Y NUMERO DE PROCESOS DURANTE LA SUPERVICION  EJECUTADOS EN EL PERIODO ANTERIOR.",7,7,"Anual","Porcentaje",85,"Informes y Estadisticas","INFORME MENSUAL DE ACTIVIDADES DE LA JEFATURA JURIDICA"]
[null,"Municipio de la Huerta, Jalisco","Manejo del Marco Juridico Municipal","Regulación y Supervisión","Juridico","Gobierno","Coordinación_Política_de_Gobierno","1.3.5 Asuntos Jurídicos","México_en_Paz","1.1. Promover y fortalecer la gobernabilidad democrática","Justicia y Paz Social en el Municipio aplicando los reglamentos de Gobienro y fomentando la mediacion.","Innovación Gubernamental","Gobierno","Reducir la burocracia y la inneficiencia de las dependencias del gobierno municipal","Componente 1",null,"BRINDAR RESOLUCIONES A LA SITUACION JURIDICA DE LAS PERSONAS PUESTAS A DISPOSICION O QUE TENGAN ALGUN ASUNTO JURIDICO.","RESOLUCIONES JURIDICAS","RESOLUCIONES A LA SITUACION JURIDICA DE LAS PERSONAS PUESTAS A DISPOSICIÓN.","Eficiencia","Gestión","NUMERO DE RESOLUCIONES DE SITUACION JURIDICA DEL AÑO ACTUAL Y NUMERO DE RESOLUCIONES DEL AÑO ANTERIOR .",8,8,"Anual","Porcentaje",85,"Informes y Estadisticas","REMISION EFECTIVA DE INFRACTORES POR PARTE DE SEGURIDAD PUBLICA MUNICIPAL. INFORME MENSUAL DE ACTIVIDADES.",236197,9700,2550640,null,16000]
[null,"Municipio de la Huerta, Jalisco","Manejo del Marco Juridico Municipal","Regulación y Supervisión","Juridico","Gobierno","Coordinación_Política_de_Gobierno","1.3.5 Asuntos Jurídicos","México_en_Paz","1.1. Promover y fortalecer la gobernabilidad democrática","Justicia y Paz Social en el Municipio aplicando los reglamentos de Gobienro y fomentando la mediacion.","Innovación Gubernamental","Gobierno","Reducir la burocracia y la inneficiencia de las dependencias del gobierno municipal","Actividad 1.1",null,"SE APLICAN METODOS ALTERNOS PARA LA RESOLUCION DE CONFLICTOS Y DESAHOGO DE LOS MISMOS MEDIANTE CONVENIOS.","METODOS ALTERNOS","APLICACIÓN DE METODOS ALTERNOS PARA LA RESOLUCION DE CONFLICTOS DESAHOGADOS.","Eficiencia","Gestión","NUMERO DE CONVENIOS SUCRITOS DEL AÑO QUE ANTECEDE AL AÑO ACTUAL . CON LA VOLUNTAD DE LOS PARTICIPANTES A FIRMAR CONVENIOS DE MEDIACION.",70,100,"Anual","Porcentaje",100,"Informes y Estadisticas","Se cuenta con los recursos necesarios. INFORME MENSUAL DE ACTIVIDADES DE LA JEFATURA JURIDICA MUNICIPAL."]
[null,"Municipio de la Huerta, Jalisco","Manejo del Marco Juridico Municipal","Regulación y Supervisión","Juridico","Gobierno","Coordinación_Política_de_Gobierno","1.3.5 Asuntos Jurídicos","México_en_Paz","1.1. Promover y fortalecer la gobernabilidad democrática","Justicia y Paz Social en el Municipio aplicando los reglamentos de Gobienro y fomentando la mediacion.","Innovación Gubernamental","Gobierno","Reducir la burocracia y la inneficiencia de las dependencias del gobierno municipal","Actividad 1.2",null,"ATENCION AL PUBLICO EN GENERAL CON ASESORIA JURIDICA EN JORNADAS CIUDADANAS"," JORNADAS JURIDICAS CIUDADANAS","MIDE LA CANTIDAD DE JORNADAS CIUDADANAS IMPARTIENDO ACESORIA JURIDICA A  LA POBLACION.","Eficiencia","Gestión","Número de jornadas ciudadanas desarrolladas, entre 10, por 100",10,10,"Anual","Porcentaje",100,"Informes y Estadisticas","Se cuenta con los recursos necesarios"]
[null,"Municipio de la Huerta, Jalisco","Programa de Participación Ciudadana","Promoción y Fomento","Participación Ciudadana","Desarrollo Social","Vivienda y Servicvios a la Comunidad","Desarrollo Comunitario","Política y Gobierno","Hacia una democracia participativa","Gobierno Efectivo e Integridad Pública","Innovación Gubernamental","Gobierno","Reducir la burocracia y la inneficiencia de las dependencias del gobierno municipal","Fin",null,"FOMENTAR Y DAR SEGUIMIENTO A LA PARTICIPACIÓN CIUDADANA EN EL MUNICIPIO","INDICE DE PARTICIPACIÓN CIUDADANA","MIDE LA CANTIDAD DE CIUDADANOS MOVILIZADOS EN ACCIONES DE FOMENTO Y SEGUIMIENTO A LA PARTICIPACIÓN CIUDADANA","Eficiencia","Estratégico","Número de personas movilizadas por 100 entre la población total de La Huerta",8000,24000,"Anual","Porcentaje",80,"Informes y Estadisticas","Se cuenta con los recursos necesarios",{"$nulls":13},85372.5,null,34204]
[null,"Municipio de la Huerta, Jalisco","Programa de Participación Ciudadana","Promoción y Fomento","Participación Ciudadana","Desarrollo Social","Vivienda y Servicvios a la Comunidad","Desarrollo Comunitario","Política y Gobierno","Hacia una democracia participativa","Gobierno Efectivo e Integridad Pública","Innovación Gubernamental","Gobierno","Reducir la burocracia y la inneficiencia de las dependencias del gobierno municipal","Propósito",null,"PERSONAS MOVILIZADAS EN ACTIVIDADES DE FOMENTO Y SEGUIMIENTO A LA PARTICIPACIÓN CIUDADANA","INDICE DE PARTICIPACIÓN CIUDADANA","MIDE LA CANTIDAD DE POLÍTICAS PÚBLICAS DE PARTICIPACIÓN CIUDADANA DESARROLLADAS EN 2020","Eficiencia","Estratégico","Número de políticas  públicas de participación ciudadana desarrolladas, entre 7, por 100",7,7,"Anual","Porcentaje",85,"Informes y Estadisticas","Se cuenta con los recursos necesarios"]
[null,"Municipio de la Huerta, Jalisco","Programa de Participación Ciudadana","Promoción y Fomento","Participación Ciudadana","Desarrollo Social","Vivienda y Servicvios a la Comunidad","Desarrollo Comunitario","Política y Gobierno","Hacia una democracia participativa","Gobierno Efectivo e Integridad Pública","Innovación Gubernamental","Gobierno","Reducir la burocracia y la inneficiencia de las dependencias del gobierno municipal","Componente 1",null,"FOMENTO A LA PARTICIPACIÓN CIUDADANA","INDICADOR DE FOMENTO ","MIDE LA CANTIDAD DE ACCIONES DE FOMENTO A LA PARTICIPACIÓN CIUDADANA DESARROLLADAS EN 2020","Eficiencia","Gestión","Número de acciones de fomento a la participación ciudadana desarrolladas, entre 8, por 100",8,8,"Anual","Porcentaje",85,"Informes y Estadisticas","Se cuenta con los recursos necesarios",236197,60100,101196]
[null,"Municipio de la Huerta, Jalisco","Programa de Participación Ciudadana","Promoción y Fomento","Participación Ciudadana","Desarrollo Social","Vivienda y Servicvios a la Comunidad","Desarrollo Comunitario","Política y Gobierno","Hacia una democracia participativa","Gobierno Efectivo e Integridad Pública","Innovación Gubernamental","Gobierno","Reducir la burocracia y la inneficiencia de las dependencias del gobierno municipal","Actividad 1.1",null,"CAMPAÑAS DE SOLIDARIDAD SOCIAL","NÚMERO DE CAMPAÑAS","MIDE LA CANTIDAD DE CAMPAÑAS DE SOLIDARIDAD SOCIAL IMPLEMENTADAS EN 2020","Eficiencia","Gestión","Número de campañas de solidaridad social desarrolladas, entre 3, por 100",3,3,"Anual","Porcentaje",100,"Informes y Estadisticas","Se cuenta con los recursos necesarios"]
[null,"Municipio de la Huerta, Jalisco","Programa de Participación Ciudadana","Promoción y Fomento","Participación Ciudadana","Desarrollo Social","Vivienda y Servicvios a la Comunidad","Desarrollo Comunitario","Política y Gobierno","Hacia una democracia participativa","Gobierno Efectivo e Integridad Pública","Innovación Gubernamental","Gobierno","Reducir la burocracia y la inneficiencia de las dependencias del gobierno municipal","Actividad 1.2",null,"JORNADAS CIUDADANAS","NÚMERO DE JORNADAS","MIDE LA CANTIDAD DE JORNADAS CIUDADANAS IMPLEMENTADAS EN 2020","Eficiencia","Gestión","Número de jornadas ciudadanas desarrolladas, entre 10, por 100",10,10,"Anual","Porcentaje",100,"Informes y Estadisticas","Se cuenta con los recursos necesarios"]
[null,"Municipio de la Huerta, Jalisco","Programa de Participación Ciudadana","Promoción y Fomento","Participación Ciudadana","Desarrollo Social","Vivienda y Servicvios a la Comunidad","Desarrollo Comunitario","Política y Gobierno","Hacia una democracia participativa","Gobierno Efectivo e Integridad Pública","Innovación Gubernamental","Gobierno","Reducir la burocracia y la inneficiencia de las dependencias del gobierno municipal","Actividad 1.3",null,"CONSEJO MUNICIPAL DE PARTICIPACIÓN CIUDADANA","NÚMERO DE SESIONES","MIDE EL NÚMERO DE SESIONES REALIZADAS EN 2020","Eficiencia","Gestión","Número de sesiones del consejo desarrolladas, entre 6, por 100",6,6,"Anual","Porcentaje",80,"Informes y Estadisticas","Se cuenta con los recursos necesarios"]
[null,"Municipio de la Huerta, Jalisco","Programa de Participación Ciudadana","Promoción y Fomento","Participación Ciudadana","Desarrollo Social","Vivienda y Servicvios a la Comunidad","Desarrollo Comunitario","Política y Gobierno","Hacia una democracia participativa","Gobierno Efectivo e Integridad Pública","Innovación Gubernamental","Gobierno","Reducir la burocracia y la inneficiencia de las dependencias del gobierno municipal","Actividad 1.4",null,"CONSEJOS SOCIALES DE PARTICIPACIÓN CIUDADANA","NÚMERO DE CONSEJOS SOCIALES INTEGRADOS","MIDE LA CANTIDAD DE CONSEJOS SOCIALES INTEGRADOS EN 2020","Eficiencia","Gestión","Número de consejos sociales integrados, por 14, entre 100",14,14,"Anual","Porcentaje",80,"Informes y Estadisticas","Se cuenta con los recursos necesarios"]
[null,"Municipio de la Huerta, Jalisco","Programa de Participación Ciudadana","Promoción y Fomento","Participación Ciudadana","Desarrollo Social","Vivienda y Servicvios a la Comunidad","Desarrollo Comunitario","Política y Gobierno","Hacia una democracia participativa","Gobierno Efectivo e Integridad Pública","Innovación Gubernamental","Gobierno","Reducir la burocracia y la inneficiencia de las dependencias del gobierno municipal","Actividad 1.5",null,"IMPLEMENTACIÓN DE MÓDULO DE CONSULTAS CIUDADANAS EN LÍNEA A TRAVEZ DE LA APLICACIÓN MÓVIL","NÚMERO DE CONSULTAS EN LÍNEA","MIDE LA CANTIDAD DE CONSULTAS IMPLEMENTADAS EN 2020","Eficiencia","Gestión","Número de consultas realizadas, por 12, entre 100",12,12,"Anual","Porcentaje",80,"Informes y Estadisticas","Se cuenta con los recursos necesarios"]
[null,"Municipio de la Huerta, Jalisco","Fortalecer la Cultura de Prevención en el Municipio","Prestación de servicios públicos","Protección Civil","Gobierno","Asuntos de Orden Público y Seguridad Interior","Protección Civil","México_Próspero","4.8. Desarrollar los sectores estratégicos del país","O6_Disminuir_los_factores_de_riesgo_y_mejorar_la_atención_ante_desastres","O6E2 Incrementar la cultura de protección civil en la sociedad, el gobierno y la empresa","Brindar las herramientas necesarias a la sociedad de como actuar en caso de una contingencia.","Mantener programas de capacitacion","Fin",null,"Lograr que la Sociedad Huertense  tenga los principios de la Prevencion tanto el sector educativo, comecial y turistico  siendo haci un Municipo Prospero y seguro.","Fortalecimiento en prevencion en la socidad del Municipio","Crear programas de prevencion dirigidos a los diferentes esquemas sociales.","Eficacia","Gestión","Planes y Programas de prevencion realizados entre los diferentes sectores",2,3,"Mensual","Porcentual",0.66," Elaboracion de Planes de contiengencia y Progrmas operativos","Realizar mecanismos de capacitacion donde la sociedad pueda participar.",{"$nulls":13},205044,16691.59,8074]
[null,"Municipio de la Huerta, Jalisco","Fortalecer la Cultura de Prevención en el Municipio","Prestación de servicios públicos","Protección Civil","Gobierno","Asuntos de Orden Público y Seguridad Interior","Protección Civil","México_Próspero","4.8. Desarrollar los sectores estratégicos del país","O6_Disminuir_los_factores_de_riesgo_y_mejorar_la_atención_ante_desastres","O6E2 Incrementar la cultura de protección civil en la sociedad, el gobierno y la empresa","Brindar las herramientas necesarias a la sociedad de como actuar en caso de una contingencia.","Mantener programas de capacitacion","Propósito",null,"Disminucion de riesgos de siniestros en el entorno de la sociedad dentro de un plan de contingenci.a","La prevencion que salveguarde la vida, el entorno de la sociedad","Lograr fortalecer la cultura de prevencion dentro de la sociedad","Eficacia","Gestión","Saldo blanco en las contingencias presentadas en el Municipio entre los eventos realizados",3,3,"Mensual","Fallecimientos",1,"Supervicones y capacitaciones constantes en todo el municipio","Mantenerce alerta ante cual quier contigencia que se presente dentro o fuera del entorno de la poblacion"]
[null,"Municipio de la Huerta, Jalisco","Fortalecer la Cultura de Prevención en el Municipio","Prestación de servicios públicos","Protección Civil","Gobierno","Asuntos de Orden Público y Seguridad Interior","Protección Civil","México_Próspero","4.8. Desarrollar los sectores estratégicos del país","O6_Disminuir_los_factores_de_riesgo_y_mejorar_la_atención_ante_desastres","O6E2 Incrementar la cultura de protección civil en la sociedad, el gobierno y la empresa","Brindar las herramientas necesarias a la sociedad de como actuar en caso de una contingencia.","Mantener programas de capacitacion","Componente 1",null,"Se brindara informacion en folletos, manuales, paginas electronicas y medios auditivos","Informacion entregada a la sociedad","Lograr que la informacion sea clara y precisa para que se pueda comprnder","Eficiencia","Estratégico","Informacion entregada entre el total de la sociedad",80,100,"Periodo","Porcentual",0.8,"interne, perifoneos, gacetas,  paginas oficiales del Municipio.","Contar con los medios de difucion que lograr llegar a la sociedad dicha informacion.",567290,146200,27000,null,800000]
[null,"Municipio de la Huerta, Jalisco","Fortalecer la Cultura de Prevención en el Municipio","Prestación de servicios públicos","Protección Civil","Gobierno","Asuntos de Orden Público y Seguridad Interior","Protección Civil","México_Próspero","4.8. Desarrollar los sectores estratégicos del país","O6_Disminuir_los_factores_de_riesgo_y_mejorar_la_atención_ante_desastres","O6E2 Incrementar la cultura de protección civil en la sociedad, el gobierno y la empresa","Brindar las herramientas necesarias a la sociedad de como actuar en caso de una contingencia.","Mantener programas de capacitacion","Actividad 1.1",null,"Brindar capacitaciones de prevencion al sector educativo,publico y privado.","Pocentajes de personas que recibieron los cursos de capacitacion.","Mide la cantidad de instituciones que recibiran capacitacion, las cuales  formaran sus brigadas de apoyo. ","Eficacia","Gestión","Cantidad de escuelas entre instituciones  capacitadas",60,80,"anual","Porcentual",0.8,"Registro interno en bitacoras para llevar control del objetivo del programa ","Contar con un programa de planeacion donde se programen las escuelas "]
[null,"Municipio de la Huerta, Jalisco","Fortalecer la Cultura de Prevención en el Municipio","Prestación de servicios públicos","Protección Civil","Gobierno","Asuntos de Orden Público y Seguridad Interior","Protección Civil","México_Próspero","4.8. Desarrollar los sectores estratégicos del país","O6_Disminuir_los_factores_de_riesgo_y_mejorar_la_atención_ante_desastres","O6E2 Incrementar la cultura de protección civil en la sociedad, el gobierno y la empresa","Brindar las herramientas necesarias a la sociedad de como actuar en caso de una contingencia.","Mantener programas de capacitacion","Actividad 1.2",null,"Fomentar lineamientos en establecimientos de alto riesgo","Formular  padron de establecimientos para realizar superviciones.","Inspeccionar todo el Municipio para conformar un padron de establecimientos donde existan riesgos laborales.","Eficiencia","Eficiencia","Cantidad de establecimientos entre Establecimientos supervizados",250,300,"mensual","Porcentual",0.835,"Registro de padron internode la unidad a cargo de realizar las superviciones","Sanciones a establecimientos que no cuenten con mediadas de seguridad internas"]
[null,"Municipio de la Huerta, Jalisco","Fortalecer la Cultura de Prevención en el Municipio","Prestación de servicios públicos","Protección Civil","Gobierno","Asuntos de Orden Público y Seguridad Interior","Protección Civil","México_Próspero","4.8. Desarrollar los sectores estratégicos del país","O6_Disminuir_los_factores_de_riesgo_y_mejorar_la_atención_ante_desastres","O6E2 Incrementar la cultura de protección civil en la sociedad, el gobierno y la empresa","Brindar las herramientas necesarias a la sociedad de como actuar en caso de una contingencia.","Mantener programas de capacitacion","Actividad 1.3",null,"Apoyo en eventos socio-organizativos","Elaboracion de planes de contingencia para eventos masivos","Implementacion de planes de continegencia en consentacion masivas de personas para brindar seguridad a los asistentes","Eficacia","Eficacia","Eventos realizados entre eventos atendidos",80,100,"mensual","Cantidad se solicitudes recibidas",0.8,"Control interno sde solicitudes","Programacion de eventos"]
[null,"Municipio de la Huerta, Jalisco","Fortalecer la Cultura de Prevención en el Municipio","Prestación de servicios públicos","Protección Civil","Gobierno","Asuntos de Orden Público y Seguridad Interior","Protección Civil","México_Próspero","4.8. Desarrollar los sectores estratégicos del país","O6_Disminuir_los_factores_de_riesgo_y_mejorar_la_atención_ante_desastres","O6E2 Incrementar la cultura de protección civil en la sociedad, el gobierno y la empresa","Brindar las herramientas necesarias a la sociedad de como actuar en caso de una contingencia.","Mantener programas de capacitacion","Actividad 1.4",null,"Brindar servicio de emergencia a personas que requieran ser trasladadas a una institucion publica o privada","Otorgar servicios en unidades de emergencia","Contar con un programa operativo donde se brinde el servicio de traslados de emergencias a diferentes instituciones","Eficiencia","Eficacia","Solicitudes enviadas entre traslados realizados",15,20,"mensual","Acciones realizadas",0.75,"Bitacoras de servicios realizados","Verificar que el servicio requiera unidad de emergencia"]
[null,"Municipio de la Huerta, Jalisco","Manejo del Patrimonio municipal","Provisión de bienes públicos","Patrimonio Municipal","Gobierno","Coordinación_Política_de_Gobierno","1.3.3 Preservación y Cuidado del Patrimonio Público","México_Próspero","4.1. Mantener la estabilidad macroeconómica del país","O25_Mejorar_la_efectividad_de_las_instituciones_públicas_y_gubernamentales","O25E7 Mejorar la planeación, programación, el seguimiento y la evaluación para una gestión pública eficiente orientada a resultados",null,null,"Fin",null,"Contribuir a llevar el control y la organización de los bienes muebles e inmuebles asi como el control vehicular ","porcentnje de actualizacion de inventario","Propiciar llevar mejor control de los todos los bienes muebles e inmuebles de todos los departamentos para el cuidado y manejo de dichos muebles.","Eficacia","Estratégico","(inventario realizado/total de inventarios)*100",2,2,"Semestral","%",1,"acuse de recibo de informe","falta de accion de otras areas",{"$nulls":13},111975,1523765.56,694231.28,null,3325374]
[null,"Municipio de la Huerta, Jalisco","Manejo del Patrimonio municipal","Provisión de bienes públicos","Patrimonio Municipal","Gobierno","Coordinación_Política_de_Gobierno","1.3.3 Preservación y Cuidado del Patrimonio Público","México_Próspero","4.1. Mantener la estabilidad macroeconómica del país","O25_Mejorar_la_efectividad_de_las_instituciones_públicas_y_gubernamentales","O25E7 Mejorar la planeación, programación, el seguimiento y la evaluación para una gestión pública eficiente orientada a resultados",null,null,"Propósito",null,"Entregar en tiempo y forma  a cada director o encargado de area, una lista de todos los bienes muebles que tiene en su resguardo en su area de trabajo y el buen funcionamiento del control vehicular."," Actualizacion de los resguardos y mantenimiento de los vehiculos.","Contribuir a tener actuallizado todos los resguardos y requisiciones para el mantenimeinto y reparaciones de dichos muebles.","Eficacia","Estratégico","(inventario realizado/total de inventarios)*100",2,2,"Semestral","%",1,"acuse de recibo de informe","falta de accion de otras areas"]
[null,"Municipio de la Huerta, Jalisco","Manejo del Patrimonio municipal","Provisión de bienes públicos","Patrimonio Municipal","Gobierno","Coordinación_Política_de_Gobierno","1.3.3 Preservación y Cuidado del Patrimonio Público","México_Próspero","4.1. Mantener la estabilidad macroeconómica del país","O25_Mejorar_la_efectividad_de_las_instituciones_públicas_y_gubernamentales","O25E7 Mejorar la planeación, programación, el seguimiento y la evaluación para una gestión pública eficiente orientada a resultados",null,null,"Componente 1",null,"invetario de alta y baja de  bienes mubles e inmuebles","Actualizacion cada 6 meses del invetario general.","Contribuir  a llevar un buen manejo de todas los muebles dados de alta asi como las bajas para tener un buen inventario general.","Eficacia","Estratégico","(inventario realizado/total de inventarios)*100",2,2,"Semestral","%",1,"acuse de recibo de informe","falta de accion de otras areas",383397,6801600,3856800,null,3140000]
[null,"Municipio de la Huerta, Jalisco","Manejo del Patrimonio municipal","Provisión de bienes públicos","Patrimonio Municipal","Gobierno","Coordinación_Política_de_Gobierno","1.3.3 Preservación y Cuidado del Patrimonio Público","México_Próspero","4.1. Mantener la estabilidad macroeconómica del país","O25_Mejorar_la_efectividad_de_las_instituciones_públicas_y_gubernamentales","O25E7 Mejorar la planeación, programación, el seguimiento y la evaluación para una gestión pública eficiente orientada a resultados",null,null,"Actividad 1.1",null,"Guardar y organizar  todas las facturas originales, de todos los bienes muebles adquiridos por la admiistracion","Relevancia en el ordenamiento de todos os documentos de los bienes muebles e inmuebles.","Al momento que se den de alta los bienes muebles porder organizarlos y por orden llevar un bune control.","Eficacia","Estratégico","(inventario realizado/total de inventarios)*100",2,2,"Semestral","%",1,"acuse de recibo de informe","falta de accion de otras areas"]
[null,"Municipio de la Huerta, Jalisco","Manejo del Patrimonio municipal","Provisión de bienes públicos","Patrimonio Municipal","Gobierno","Coordinación_Política_de_Gobierno","1.3.3 Preservación y Cuidado del Patrimonio Público","México_Próspero","4.1. Mantener la estabilidad macroeconómica del país","O25_Mejorar_la_efectividad_de_las_instituciones_públicas_y_gubernamentales","O25E7 Mejorar la planeación, programación, el seguimiento y la evaluación para una gestión pública eficiente orientada a resultados",null,null,"Actividad 1.2",null,"Dar de alta los bienes adquiridos, donados o en comodato y asignarlos con su resguardo en las areas correspondientes.","Actualizacion  y -Monitoriar todos los bienes adquiridos, donados o en comodato.","Estar alimentando en el sistema los nuevos bienes adquiridos, donados o en comodato para llevar una mejor transparencia.","Eficacia","Estratégico","(inventario realizado/total de inventarios)*100",2,2,"Semestral","%",1,"acuse de recibo de informe","falta de accion de otras areas"]
[null,"Municipio d ela Huerta, Jalisco","Manejo de los ingresos catastrales de la Hacienda Municipal ","Prestación de Servicios Públicos","Catastro","Gobierno","Otros_Servicios_Generales","1.8.1 Servicios Registrales, Administrativos y Patrimoniales","México_Próspero","4.1. Mantener la estabilidad macroeconómica del país","O25_Mejorar_la_efectividad_de_las_instituciones_públicas_y_gubernamentales","O25E7 Mejorar la planeación, programación, el seguimiento y la evaluación para una gestión pública eficiente orientada a resultados","Incrementar la inversion externa ","Crear incentivos para atraer inversiones externas ","Fin",null,"Propiciar a fortalecer la Hacienda Municipal a traves del incremento de los ingresos de gestion","Porcentaje de autonomia de ingresos","Contribuir a fortalecer la Hacienda Municipal a traves del incremento de los ingresos de gestion","Eficacia","Estratégico","(ingresos de gestion año actual/ingresos totales)*100",null,null,"Anual","%",0.42,"Cuenta publica","Inestabilidad política,\neconómica y social",{"$nulls":13},274006.5,5294.8,101326.9,null,3550.01]
[null,"Municipio d ela Huerta, Jalisco","Manejo de los ingresos catastrales de la Hacienda Municipal ","Prestación de Servicios Públicos","Catastro","Gobierno","Otros_Servicios_Generales","1.8.1 Servicios Registrales, Administrativos y Patrimoniales","México_Próspero","4.1. Mantener la estabilidad macroeconómica del país","O25_Mejorar_la_efectividad_de_las_instituciones_públicas_y_gubernamentales","O25E7 Mejorar la planeación, programación, el seguimiento y la evaluación para una gestión pública eficiente orientada a resultados","Incrementar la inversion externa ","Crear incentivos para atraer inversiones externas ","Propósito",null,"Los contribuyentes pagan sus contribuciones en tiempo y forma","Porcentaje de contribuyentes cumplidos","Los contribuyentes pagan sus contribuciones en tiempo y forma","Eficacia","Estratégico","(Contribuyentes cumplidos/Contribuyentes obligados)*100 Nota predial y mercado",null,null,"Anual","%",0.8,"Cuenta publica","Inestabilidad política,\neconómica y social"]
[null,"Municipio d ela Huerta, Jalisco","Manejo de los ingresos catastrales de la Hacienda Municipal ","Prestación de Servicios Públicos","Catastro","Gobierno","Otros_Servicios_Generales","1.8.1 Servicios Registrales, Administrativos y Patrimoniales","México_Próspero","4.1. Mantener la estabilidad macroeconómica del país","O25_Mejorar_la_efectividad_de_las_instituciones_públicas_y_gubernamentales","O25E7 Mejorar la planeación, programación, el seguimiento y la evaluación para una gestión pública eficiente orientada a resultados","Incrementar la inversion externa ","Crear incentivos para atraer inversiones externas ","Componente 1",null,"Certeza en el valor fiscal y tasa impositiva del inmueble recibida, del giro y zona federal","Porcentaje de actualización de las bases catastrales, zona federal y licencias de giros","Certeza en el valor fiscal y tasa impositiva del inmueble recibida, del giro y zona federal","Eficacia","Estratégico","(Inmuebles actualizados año actual/total de inmuebles a actualizar año base 2015)*100",null,null,"Anual","%",0.2,"Cuenta publica","Inestabilidad política,\neconómica y social",758087,30700,240308,null,29000]
[null,"Municipio d ela Huerta, Jalisco","Manejo de los ingresos catastrales de la Hacienda Municipal ","Prestación de Servicios Públicos","Catastro","Gobierno","Otros_Servicios_Generales","1.8.1 Servicios Registrales, Administrativos y Patrimoniales","México_Próspero","4.1. Mantener la estabilidad macroeconómica del país","O25_Mejorar_la_efectividad_de_las_instituciones_públicas_y_gubernamentales","O25E7 Mejorar la planeación, programación, el seguimiento y la evaluación para una gestión pública eficiente orientada a resultados","Incrementar la inversion externa ","Crear incentivos para atraer inversiones externas ","Actividad 1.1",null,"Actualización de las bases de datos registrados","Porcentajes de avisos de transmision patrimonial","Actualización de las bases de datos registrados","Eficacia","Estratégico","(Avisos aplicados 2020/Avisos presentados 2020)*100",null,null,"Semestral","%",0.98,"Base de datos catastral","Inestabilidad política,\neconómica y social"]
[null,"Municipio d ela Huerta, Jalisco","Manejo de los ingresos catastrales de la Hacienda Municipal ","Prestación de Servicios Públicos","Catastro","Gobierno","Otros_Servicios_Generales","1.8.1 Servicios Registrales, Administrativos y Patrimoniales","México_Próspero","4.1. Mantener la estabilidad macroeconómica del país","O25_Mejorar_la_efectividad_de_las_instituciones_públicas_y_gubernamentales","O25E7 Mejorar la planeación, programación, el seguimiento y la evaluación para una gestión pública eficiente orientada a resultados","Incrementar la inversion externa ","Crear incentivos para atraer inversiones externas ","Actividad 1.2",null,"Actualización de la Cartografia Municipal","Porcentaje de actualizacion de Cartografia Municipal ","Actualizacion de actualizacion de Cartografia Municipal ","Eficiencia ","Estratégico","(Cartografia actualizada 2020/Cartografia registrada 2020)*100",null,null,"Semestral","%",0.2,"Cartografia","Inestabilidad política,\neconómica y social"]
[null,"Municipio de la Huerta, Jalisco","Atención de Calidad al Ciudadano","Apoyo al Proceso Presupuestario y para Mejorar la Eficiencia Institucional","Oficialia de Partes","Gobierno","Otros_Servicios_Generales","1.8.5 Otros","México_Incluyente","2.2. Transitar hacia una sociedad equitativa e incluyente","O25_Mejorar_la_efectividad_de_las_instituciones_públicas_y_gubernamentales","O25E5 Mejorar la calidad y la prestación de servicios públicos","FORTALECER LA ATENCIÓN A LA CIUDADANÍA","BRINDAR ATENCIÓN DE CALIDAD Y SATISFACTORIA","Fin",null,"FORTALECER LA ATENCIÓN DE LA CIUDADANIA","DE RESULTADOS","EFICACIA","Calidad","Estratégico","30 A 50 PERSONAS APROXIMADAMENTE SE RECIBEN EN LAS INSTALACIONES DEL H. AYUNTAMIENTO,  BRINDÁNDOLES  ATENCIÓN DE CALIDAD. ",800,900,"Mensual","NÚMERO DE PERSONAS",0.9,"LA OPINIÓN CIUDADANA.","QUE EL PERSONAL DE OFICIALIA DE PARTES TIENE  DISPONIBILIDAD DE BRINDAR UNA BUENA ATENCIÓN A TODA LA CIUDADANIA.",{"$nulls":13},117779.88,467.6]
[null,"Municipio de la Huerta, Jalisco","Atención de Calidad al Ciudadano","Apoyo al Proceso Presupuestario y para Mejorar la Eficiencia Institucional","Oficialia de Partes","Gobierno","Otros_Servicios_Generales","1.8.5 Otros","México_Incluyente","2.2. Transitar hacia una sociedad equitativa e incluyente","O25_Mejorar_la_efectividad_de_las_instituciones_públicas_y_gubernamentales","O25E5 Mejorar la calidad y la prestación de servicios públicos","FORTALECER LA ATENCIÓN A LA CIUDADANÍA","BRINDAR ATENCIÓN DE CALIDAD Y SATISFACTORIA","Propósito",null,"SERVIR A LA CIUDADANIA CON CALIDAD, DANDO SEGUIMIENTO A TODAS LAS SOLICITUDES HASTA QUE SEAN CUMPLIDAS.","DE RESULTADOS","EFICACIA","Calidad","Estratégico","5 A 10 PERSONAS SE RECIBEN EN OFICIALIA DE PARTES SOLICITANDO UN SERVICIO DE LAS DIFERENTES ÁREAS. A TRAVEZ DE UN OFICIO Y ALGUNOS SE LES APOYA ELABORANDOLES EL OFICIO EN EL QUE SE REDACTA LO QUE ELLOS SOLICITAN.",50,70,"Mensual","NÚMERO DE PERSONAS Y CANTIDAD DE OFICIOS Y FILTRO EN EXCEL.",0.9,"PLATAFORMA DE OFICIALIA DE PARTES.","EL PERSONAL DE OFICIALIA DE PARTES ATIENDE A TODO CIUDADANO QUE SOLICITE UN SERVICIO Y CONFIRMA EN EL AREA RESPONSABLE SU CUMPLIMIENTO."]
[null,"Municipio de la Huerta, Jalisco","Atención de Calidad al Ciudadano","Apoyo al Proceso Presupuestario y para Mejorar la Eficiencia Institucional","Oficialia de Partes","Gobierno","Otros_Servicios_Generales","1.8.5 Otros","México_Incluyente","2.2. Transitar hacia una sociedad equitativa e incluyente","O25_Mejorar_la_efectividad_de_las_instituciones_públicas_y_gubernamentales","O25E5 Mejorar la calidad y la prestación de servicios públicos","FORTALECER LA ATENCIÓN A LA CIUDADANÍA","BRINDAR ATENCIÓN DE CALIDAD Y SATISFACTORIA","Componente 1",null,"TURNAR EN TIEMPO Y FORMA LA CORRESPONDENCIA Y LLAMADAS RECIBIDAS, AL ÁREA RESPONSABLE DE ATENDER EL SERVICIO SOLICITADO","DE RESULTADOS","EFICACIA","Eficacia","Gestión","5 A 20 PERSONAS ACUDEN A OFICIALIA DE PARTES PARA HACER ENTREGA DE OFICIOS, DOCUMENTOS E INVITACIONES. Y SE ATIENDEN DE 20 A 40 LLAMADAS LAS CUALES SE TURNAN A LAS ÁREAS QUE SE ENCUENTRAN DENTRO DE LAS INSTALACIONES DEL H. AYUNTAMIENTO.",50,60,"Mensual","CANTIDAD DE OFICIOS Y CANTIDAD DE LLAMADAS.",0.95,"PLATAFORMA DE OFICIALIA DE PARTES.","EL PERSONAL DE OFICIALIA DE PARTES ENTREGA OPORTUNAMENTE LA CORRESPONDENCIA. ",355562,6000]
[null,"Municipio de la Huerta, Jalisco","Atención de Calidad al Ciudadano","Apoyo al Proceso Presupuestario y para Mejorar la Eficiencia Institucional","Oficialia de Partes","Gobierno","Otros_Servicios_Generales","1.8.5 Otros","México_Incluyente","2.2. Transitar hacia una sociedad equitativa e incluyente","O25_Mejorar_la_efectividad_de_las_instituciones_públicas_y_gubernamentales","O25E5 Mejorar la calidad y la prestación de servicios públicos","FORTALECER LA ATENCIÓN A LA CIUDADANÍA","BRINDAR ATENCIÓN DE CALIDAD Y SATISFACTORIA","Actividad 1.1",null,"ATENCIÓN PERSONALIZADA A LA CIUDADANÍA","DE RESULTADOS","EFICACIA","Calidad","Estratégico","15 A 30 PERSONAS SE RECIBEN EN LAS INSTALACIONES DEL H. AYUNTAMIENTO, ORIENTANDOLAS AL ÁREA QUE CORRESPONDA SU PETICIÓN PARA SER ATENDIDOS DE MANERA ADECUADA Y OPORTUNA.",30,40,"Mensual","OPINIÓN CIUDADANA Y PERSONAL DE OFICILÍA DE PARTES.",0.9,"PERSONAL DE OFICIALIA DE PARTES."]
[null,"Municipio de la Huerta, Jalisco","Atención de Calidad al Ciudadano","Apoyo al Proceso Presupuestario y para Mejorar la Eficiencia Institucional","Oficialia de Partes","Gobierno","Otros_Servicios_Generales","1.8.5 Otros","México_Incluyente","2.2. Transitar hacia una sociedad equitativa e incluyente","O25_Mejorar_la_efectividad_de_las_instituciones_públicas_y_gubernamentales","O25E5 Mejorar la calidad y la prestación de servicios públicos","FORTALECER LA ATENCIÓN A LA CIUDADANÍA","BRINDAR ATENCIÓN DE CALIDAD Y SATISFACTORIA","Actividad 1.2",null,"RECIBIR Y TURNAR CORRESPONDENCIA A LAS AREAS QUE LES COMPETE.","DE RESULTADOS","EFICACIA","Eficacia","Gestión","SE RECIBEN 10 A 25 DOCUMENTOS DE FORMA PERSONAL O VÍA ELECTRONICA, SE FIRMAN Y SELLAN DE RECIBIDO, SE TURNA AL ÁREA(S) QUE CORRESPONDA(S), Y SE CAPTURA EN LA BASE DE DATOS CON LA FINALIDAD DE LLEVAR EL CONTROL DE LA CORRESPONDENCIA RECIBIDA.",10,20,"Mensual","BASE DE DATOS DE OFICIALÍA DE PARTES Y COPIAS DE RECIBIDO.",0.95,"BASE DE DATOS DE OFICIALÍA DE PARTES.","EL PERSONAL DE OFICIALIA DE PARTES RECIBE Y TURNA EN TIEMPO Y FORMA LA CORRESPONDECIA."]
[null,"Municipio de la Huerta, Jalisco","Programa anual de Dirección de Turismo ","Promoción y Fomento","Turismo","Desarrollo Economico","Desarrollo Economico","Turismo","México_Incluyente","2.1. Garantizar el ejercicio efectivo de los derechos sociales para toda la población","O27_Incrementar_la_capacidad_innovadora_en_los_sectores_social_privado_y_público","O27E4 Promover la innovación en el sector gubernamental en todos los órdenes y niveles de gobierno","Promoción turistica ","Promoción turistica ","Fin",null,"Impulsar el desarrollo turístico en La Huerta Jalisco. ","Promoción Turistica ","Se identifican  las actividades necesarias para la promoción turistica del municipio","Eficacia","Estratégico","Númerom de proyectos alcanzadas ",5,3,"Anual","Cantidad",5,"Ficha de evaluación ","La población responde favorablemente y se logra la meta",{"$nulls":13},52299,500.7,23712.67]
[null,"Municipio de la Huerta, Jalisco","Programa anual de Dirección de Turismo ","Promoción y Fomento","Turismo","Desarrollo Economico","Desarrollo Economico","Turismo","México_Incluyente","2.1. Garantizar el ejercicio efectivo de los derechos sociales para toda la población","O27_Incrementar_la_capacidad_innovadora_en_los_sectores_social_privado_y_público","O27E4 Promover la innovación en el sector gubernamental en todos los órdenes y niveles de gobierno","Promoción turistica ","Promoción turistica ","Propósito",null,"Realizar eventos o actividades para promover e impulsar el sector turístico ","Indice de politicas de turismo","Mide la cantidad de politicas turisticas ","Eficacia","Estratégico","Número de acciones de fomento de las actividdes de promoción turistica 3 (meta) por 100",5,3,"Anual","Porcentaje ",5,"Registro de actividades y cronograma ","Se cuenta con los recursos necesarios para realizar los proyectos. "]
[null,"Municipio de la Huerta, Jalisco","Programa anual de Dirección de Turismo ","Promoción y Fomento","Turismo","Desarrollo Economico","Desarrollo Economico","Turismo","México_Incluyente","2.1. Garantizar el ejercicio efectivo de los derechos sociales para toda la población","O27_Incrementar_la_capacidad_innovadora_en_los_sectores_social_privado_y_público","O27E4 Promover la innovación en el sector gubernamental en todos los órdenes y niveles de gobierno","Promoción turistica ","Promoción turistica ","Componente 1",null,"Promoción turistica la Huerta 2020","Actividades Realizadas ","Se contabilizan  las actividades necesarias para la promoción turistica del municipio","Eficacia","Gestión","Númerom de personas alcanzadas ",3,3,"Anual","Cantidad",3,"Ficha de evaluación ","La población responde favorablemente y se logra la meta",144696,49500,145000]
[null,"Municipio de la Huerta, Jalisco","Programa anual de Dirección de Turismo ","Promoción y Fomento","Turismo","Desarrollo Economico","Desarrollo Economico","Turismo","México_Incluyente","2.1. Garantizar el ejercicio efectivo de los derechos sociales para toda la población","O27_Incrementar_la_capacidad_innovadora_en_los_sectores_social_privado_y_público","O27E4 Promover la innovación en el sector gubernamental en todos los órdenes y niveles de gobierno","Promoción turistica ","Promoción turistica ","Actividad 1.1",null,"Realizar un torneo de pesca.","Porcentaje por cumplimiento en el evento ","Se organizan los requerimientos y se convoca a los participantes ","Eficiencia","Gestión","Número de personas alcanzadas ",2,1,"Anual","Cantidad",1,"Lista de actividades y participantes, convocatorias y orden de perifoneo ","Contar con la participación de los habitantes de la comunidad. Y en este caso de los visitantes"]
[null,"Municipio de la Huerta, Jalisco","Programa anual de Dirección de Turismo ","Promoción y Fomento","Turismo","Desarrollo Economico","Desarrollo Economico","Turismo","México_Incluyente","2.1. Garantizar el ejercicio efectivo de los derechos sociales para toda la población","O27_Incrementar_la_capacidad_innovadora_en_los_sectores_social_privado_y_público","O27E4 Promover la innovación en el sector gubernamental en todos los órdenes y niveles de gobierno","Promoción turistica ","Promoción turistica ","Actividad 1.2",null,"Llevar a cabo competencias de natación ","Porcentaje por cumplimiento en el evento ","se desarrollan  las actividades y se establecen los roles de trabajo ","Eficiencia","Gestión","Número de personas alcanzadas en el evento ",2,1,"Semestral","Cantidad",1,"Roles de trabajo, convocatoria, lista de participantes y orden de perifoneo. ","Contar con la participación de los habitantes de la comunidad. Y en este caso de los visitantes"]
[null,"Municipio de la Huerta, Jalisco","Programa anual de Dirección de Turismo ","Promoción y Fomento","Turismo","Desarrollo Economico","Desarrollo Economico","Turismo","México_Incluyente","2.1. Garantizar el ejercicio efectivo de los derechos sociales para toda la población","O27_Incrementar_la_capacidad_innovadora_en_los_sectores_social_privado_y_público","O27E4 Promover la innovación en el sector gubernamental en todos los órdenes y niveles de gobierno","Promoción turistica ","Promoción turistica ","Actividad 1.3",null,"Organizar un tianguis cultural ","Porcentaje por cumplimiento en el evento ","Se diseña el plan de trabajo, se convoca a las personas y se delegan espacios a las personas participantes. ","Eficiencia","Gestión","Número de personas alcanzadas en el evento ",2,1,"Anual","Cantidad",1,"Lista de participantes e invitaciones. ","Se cuenta con la participación del equipo de trabajo, ciudadanía, instituciones y empresas participantes"]
[null,"Municipio de la Huerta, Jalisco","Programa anual de Dirección de Turismo ","Promoción y Fomento","Turismo","Desarrollo Economico","Desarrollo Economico","Turismo","México_Incluyente","2.1. Garantizar el ejercicio efectivo de los derechos sociales para toda la población","O27_Incrementar_la_capacidad_innovadora_en_los_sectores_social_privado_y_público","O27E4 Promover la innovación en el sector gubernamental en todos los órdenes y niveles de gobierno","Promoción turistica ","Promoción turistica ","Actividad 1.4",null,"Llevar a cabo un concurso Gastronomico ","Porcentaje por cumplimiento en el evento ","Se diseña el plan de trabajo, se convoca a los restaurantes y se identifica el espacio de participación.","Eficiencia","Gestión","Número de restautrantes alcanzados en el evento ",2,2,"Semestral","Cantidad",2,"Convocatorias y lista de participantes ","Se cuenta con la participación del equipo de trabajo, ciudadanía, instituciones y empresas participantes"]
[null,"Municipio de la Huerta, Jalisco","Programa anual de Dirección de Turismo ","Promoción y Fomento","Turismo","Desarrollo Economico","Desarrollo Economico","Turismo","México_Incluyente","2.1. Garantizar el ejercicio efectivo de los derechos sociales para toda la población","O27_Incrementar_la_capacidad_innovadora_en_los_sectores_social_privado_y_público","O27E4 Promover la innovación en el sector gubernamental en todos los órdenes y niveles de gobierno","Promoción turistica ","Promoción turistica ","Actividad 1.5",null,"Campañas publicitarias ","Campañas Publicitarias ","Mide la cantidad de campañas publicitarias realizadas en el año. ","Eficacia","Gestión","Número de campañas publicitarias entre 3 (meta) por 100",2,2,"Anual","Porcentaje ",3,"Requisición de material ","Se cuenta con los insumos necesarios "]
[null,"Municipio de la Huerta, Jalisco","Programa anual de Dirección de Turismo ","Promoción y Fomento","Turismo","Desarrollo Economico","Desarrollo Economico","Turismo","México_Incluyente","2.1. Garantizar el ejercicio efectivo de los derechos sociales para toda la población","O27_Incrementar_la_capacidad_innovadora_en_los_sectores_social_privado_y_público","O27E4 Promover la innovación en el sector gubernamental en todos los órdenes y niveles de gobierno","Promoción turistica ","Promoción turistica ","Actividad 1.6",null,"Colocar Modulos de Información ","Porcentaje de informaicón impartida ","Entrega de la información recabada y organizada. ","Eficacia","Gestión","Número de folletos impartidos 1000 (meta) por 100",1,1,"Periodo","Porcentaje ",2,"Autorización de requisiciones ","Autorización financiera "]
[null,"Municipio de la Huerta, Jalisco","Programa anual de Dirección de Turismo ","Promoción y Fomento","Turismo","Desarrollo Economico","Desarrollo Economico","Turismo","México_Incluyente","2.1. Garantizar el ejercicio efectivo de los derechos sociales para toda la población","O27_Incrementar_la_capacidad_innovadora_en_los_sectores_social_privado_y_público","O27E4 Promover la innovación en el sector gubernamental en todos los órdenes y niveles de gobierno","Promoción turistica ","Promoción turistica ","Actividad 1.7",null,"Promocionar los destinos turisticos","Promoción Turistica ","Se identifican los destinos a promocionar.","Eficacia","Gestión","Número de destinos aprovados ",1,1,"Anual","Cantidad",1,"Cotizaciónes y autorización de requsición ","Autorización financiera "]
[null,"Municipio de la Huerta, Jalisco","Programa anual de Dirección de Turismo ","Promoción y Fomento","Turismo","Desarrollo Economico","Desarrollo Economico","Turismo","México_Incluyente","2.1. Garantizar el ejercicio efectivo de los derechos sociales para toda la población","O27_Incrementar_la_capacidad_innovadora_en_los_sectores_social_privado_y_público","O27E4 Promover la innovación en el sector gubernamental en todos los órdenes y niveles de gobierno","Promoción turistica ","Promoción turistica ","Actividad 1.8",null,"Bajar un programa para el sector turisticos ","Programa ","Se identifica el programa que fue aprovado ","Economía","Gestión","Número de programas alcanzados ",1,1,"Anual","Cantidad",1,"Requisición de material ","Se verifica si los espacios donde se desean colocar los espectaculares se encuentran en buenas condiciones "]
[null,"Municipio de la Huerta, Jalisco","Programa anual de Dirección de Turismo ","Promoción y Fomento","Turismo","Desarrollo Economico","Desarrollo Economico","Turismo","México_Incluyente","2.1. Garantizar el ejercicio efectivo de los derechos sociales para toda la población","O27_Incrementar_la_capacidad_innovadora_en_los_sectores_social_privado_y_público","O27E4 Promover la innovación en el sector gubernamental en todos los órdenes y niveles de gobierno","Promoción turistica ","Promoción turistica ","Actividad 1.9",null,"Actualizar el registro de prestadores de servcios turísticos ","Registro","Mide el número de empresas registadas junto con sus prestadores de servicio. ","Eficacia","Gestión","Se identifica la cantidad de prestadores de servicio ",1,1,"Periodo","Cantidad",1,"Requisición de material y Hoja de registro ","Se cuenta con los insumos necesarios "]
[null,"Municipio de la Huerta, Jalisco","Programa anual de Dirección de Turismo ","Promoción y Fomento","Turismo","Desarrollo Economico","Desarrollo Economico","Turismo","México_Incluyente","2.1. Garantizar el ejercicio efectivo de los derechos sociales para toda la población","O27_Incrementar_la_capacidad_innovadora_en_los_sectores_social_privado_y_público","O27E4 Promover la innovación en el sector gubernamental en todos los órdenes y niveles de gobierno","Promoción turistica ","Promoción turistica ","Actividad 1.10",null,"Dar continuidad a las capacitaciones para las organizaciones y los prestadores de servicos turísticos.","Capacitación ","Mide el número de capacitaciones impartidas. ","Eficacia","Gestión","Se identifican los cursos de capacitación a impartir. ",2,2,"Periodo","Cantidad",2,"Hoja de registro e instructivos de capacitaciones","Se cuenta con los insumos necesarios "]
[null,"Municipio de la Huerta, Jalisco","Programa Anual de Promoción Economica","Promoción y fomento","CENTRO DE PROMOCION ECONOMICA","Desarrollo Económico","Asuntos_Económicos_Comerciales_y_Laborales_Generales"," Asuntos_Económicos_y_Comerciales_en_General","Economia_Para_El_Bienestar ","Impulsar_la_reactivacion_economica","Desarrollo Económico","Comercio y Servicios ","Desarrollo Económico","incrementar la inversion exteran ","Fin",null,"COORDINAR Y APOYAR EL DESARROLLO ECONÓMICO, EN LAS DIFERENTES ÁREAS ECONÓMICAS DEL MUNICIPIO","INDICE DESARROLLO ECONOMICO","MIDE LA CANTIDAD DE EMPRESAS BENEFICIADAS EN ACCIONES DE PROMOCIÓN ECONÓMICA","Eficacia","Estratégico","NUMERO DE EMPRESAS BENEFICIADAS POR 100 ENTRE NUMERO DE EMPRESAS REGISTRADAS EN LA CAMARA DE COMERCIO ",100,100,"ANUAL","PORCENTAJE",30,"ESTADISTICAS Y REGISTROS ","LAS EMPRESAS REPONDEN FAVORABLEMENTE",{"$nulls":13},85372.5,1644,2510.9]
[null,"Municipio de la Huerta, Jalisco","Programa Anual de Promoción Economica","Promoción y fomento","CENTRO DE PROMOCION ECONOMICA","Desarrollo Económico","Asuntos_Económicos_Comerciales_y_Laborales_Generales"," Asuntos_Económicos_y_Comerciales_en_General","Economia_Para_El_Bienestar ","Impulsar_la_reactivacion_economica","Desarrollo Económico","Comercio y Servicios ","Desarrollo Económico","incrementar la inversion exteran ","Propósito",null,"DESARROLLAR PROYECTOS PARA REACTIVAR LA ECONOMÍA Y FORTALECER A LAS EMPRESAS ","INDICE DE PROMOCION ECONOMICA","MIDE LA CANTIAD DE POLITICAS PUBLICAS DE PROMOCION ECONOMICA DESARROLLADAS EN EL AÑO ","Eficacia","Estratégico","NUMERO DE POLÍTICAS DE PROMOCIÓN ECONÓMICA ENTRE 4, POR 100",4,4,"ANUAL","PORCENTAJE",100,"ESTADISTICAS Y REGISTROS ","SE CUENTA CON LOS RECURSOS NECESARIO PARA DESARROLLAR PROYECTOS"]
[null,"Municipio de la Huerta, Jalisco","Programa Anual de Promoción Economica","Promoción y fomento","CENTRO DE PROMOCION ECONOMICA","Desarrollo Económico","Asuntos_Económicos_Comerciales_y_Laborales_Generales"," Asuntos_Económicos_y_Comerciales_en_General","Economia_Para_El_Bienestar ","Impulsar_la_reactivacion_economica","Desarrollo Económico","Comercio y Servicios ","Desarrollo Económico","incrementar la inversion exteran ","Componente 1",null,"PROYECTO DE FORTALECIMIENTO EMPRESARIAL ","INCREMENTO","INCREMENTAR EL NÚMERO DE EMPRESAS FORTALECIDAS EN EL MUNICIPIO ","Economía","Gestión","NUMERO DE ACCIONES DE FORTALECIMIENTO EMPRESARIAL DESARROLLADAS",3,3,"ANUAL","CUMPLIMIENTO",3,"ESTADISTICAS Y REGISTROS ","SE CUENTA CON LOS RECURSOS NECESARIO PARA DESARROLLAR PROYECTOS",236197,55730,8900,32370]
[null,"Municipio de la Huerta, Jalisco","Programa Anual de Promoción Economica","Promoción y fomento","CENTRO DE PROMOCION ECONOMICA","Desarrollo Económico","Asuntos_Económicos_Comerciales_y_Laborales_Generales"," Asuntos_Económicos_y_Comerciales_en_General","Economia_Para_El_Bienestar ","Impulsar_la_reactivacion_economica","Desarrollo Económico","Comercio y Servicios ","Desarrollo Económico","incrementar la inversion exteran ","Actividad 1.1",null,"ACCESO PARA EL FINANCIAMIENTO EMPRESARIAL","INCREMENTO","INCREMENTAR EL NÚMERO DE EMPRESAS CON ACCESO AL FINANCIAMIENTO EMPRESARIAL ","Economía","Gestión","MIDE LA CANTIDAD DE EMPRESAS FINANCIADAS ",50,25000,"ANUAL","PORCENTAJE",1,"ESTADISTICAS Y REGISTROS ","SE CUENTA CON LOS INSUMOS NECESARIOS "]
[null,"Municipio de la Huerta, Jalisco","Programa Anual de Promoción Economica","Promoción y fomento","CENTRO DE PROMOCION ECONOMICA","Desarrollo Económico","Asuntos_Económicos_Comerciales_y_Laborales_Generales"," Asuntos_Económicos_y_Comerciales_en_General","Economia_Para_El_Bienestar ","Impulsar_la_reactivacion_economica","Desarrollo Económico","Comercio y Servicios ","Desarrollo Económico","incrementar la inversion exteran ","Actividad 1.2",null,"ACCESO A CAPACITACIÓN EMPRESARIAL ","INCREMENTO","INCREMENTAR EL NÚMERO DE EMPRESAS CON ACCESO A CAPACITACIONES EMPRESARIALES","Economía","Gestión","MIDE LA CANTIDAD DE PERSONAS CAPACITADAS ",100,25000,"ANUAL","PORCENTAJE",1,"ESTADISTICAS Y REGISTROS ","SE CUENTA CON LOS INSUMOS NECESARIOS "]
[null,"Municipio de la Huerta, Jalisco","Programa Anual de Promoción Economica","Promoción y fomento","CENTRO DE PROMOCION ECONOMICA","Desarrollo Económico","Asuntos_Económicos_Comerciales_y_Laborales_Generales"," Asuntos_Económicos_y_Comerciales_en_General","Economia_Para_El_Bienestar ","Impulsar_la_reactivacion_economica","Desarrollo Económico","Comercio y Servicios ","Desarrollo Económico","incrementar la inversion exteran ","Actividad 1.3",null,"GESTIONAR PROGRAMAS PARA EL DESARROLLO ECONÓMICO ","GESTION","IDENTIFICACIÓN Y GESTIÓN DE PROGRAMAS ORIENTADOS A LA PROMOCION ECONÓMICA EN BENEFICIO DEL SECTOR PRODUCTIVO EMPRESARIAL","Economía","Gestión","MIDE LA CANTIDAD DE PROGRAMAS DE PROMOCION ECONÓMICA ",1,1,"ANUAL","CUMPLIMIENTO",1,"ESTADISTICAS Y REGISTROS ","SE CUENTA CON LOS INSUMOS NECESARIOS"]
[null,"Municipio de la Huerta, Jalisco","Programa Anual de Promoción Economica","Promoción y fomento","CENTRO DE PROMOCION ECONOMICA","Desarrollo Económico","Asuntos_Económicos_Comerciales_y_Laborales_Generales"," Asuntos_Económicos_y_Comerciales_en_General","Economia_Para_El_Bienestar ","Impulsar_la_reactivacion_economica","Desarrollo Económico","Comercio y Servicios ","Desarrollo Económico","incrementar la inversion exteran ","Actividad 1.4",null,"INCENTIVO EMPRESARIAL MUNICIPAL","CANTIDAD DE APOYOS","MIDE LA CANTIDAD DE APOYOS OTORGADOS ","Economía","Gestión","NUMERO DE APOYOS OTORGADOS ENTRE LA META 70 POR 100",100,100,"ANUAL","PORCENTAJE",70,"ESTADISTICAS Y REGISTROS ","SE CUENTA CON LOS INSUMOS NECESARIOS"]
[null,"Municipio de la Huerta, Jalisco","Programa Anual de Promoción Economica","Promoción y fomento","CENTRO DE PROMOCION ECONOMICA","Desarrollo Económico","Asuntos_Económicos_Comerciales_y_Laborales_Generales"," Asuntos_Económicos_y_Comerciales_en_General","Economia_Para_El_Bienestar ","Impulsar_la_reactivacion_economica","Desarrollo Económico","Comercio y Servicios ","Desarrollo Económico","incrementar la inversion exteran ","Actividad 1.5",null,"PROGRAMA DE EMPLEO TEMPORAL ","INCREMENTO","INCREMENTAR LA ECONOMÍA FAMILIAR A TRAVÉS DE UN EMPLEO TEMPORAL EN BENEFICIO DE LA COMUNIDAD","Economía","Gestión","NUMERO DE PERSONAS BENEFICIADAS POR 100 ENTRE LA POBLACIÓN TOTAL DEL MUNICIPIO DE LA HUERTA",100,25000,"ANUAL","PORCENTAJE",1,"ESTADISTICAS Y REGISTROS ","SE CUENTA CON LOS INSUMOS NECESARIOS "]
[null,"Municipio de la Huerta, Jalisco","Programa Anual de Desarrollo Rural","Promoción y fomento","DESARROLLO RURAL","Desarrollo_Económico","Agropecuaria_Silvicultura_Pesca_y_Caza","3.2.1 Agropecuaria","Política Social","Desarrollo sostenible","Desarrollo Sostenible del Territorio","Gobernanza territorial y desarrollo regional ","Desarrollo rural ","Objetivo de gobernanza, indicadores y proyectos estratégicos","Fin",null,"FOMENTAR LA PARTICIPACIÓN DE LOS PRODUCTORES AGROPECUARIOS EN PROYECTOS PRODUCTIVOS","INDICE DE PARTICIPACIÓN DE PRODUCTORES AGROPECUARIOS","MIDE LA CANTIDAD DE PRODUCTORES AGROPECUARIOS CON ACCIONES DE FOMENTO Y SEGUIMIENTO EN PROYECTOS PRODUCTIVOS","Eficacia","Estratégico","NÚMERO DE PRODUCTORES BENEFICIADOS POR 100 ENTRE EL TOTAL DE PRODUCTORES AGROPECUARIOS DEL MUNICIPIO",650,2400,"Anual","PORCENTAJE",27.08,"FICHAS DE EVALUACIÓN, INFORMES, ESTADISTICAS","SE CUENTA CON LOS RECURSOS NECESARIOS PARA DESARROLLAR EL FOMENTAR LA PARTICIPACIÓN DE LOS PRODUCTORES AGROPECUARIOS",{"$nulls":13},67107,1076.78,950,null,5990.01]
[null,"Municipio de la Huerta, Jalisco","Programa Anual de Desarrollo Rural","Promoción y fomento","DESARROLLO RURAL","Desarrollo_Económico","Agropecuaria_Silvicultura_Pesca_y_Caza","3.2.1 Agropecuaria","Política Social","Desarrollo sostenible","Desarrollo Sostenible del Territorio","Gobernanza territorial y desarrollo regional ","Desarrollo rural ","Objetivo de gobernanza, indicadores y proyectos estratégicos","Propósito",null,"DESARROLLAR ESTRATEGIAS Y PROYECTOS QUE FOMENTEN LA PARTICIPACIÓN DE LOS PRODUCTORES AGROPECUARIOS","INDICE DE POLITICAS PARA LA PARTICIPACIÓN DE PRODUCTORES AGROPECUARIOS","MIDE LA CANTIDAD DE POLITICAS PÚBLICAS DE PARTICIPACIÓN DE PRODUCTORES AGROPECUARIOS EN EL AÑO","Eficacia","Estratégico","NUMERO DE POLITICAS PÚBLICAS DE PARTICIPACIÓN CON PRODUCTORES ENTRE 5 (META) POR 100",5,5,"Anual","PORCENTAJE",80,"INFORMES, ESTADISTICAS","SE CUENTA CON LOS RECURSOS NECESARIOS PARA DESARROLLAR LOS PROYECTOS AGROPECUARIOS"]
[null,"Municipio de la Huerta, Jalisco","Programa Anual de Desarrollo Rural","Promoción y fomento","DESARROLLO RURAL","Desarrollo_Económico","Agropecuaria_Silvicultura_Pesca_y_Caza","3.2.1 Agropecuaria","Política Social","Desarrollo sostenible","Desarrollo Sostenible del Territorio","Gobernanza territorial y desarrollo regional ","Desarrollo rural ","Objetivo de gobernanza, indicadores y proyectos estratégicos","Componente 1",null,"PROYECTO DE FOMENTO A LA PRODUCCIÓN AGROPECUARIA","INDICE DE FOMENTO PARA LA PARTICIPACIÓN DE PRODUCTORES AGROPECUARIOS","MIDE LA CANTIDAD DE ACCIÓNES DE FOMENTO AGROPECUARIO DESARROLLADAS EN EL AÑO","Eficiencia","Gestión","NÚMERO DE ACCIONES DE FOMENTO A LA PARTICIPACIÓN DE PRODUCTORES AGROPECUARIOS DESARROLLADAS ENTRE 17 (META) POR 100",17,17,"Anual","PORCENTAJE",88,"INFORMES, ESTADISTICAS","SE CUENTA CON LOS PRODUCTORES AGROPECUARIOS E INSTITUCIONES FEDERALES Y ESTATALES",185661,28180,8950]
[null,"Municipio de la Huerta, Jalisco","Programa Anual de Desarrollo Rural","Promoción y fomento","DESARROLLO RURAL","Desarrollo_Económico","Agropecuaria_Silvicultura_Pesca_y_Caza","3.2.1 Agropecuaria","Política Social","Desarrollo sostenible","Desarrollo Sostenible del Territorio","Gobernanza territorial y desarrollo regional ","Desarrollo rural ","Objetivo de gobernanza, indicadores y proyectos estratégicos","Actividad 1.1",null,"CREDENCIALIZACIÓN  A PRODUCTORES AGROPECUARIOS","CAMPAÑA DE CREDENCIALIZACIÓN AGROPECUARIA","MIDE LA CANTIDAD DE CREDENCIALES AGROALIMENTARIAS ELABORADAS EN EL AÑO","Eficiencia","Gestión","NÚMERO DE SOLICITUDES DE CREDENCIALIZACIÓN POR 100 ENTRE EL TOTAL DE PRODUCTORES AGROPECUARIOS DEL MUNICIPIO",300,2500,"Anual","PORCENTAJE",12,"FICHAS DE EVALUACIÓN","SE CUENTA CON LOS ISUMOS NECESARIOS"]
[null,"Municipio de la Huerta, Jalisco","Programa Anual de Desarrollo Rural","Promoción y fomento","DESARROLLO RURAL","Desarrollo_Económico","Agropecuaria_Silvicultura_Pesca_y_Caza","3.2.1 Agropecuaria","Política Social","Desarrollo sostenible","Desarrollo Sostenible del Territorio","Gobernanza territorial y desarrollo regional ","Desarrollo rural ","Objetivo de gobernanza, indicadores y proyectos estratégicos","Actividad 1.2",null,"ELABORACIÓN DE PROYECTOS PRODUCTIVOS AGROPECUARIOS","PROYECTOS PRODUCTIVOS AGROPECUARIOS","MIDE LA CANTIDAD DE PROYECTOS AGROPECUARIOS ELABORADOS EN EL AÑO","Economía","Gestión","NÚMERO DE PROYECTOS PRODUCTIVOS AGROPECUARIOS ELABORADOS EN EL AÑO ENTRE 80 (META) POR 100",80,80,"Anual","PORCENTAJE",81,"INFORMES","SE CUENTA CON PROGRAMAS QUE CONTENGAN ÉSTOS PROYECTOS PRDUCTIVOS"]
[null,"Municipio de la Huerta, Jalisco","Programa Anual de Desarrollo Rural","Promoción y fomento","DESARROLLO RURAL","Desarrollo_Económico","Agropecuaria_Silvicultura_Pesca_y_Caza","3.2.1 Agropecuaria","Política Social","Desarrollo sostenible","Desarrollo Sostenible del Territorio","Gobernanza territorial y desarrollo regional ","Desarrollo rural ","Objetivo de gobernanza, indicadores y proyectos estratégicos","Actividad 1.3",null,"CONSEJO MUNICIPAL DE DESARROLLO RURAL SUSTENTABLE","SESIONES DEL CONSEJO DE DESARROLLO RURAL SUSTENTABLE ","MIDE LA CANTIDAD DE SESIONES DEL CONSEJO DE DESARROLLO RUARAL REALIZADAS EN EL AÑO","Eficiencia","Gestión","NÚMERO DE SESIONES DEL CONSEJO DE DESARROLLO RURAL SUSTENTABLE CELEBRADAS ENTRE 11 (META) POR 100",11,11,"Anual","PORCENTAJE",100,"ACTAS DE SESIONES","SE CUENTA CON LOS PRODUCTORES AGROPECUARIOS E INSTITUCIONES FEDERALES Y ESTATALES"]
[null,"Municipio de la Huerta, Jalisco","Coordinación y Aplicación Eficaz ","Planeación, Seguimiento y Evaluación de las Politicas Públicas","Jefe de Gavinete","Gobierno ","Coordinación de la Politica de Gobierno","Función Pública","MEXICO PROSPERO","GARANTIZAR REGLAS CLARAS QUE INCENTIVEN EL DESARROLLO DE UN MERCADO INTERNO COMPETITIVO","MEJORAR LA EFECTIVIDAD DE LAS INSTITUCIONES PUBLICAS Y GUBERNAMENTALES","MEJORAR LA CALIDAD Y DISPONIBILIDAD DE INFORMACION PARA LA TOMA DE DECISIONES DE LA SOCIEDAD Y EL GOBIERNO","SUPERVISAR DIRECCIONES Y JEFATURAS DE ESTE AYUNTAMIENTO Y MANTENER LAS RELACIONES PUBLICAS","PROPICIAR EL DESARROLLO DE LA GESTION MUNICIPAL","Fin",null,"Participar en la planeacion y evaluacion de la administracion municipal","porcentaje en el trabajo realizado en las diferentes areas municipales","contribuir a la mejora de calidad de labores de las diferentes jefaturas","Eficacia","Gestion","(Cantidad de ojbetivos alcanzados/objetivos totales que se propusieron)*100",12,12,"Anual","Porcentaje",0.83,"Informacion mensual y reportes de actividades de las dirreciones del ayuntamiento","Las diferentes jefaturas no aporten en su evaluacion",{"$nulls":13},142998.75,null,700,null,12900]
[null,"Municipio de la Huerta, Jalisco","Coordinación y Aplicación Eficaz ","Planeación, Seguimiento y Evaluación de las Politicas Públicas","Jefe de Gavinete","Gobierno ","Coordinación de la Politica de Gobierno","Función Pública","MEXICO PROSPERO","GARANTIZAR REGLAS CLARAS QUE INCENTIVEN EL DESARROLLO DE UN MERCADO INTERNO COMPETITIVO","MEJORAR LA EFECTIVIDAD DE LAS INSTITUCIONES PUBLICAS Y GUBERNAMENTALES","MEJORAR LA CALIDAD Y DISPONIBILIDAD DE INFORMACION PARA LA TOMA DE DECISIONES DE LA SOCIEDAD Y EL GOBIERNO","SUPERVISAR DIRECCIONES Y JEFATURAS DE ESTE AYUNTAMIENTO Y MANTENER LAS RELACIONES PUBLICAS","PROPICIAR EL DESARROLLO DE LA GESTION MUNICIPAL","Propósito",null,"Coordinar las actividades de este ayuntamiento","Porcentaje de cumplimiento de sus actividades","realizar las tareas correspondientes junto a las direcciones","Eficacia","Gestion","(Cantidad de ojbetivos alcanzados/objetivos totales que se propusieron)*100",12,12,"Anual","Porcentaje",0.83,"Informacion mensual y reportes de actividades de las dirreciones del ayuntamiento","La falta de apoyo de las jefaturas"]
[null,"Municipio de la Huerta, Jalisco","Coordinación y Aplicación Eficaz ","Planeación, Seguimiento y Evaluación de las Politicas Públicas","Jefe de Gavinete","Gobierno ","Coordinación de la Politica de Gobierno","Función Pública","MEXICO PROSPERO","GARANTIZAR REGLAS CLARAS QUE INCENTIVEN EL DESARROLLO DE UN MERCADO INTERNO COMPETITIVO","MEJORAR LA EFECTIVIDAD DE LAS INSTITUCIONES PUBLICAS Y GUBERNAMENTALES","MEJORAR LA CALIDAD Y DISPONIBILIDAD DE INFORMACION PARA LA TOMA DE DECISIONES DE LA SOCIEDAD Y EL GOBIERNO","SUPERVISAR DIRECCIONES Y JEFATURAS DE ESTE AYUNTAMIENTO Y MANTENER LAS RELACIONES PUBLICAS","PROPICIAR EL DESARROLLO DE LA GESTION MUNICIPAL","Componente 1",null,"Hacer observaciones a las areas de esta institucion","porcentaje en el trabajo realizado en las diferentes areas municipales","contribuir a la mejora de calidad de labores de las diferentes jefaturas","Eficacia","Gestion","(Cantidad de ojbetivos alcanzados/objetivos totales que se propusieron)*100",12,12,"Anual","Porcentaje",0.83,"Informacion mensual y reportes de actividades de las dirreciones del ayuntamiento","Falta de colaboracion de las areas",439586,82000,60200,null,35000]
[null,"Municipio de la Huerta, Jalisco","Coordinación y Aplicación Eficaz ","Planeación, Seguimiento y Evaluación de las Politicas Públicas","Jefe de Gavinete","Gobierno ","Coordinación de la Politica de Gobierno","Función Pública","MEXICO PROSPERO","GARANTIZAR REGLAS CLARAS QUE INCENTIVEN EL DESARROLLO DE UN MERCADO INTERNO COMPETITIVO","MEJORAR LA EFECTIVIDAD DE LAS INSTITUCIONES PUBLICAS Y GUBERNAMENTALES","MEJORAR LA CALIDAD Y DISPONIBILIDAD DE INFORMACION PARA LA TOMA DE DECISIONES DE LA SOCIEDAD Y EL GOBIERNO","SUPERVISAR DIRECCIONES Y JEFATURAS DE ESTE AYUNTAMIENTO Y MANTENER LAS RELACIONES PUBLICAS","PROPICIAR EL DESARROLLO DE LA GESTION MUNICIPAL","Actividad 1.1",null,"Convocar a reuniones con los directores de la presidencia","Porcentaje de cumplimiento de sus actividades","realizar las tareas correspondientes junto a las direcciones","Eficacia","Gestion","(Cantidad de ojbetivos alcanzados/objetivos totales que se propusieron)*100",12,12,"Anual","Porcentaje",0.83,"Informacion mensual y reportes de actividades de las dirreciones del ayuntamiento","Inasistencia de las dirreciones de la presidencia"]
[null,"Municipio de la Huerta, Jalisco","Coordinación y Aplicación Eficaz ","Planeación, Seguimiento y Evaluación de las Politicas Públicas","Jefe de Gavinete","Gobierno ","Coordinación de la Politica de Gobierno","Función Pública","MEXICO PROSPERO","GARANTIZAR REGLAS CLARAS QUE INCENTIVEN EL DESARROLLO DE UN MERCADO INTERNO COMPETITIVO","MEJORAR LA EFECTIVIDAD DE LAS INSTITUCIONES PUBLICAS Y GUBERNAMENTALES","MEJORAR LA CALIDAD Y DISPONIBILIDAD DE INFORMACION PARA LA TOMA DE DECISIONES DE LA SOCIEDAD Y EL GOBIERNO","SUPERVISAR DIRECCIONES Y JEFATURAS DE ESTE AYUNTAMIENTO Y MANTENER LAS RELACIONES PUBLICAS","PROPICIAR EL DESARROLLO DE LA GESTION MUNICIPAL","Actividad 1.2",null,"Evaluar a las direcciones de la presidencia municipal","porcentaje en el trabajo realizado en las diferentes areas municipales","contribuir a la mejora de calidad de labores de las diferentes jefaturas","Eficacia","Gestion","(Cantidad de ojbetivos alcanzados/objetivos totales que se propusieron)*100",12,12,"Anual","Porcentaje",0.83,"Informacion mensual y reportes de actividades de las dirreciones del ayuntamiento","Falta de colaboracion de las areas"]
[null,"Municipio de la Huerta, Jalisco","Integración Social Juvenil","Prestación de Servicios Públicos","Instituto Municipal de la Juventud","Desarrollo_Social","Vivienda y Servicios a la Comunidad","Desarrollo Comunitario","Construir un pais con binestar ","Garantizar el ejercicio efectivo de los derechos sociales para toda la población","tematicas especiales ","desarrollo integral de las niñas los niños y adolecentes ","reducir la decercion educativa en secundaria y preparatoria  ","fomento a la integracion social ","Fin",null,"Tener acercamiento con jovenes en eventos depostivos implementando actividades fisicas y recreativas y una integracion social ","indice de  actividad fisica y emocional y fomentar la participacion juvenil","los jovenes tendran una relacion directa con otros jovenes de otras localidades ya que los encuentros deportivos seran de diferentes localidades ","Eficiencia","Estrategico","numero de  de eventos deportivos para jovenes en el municipio x 100/ numero de eventos deportivos para jovenes proyectados a realizar en el municipio ",100,10,"Bianual","%",0.8,"fotografias y registros ","Falta de acción de los grupos juveniles",{"$nulls":13},43603.5,21875.33,7150]
[null,"Municipio de la Huerta, Jalisco","Integración Social Juvenil","Prestación de Servicios Públicos","Instituto Municipal de la Juventud","Desarrollo_Social","Vivienda y Servicios a la Comunidad","Desarrollo Comunitario","Construir un pais con binestar ","Garantizar el ejercicio efectivo de los derechos sociales para toda la población","tematicas especiales ","desarrollo integral de las niñas los niños y adolecentes ","reducir la decercion educativa en secundaria y preparatoria  ","fomento a la integracion social ","Propósito",null,"elevar el contacto directo con los jovenes ","indice de motivacion  para los jovenes entre los 12 y 29 años ","hacer la invitacion y que formen parte del intituto municipal de atencion a la juventud","Eficiencia","Estrategico","numero de activades x 100/actividades realizadas",200,25,"Bianual","%",0.8,"fotografias y registros ","Eventos de la naturaleza (clima)"]
[null,"Municipio de la Huerta, Jalisco","Integración Social Juvenil","Prestación de Servicios Públicos","Instituto Municipal de la Juventud","Desarrollo_Social","Vivienda y Servicios a la Comunidad","Desarrollo Comunitario","Construir un pais con binestar ","Garantizar el ejercicio efectivo de los derechos sociales para toda la población","tematicas especiales ","desarrollo integral de las niñas los niños y adolecentes ","reducir la decercion educativa en secundaria y preparatoria  ","fomento a la integracion social ","Componente 1",null,"actividades recreativas y sociales entre los mismos jovenes del municipio","intecreacion social juvenil","activades culturales deportivas recreativas ecologicas hacen de ello el objetivo de una integracion social ","Calidad","Estratégico","mide la cantidad de jovenes movilizados en acciones de eventos deportivos y recreativos ",70,70,"Bianual","%",0.75,"fotografias y registros ","Falta de acción de los grupos juveniles",120637,61900,6860,null,16000]
[null,"Municipio de la Huerta, Jalisco","Integración Social Juvenil","Prestación de Servicios Públicos","Instituto Municipal de la Juventud","Desarrollo_Social","Vivienda y Servicios a la Comunidad","Desarrollo Comunitario","Construir un pais con binestar ","Garantizar el ejercicio efectivo de los derechos sociales para toda la población","tematicas especiales ","desarrollo integral de las niñas los niños y adolecentes ","reducir la decercion educativa en secundaria y preparatoria  ","fomento a la integracion social ","Actividad 1.1",null,"campamento ","fomentar valores y concientizacion  y participacion de los jovenes ","el incremento de valores en los jovenes ","Calidad","Estratégico","mide la cantidad de jovenes movilizados en acciones de eventos deportivos y recreativos ",40,45,"Bianual","%",0.75,"fotografias y registros ","Inestabilidad política,\neconómica y social"]
[null,"Municipio de la Huerta, Jalisco","Integración Social Juvenil","Prestación de Servicios Públicos","Instituto Municipal de la Juventud","Desarrollo_Social","Vivienda y Servicios a la Comunidad","Desarrollo Comunitario","Construir un pais con binestar ","Garantizar el ejercicio efectivo de los derechos sociales para toda la población","tematicas especiales ","desarrollo integral de las niñas los niños y adolecentes ","reducir la decercion educativa en secundaria y preparatoria  ","fomento a la integracion social ","Actividad 1.2",null,"semana de la juventud","conferencias para los jovenes entre los 12 y 29 años ","organizar diferentes actividades que se realizaran en todo el municpio con jovenes ","Eficiencia","Estratégico","mide la cantidad de jovenes movilizados en acciones de eventos deportivos y recreativos ",80,80,"Anual","%",0.7,"fotografias y registros ","Inestabilidad política,\neconómica y social"]
[null,"Municipio de la Huerta, Jalisco","Area de Zona Federal","Prestación de Servicios Públicos","Zona Federal","Gobierno","Otros Servicios Generales","Servicios Registrales, Administrativos y Patrimoniales","MEXICO INCLUYENTE","2.1 GARANTIZAR EL EJERCICIO EFECTIVO DE LOS DERECHOS SOCIALES PARA TODA LA POBLACION","027 INCREMENTAR LAS CAPACIDADES INNOVADORAS EN LOS SECTORES SOCIAL, PRIVADO Y PUBLICO","027E2 DESAROLLAR ALIANZAS Y REDES ENTRE EMPRESAS,GOBIERNO Y GRUPOS SOCIALES,PARA IMPULSAR LA INOVACION,EL EMPRENDURISMO,Y LA CREATIVIDAD QUE GENERE LA CREACION DE VALORES PUBLICO Y ECONOMICO","PROMOVER EL BUEN USO Y DESTINO DE LAS AREAS CONCESIONADAS","FORTALECER LA PROTECCION DEL MEDIO AMBIENTE, APOYAR A LOS USUARIOS Y VERIFICAR LA RECAUDACION DE FONDOS POR EL DERECHO DE USO Y DISFRUTE DE ZOFEMAT","Fin",null,"MANTENER EN CONDICIONES ADECUADAS EL USO Y DISFRUTE DE LAS CONCESIONES Y/O PERMISOS DE ZONA FEDERAL, MARITIMO TERRESTRE EN APEGO A LA LEGISLACION VIGENTE, ASI COMO EL CUMPLIMIENTO DE SUS OBLIGACIONES","CONCESIONES Y/O PERMISOS","QUE LA REGULACION DE LAS CONCESIONES Y/O PERMISOS SE APEGUEN A LA NORMATIVIDAD","EFICACIA","GESTION","APOYO Y GESTIONES CON LOS INVOLUCRADOS",230,250,"TRIMESTRAL","PORCENTAJE",90,"RECEPCION DE PAGOS","CONCIENTIZAR A USUARIOS",{"$nulls":13},67104,null,267633.1]
[null,"Municipio de la Huerta, Jalisco","Area de Zona Federal","Prestación de Servicios Públicos","Zona Federal","Gobierno","Otros Servicios Generales","Servicios Registrales, Administrativos y Patrimoniales","MEXICO INCLUYENTE","2.1 GARANTIZAR EL EJERCICIO EFECTIVO DE LOS DERECHOS SOCIALES PARA TODA LA POBLACION","027 INCREMENTAR LAS CAPACIDADES INNOVADORAS EN LOS SECTORES SOCIAL, PRIVADO Y PUBLICO","027E2 DESAROLLAR ALIANZAS Y REDES ENTRE EMPRESAS,GOBIERNO Y GRUPOS SOCIALES,PARA IMPULSAR LA INOVACION,EL EMPRENDURISMO,Y LA CREATIVIDAD QUE GENERE LA CREACION DE VALORES PUBLICO Y ECONOMICO","PROMOVER EL BUEN USO Y DESTINO DE LAS AREAS CONCESIONADAS","FORTALECER LA PROTECCION DEL MEDIO AMBIENTE, APOYAR A LOS USUARIOS Y VERIFICAR LA RECAUDACION DE FONDOS POR EL DERECHO DE USO Y DISFRUTE DE ZOFEMAT","Propósito",null,"ADMINISTRAR LAS CONCESIONES OTORGADAS POR LA AUTORIDAD FEDERAL A LOS PARTICULARES,SIRVIENDO COMO ENLACE Y GESTOR DE LOS SERVICIOS A LOS CONCESIONARIOS ,VERIFICANDO Y PROMOVIENDO EL PAGO OPORTUNO  DEL DERECHO DE LA ZONA FEDERAL","RECAUDACION","RECEPCION DE PAGO POR EL DERECHO OTORGADO POR LA AUTORIDAD FEDERAL","ECONOMIA","GESTION","APOYOS Y GESTION EN PAGOS",230,250,"MENSUAL","PORCENTAJE",90,"GESTION PARA RECEPCION DE PAGOS","GESTIONAR PERSONALMENTE , TELEFONICAMENTE E INTERNET LOS DATOS PARA LOS PAGOS"]
[null,"Municipio de la Huerta, Jalisco","Area de Zona Federal","Prestación de Servicios Públicos","Zona Federal","Gobierno","Otros Servicios Generales","Servicios Registrales, Administrativos y Patrimoniales","MEXICO INCLUYENTE","2.1 GARANTIZAR EL EJERCICIO EFECTIVO DE LOS DERECHOS SOCIALES PARA TODA LA POBLACION","027 INCREMENTAR LAS CAPACIDADES INNOVADORAS EN LOS SECTORES SOCIAL, PRIVADO Y PUBLICO","027E2 DESAROLLAR ALIANZAS Y REDES ENTRE EMPRESAS,GOBIERNO Y GRUPOS SOCIALES,PARA IMPULSAR LA INOVACION,EL EMPRENDURISMO,Y LA CREATIVIDAD QUE GENERE LA CREACION DE VALORES PUBLICO Y ECONOMICO","PROMOVER EL BUEN USO Y DESTINO DE LAS AREAS CONCESIONADAS","FORTALECER LA PROTECCION DEL MEDIO AMBIENTE, APOYAR A LOS USUARIOS Y VERIFICAR LA RECAUDACION DE FONDOS POR EL DERECHO DE USO Y DISFRUTE DE ZOFEMAT","Componente 1",null,"SER ENLACE ETRE LAS TRES ORDENES DE GOBIERNO (FEDERAL, ESTATAL Y MUNICIPAL) Y LOS CONCESIONARIOS Y/O PERMISIONARIOS DE AREAS UBICADAS EN ZOFEMAT PARA SU BUEN USO Y DISFRUTE ASI COMO EL CUMPLIMIENTO DE LAS OBLIGACIONES, EN BASE A LA LEGISLACION VIGENTE","COORDINACION","OPOYO AUTORIDAD FEDERAL Y USUERIOS PARA EL BUEN USO Y MANEJO DE SUS CONCESIONES Y PERMISOS","EFICACIA","GESTION","CANTIDAD DE CONCESIONES Y/O PERMISOS ATENDIDOS",230,250,"ANUAL","PORCENTAJE",90,"APOYOS Y PLATICAS DE INTERACCION","COORD. PARA QUE EL USO  DE LOS PERMISOS Y CONCESIONES TENGAN EL USO DE ACUERDO A LAS NORMAS",365910,12500,477200,null,190000]
[null,"Municipio de la Huerta, Jalisco","Area de Zona Federal","Prestación de Servicios Públicos","Zona Federal","Gobierno","Otros Servicios Generales","Servicios Registrales, Administrativos y Patrimoniales","MEXICO INCLUYENTE","2.1 GARANTIZAR EL EJERCICIO EFECTIVO DE LOS DERECHOS SOCIALES PARA TODA LA POBLACION","027 INCREMENTAR LAS CAPACIDADES INNOVADORAS EN LOS SECTORES SOCIAL, PRIVADO Y PUBLICO","027E2 DESAROLLAR ALIANZAS Y REDES ENTRE EMPRESAS,GOBIERNO Y GRUPOS SOCIALES,PARA IMPULSAR LA INOVACION,EL EMPRENDURISMO,Y LA CREATIVIDAD QUE GENERE LA CREACION DE VALORES PUBLICO Y ECONOMICO","PROMOVER EL BUEN USO Y DESTINO DE LAS AREAS CONCESIONADAS","FORTALECER LA PROTECCION DEL MEDIO AMBIENTE, APOYAR A LOS USUARIOS Y VERIFICAR LA RECAUDACION DE FONDOS POR EL DERECHO DE USO Y DISFRUTE DE ZOFEMAT","Actividad 1.1",null,"MANTENER UNA COORDINACION DIRECTA Y PERMANENTE CON AUTORIDADES FEDERALES Y USUARIOS DE ZONA FEDERAL MARITIMO Y TERRESTRE UBICADAS EN EL LITORAL COSTERO DEL MUNICIPIO CON LA FINALIDAD DE TENER ACTULIZADOS LOS PADRONES DE LOS CONCESIONARIOS MEDIANTE UN ARCHIVO FISICO Y DIGITAL, TENIENDO ASI UN MANEJO CONFIABLE Y AGIL EN BIEN DE LA CIUDADANIA Y DEL PROPIO AYUNTAMIENTO","COORDINACION","MANTENER ESTRECHA INTERACCION ENTRE LOS IVOLUCRADOS","EFICIENCIA","GESTION","PADRONES",1,1,"MENSUAL","CANTIDAD",12,"ACTUALIZACION","CHECAR CON SEMARNAT LOS REGISTROS Y ACTUALIZACIONES"]
[null,"Municipio de la Huerta, Jalisco","Area de Zona Federal","Prestación de Servicios Públicos","Zona Federal","Gobierno","Otros Servicios Generales","Servicios Registrales, Administrativos y Patrimoniales","MEXICO INCLUYENTE","2.1 GARANTIZAR EL EJERCICIO EFECTIVO DE LOS DERECHOS SOCIALES PARA TODA LA POBLACION","027 INCREMENTAR LAS CAPACIDADES INNOVADORAS EN LOS SECTORES SOCIAL, PRIVADO Y PUBLICO","027E2 DESAROLLAR ALIANZAS Y REDES ENTRE EMPRESAS,GOBIERNO Y GRUPOS SOCIALES,PARA IMPULSAR LA INOVACION,EL EMPRENDURISMO,Y LA CREATIVIDAD QUE GENERE LA CREACION DE VALORES PUBLICO Y ECONOMICO","PROMOVER EL BUEN USO Y DESTINO DE LAS AREAS CONCESIONADAS","FORTALECER LA PROTECCION DEL MEDIO AMBIENTE, APOYAR A LOS USUARIOS Y VERIFICAR LA RECAUDACION DE FONDOS POR EL DERECHO DE USO Y DISFRUTE DE ZOFEMAT","Actividad 1.2",null,"APOYAR A LA CIUDADANIA EN  SERVICIOS REQUERIDOS PARA REALIZAR PAGOS POR DERECHO,  TRAMITAR, PRORROGAR Y/O ACTUALIZAR LAS CONCESIONES Y/O PERMISOS EN BASE A LA LEGISLACION VIGENTE ASI COMO PROMOVER Y VERIFICAR EL CUMPLIMIENTO DE LA MISMA CUIDANDO LA PROTECCION DEL AMBIENTE Y SUS RECURSOS NATURALES","RECEPCION DE PAGOS","QUE LOS USUARIOS CUMPLAN EN FORMA OPORTUNA CON SUS OBLIGACIONES","ECONOMIA","GESTION","APOYOS Y PAGOS",230,250,"MENSUAL","PORCENTAJE",90,"ATENCION CIEDADANA","APOYO A USUARIOS EN LAS GESTIONES Y PAGOS DE DERECHO"]
[null,"Municipio de la Huerta, Jalisco","Apoyo Social y Humano","Prestación de Servicios Públicos","Desarrollo Social","Desarrollo Social","Protección Social","Otros Grupos Vulnerables","MEXICO INCLUYENTE","GARANTIZAR EL SERVICIO EFECTIVO DE LOS DERECHSO SOCIALES PARA TODA LA POBLACION","REDUCIR LA POBREZA Y LA DESIGUALDAD","AMPLIAR LAS CAPACIDADES PRODUCTIVAS DE LA POBLACION CON VULNERABILIDAD","DIRECCION DE DESARROLLO SOCIAL","DIRECCION DE DESARROLLO SOCIAL","Fin",null,"Implementar acciones necesarias para la atención prioritaria e integral de personas o grupos sociales en situación de rezago social.","Indice de personas que se encuentren en rezago social.","Mide la cantidad de personas de nuestro municipio que serán beneficiadas.","Eficiencia","Gestion","Numero de personas beneficiadas",5000,2500,"Anual","Porcentaje",50,"Encuestas, fotografias","Verificar que las personas que registremos se encuentren en rezago social ",{"$nulls":13},147645,20038.38,21071,388990.53,8490]
[null,"Municipio de la Huerta, Jalisco","Apoyo Social y Humano","Prestación de Servicios Públicos","Desarrollo Social","Desarrollo Social","Protección Social","Otros Grupos Vulnerables","MEXICO INCLUYENTE","GARANTIZAR EL SERVICIO EFECTIVO DE LOS DERECHSO SOCIALES PARA TODA LA POBLACION","REDUCIR LA POBREZA Y LA DESIGUALDAD","AMPLIAR LAS CAPACIDADES PRODUCTIVAS DE LA POBLACION CON VULNERABILIDAD","DIRECCION DE DESARROLLO SOCIAL","DIRECCION DE DESARROLLO SOCIAL","Propósito",null,"Implementar programas sociales para dar una mejor calidad de vida a personas de nuestro municipio que se encuentran en rezago social .","Indice personas que se vean beneficiadas dentro de los programas que implementaremos.","Mide la cantidad de programas sociales que implementaremos  en el año.","Eficiencia","Gestión","Numero de programas sociales que implementemos",6,5,"Anual","Porcentaje",90,"Encuestas fotografias.","Se cuenten con los recursos necesarios para lograr desarrollar el proyecto"]
[null,"Municipio de la Huerta, Jalisco","Apoyo Social y Humano","Prestación de Servicios Públicos","Desarrollo Social","Desarrollo Social","Protección Social","Otros Grupos Vulnerables","MEXICO INCLUYENTE","GARANTIZAR EL SERVICIO EFECTIVO DE LOS DERECHSO SOCIALES PARA TODA LA POBLACION","REDUCIR LA POBREZA Y LA DESIGUALDAD","AMPLIAR LAS CAPACIDADES PRODUCTIVAS DE LA POBLACION CON VULNERABILIDAD","DIRECCION DE DESARROLLO SOCIAL","DIRECCION DE DESARROLLO SOCIAL","Componente 1",null,"Apoyos sociales ","Indice de los apoyos sociales ","Mide la cantidad de apoyos sociales que se entregarán en el año","Eficiencia","Gestion","Numero de apoyos por personas beneficiadas",5,5,"Anual","Porcentaje",90,"Encuestas fotografias, reuniones","Es necesario que se cuente con los recursos necesarios para poder implementar estos apoyos",236197,38500,122000,8370003,21000]
[null,"Municipio de la Huerta, Jalisco","Apoyo Social y Humano","Prestación de Servicios Públicos","Desarrollo Social","Desarrollo Social","Protección Social","Otros Grupos Vulnerables","MEXICO INCLUYENTE","GARANTIZAR EL SERVICIO EFECTIVO DE LOS DERECHSO SOCIALES PARA TODA LA POBLACION","REDUCIR LA POBREZA Y LA DESIGUALDAD","AMPLIAR LAS CAPACIDADES PRODUCTIVAS DE LA POBLACION CON VULNERABILIDAD","DIRECCION DE DESARROLLO SOCIAL","DIRECCION DE DESARROLLO SOCIAL","Actividad 1.1",null,"Utiles escolares","Total de estudiantes de primaria y secundaría que hay en el municipio","Mide la cantidad de estudiantes y padres de familia  que serán beneficiados por este programa.","Eficiencia","Gestion","Numero de utiles entre personas beneficiadas",2500,2000,"Anual","Porcentaje",80,"Encuestas fotografias, reuniones","Lograr contabilizar todos los estudiantes primaria y secundaria para que puedan acceder en el apoyo de utiles escolares"]
[null,"Municipio de la Huerta, Jalisco","Apoyo Social y Humano","Prestación de Servicios Públicos","Desarrollo Social","Desarrollo Social","Protección Social","Otros Grupos Vulnerables","MEXICO INCLUYENTE","GARANTIZAR EL SERVICIO EFECTIVO DE LOS DERECHSO SOCIALES PARA TODA LA POBLACION","REDUCIR LA POBREZA Y LA DESIGUALDAD","AMPLIAR LAS CAPACIDADES PRODUCTIVAS DE LA POBLACION CON VULNERABILIDAD","DIRECCION DE DESARROLLO SOCIAL","DIRECCION DE DESARROLLO SOCIAL","Actividad 1.2",null,"Apoyos a personas con discapacidad","Indice de personas con discapacidad en nuestro municipio que necesiten este apoyo","Mide la cantidad  de personas con discapacidad que serán beneficiadas","Eficiencia","Gestion","Numero de personas beneficiadas entre los apoyos otorgados",10,8,"Anual","Porcentaje",90,"Estadisticas","Contar con el recurso necesario "]
[null,"Municipio de la Huerta, Jalisco","Apoyo Social y Humano","Prestación de Servicios Públicos","Desarrollo Social","Desarrollo Social","Protección Social","Otros Grupos Vulnerables","MEXICO INCLUYENTE","GARANTIZAR EL SERVICIO EFECTIVO DE LOS DERECHSO SOCIALES PARA TODA LA POBLACION","REDUCIR LA POBREZA Y LA DESIGUALDAD","AMPLIAR LAS CAPACIDADES PRODUCTIVAS DE LA POBLACION CON VULNERABILIDAD","DIRECCION DE DESARROLLO SOCIAL","DIRECCION DE DESARROLLO SOCIAL","Actividad 1.3",null,"Becas a estudiantes","Estudiantes de nuestro municipio que requierán una beca.","Mide la cantidad de estudiantes que serán beneficiados con una beca","Eficiencia","Gestion","Numero de estudiantes beneficiados entre la cantidad de becas otorgadas",20,17,"Anual","Porcentaje",85,"Registro de estudiantes","Numero de estudiantes beneficiados entre la cantidad de becas otorgadas"]
[null,"Municipio de la Huerta, Jalisco","Apoyo Social y Humano","Prestación de Servicios Públicos","Desarrollo Social","Desarrollo Social","Protección Social","Otros Grupos Vulnerables","MEXICO INCLUYENTE","GARANTIZAR EL SERVICIO EFECTIVO DE LOS DERECHSO SOCIALES PARA TODA LA POBLACION","REDUCIR LA POBREZA Y LA DESIGUALDAD","AMPLIAR LAS CAPACIDADES PRODUCTIVAS DE LA POBLACION CON VULNERABILIDAD","DIRECCION DE DESARROLLO SOCIAL","DIRECCION DE DESARROLLO SOCIAL","Actividad 1.4",null,"Refrigerios a  personas que reciben el apoyo de programa pensión para adultos mayores","Indice  de personas que reciben pensión para adultos mayores con holograma ","Mide la cantidad de adultos que serán beneficiados","Eficiencia","Gestion","Numero de adultos mayores que reciben el programa entre el numero de refrigerios",250,230,"Anual","Porcentaje",85,"Fotografias y encuestas","Que los adultos asistan a la entrega de apoyos  y contar con los recursos necesarios "]
[null,"Municipio de la Huerta, Jalisco","Apoyo Social y Humano","Prestación de Servicios Públicos","Desarrollo Social","Desarrollo Social","Protección Social","Otros Grupos Vulnerables","MEXICO INCLUYENTE","GARANTIZAR EL SERVICIO EFECTIVO DE LOS DERECHSO SOCIALES PARA TODA LA POBLACION","REDUCIR LA POBREZA Y LA DESIGUALDAD","AMPLIAR LAS CAPACIDADES PRODUCTIVAS DE LA POBLACION CON VULNERABILIDAD","DIRECCION DE DESARROLLO SOCIAL","DIRECCION DE DESARROLLO SOCIAL","Actividad 1.5",null,"Autoconstrucción unidad de vivienda basica","Indice de familias de nuestro municipio que sean de escasos recursos y no cuenten con una vivienda","Mide la cantidad de familias de nuestro municipio que sean de muy bajos recursos y no tengan una vivienda.","Eficiencia","Gestion","Numero de familias beneficiadas entre el numero de vivienda construidas ",70,65,"Anual","Porcentaje",90,"Base de datos ","Que exitan los recursos necesarios para poder lograr llevar acabo este proyecto."]
[null,"Municipio de la Huerta, Jalisco","Manejo de los Ingresos de la Hacienda Municipal","Apoyo al proceso presupuestario y para mejorar la Eficiencia Institucional","Ingresos","Gobierno","Asuntos Financieros yHacendarios","Asuntos Hacendarios","ECONOMIA","Mantener finanzas sanas","Gobierno Efectivo e Integridad Pública","Hacienda pública","Gobierno","Implementar mejoras regulatorias en los tramites y servicios","Fin",null,"Propiciar a fortalecer la Hacienda Municipal a traves del incremento de los ingresos de gestion","Porcentaje de autonomia de ingresos","Contribuir a fortalecer la Hacienda Municipal a traves del incremento de los ingresos de gestion","Eficacia ","Estrategico","(Contribuyentes cumplidos X 100 /pronostico Contribuyentes obligados)",100000,3000,"Anual","Porcentaje",33,"Cuenta Pública","Inestabilidad política,economia y social.",{"$nulls":13},251614.5,19322.24,4900.01,null,5990.01]
[null,"Municipio de la Huerta, Jalisco","Manejo de los Ingresos de la Hacienda Municipal","Apoyo al proceso presupuestario y para mejorar la Eficiencia Institucional","Ingresos","Gobierno","Asuntos Financieros yHacendarios","Asuntos Hacendarios","ECONOMIA","Mantener finanzas sanas","Gobierno Efectivo e Integridad Pública","Hacienda pública","Gobierno","Implementar mejoras regulatorias en los tramites y servicios","Propósito",null,"Los contribuyentes pagan sus contribuciones en tiempo y forma","Porcentaje de contribuyentes cumplidos","Los contribuyentes pagan sus contribuciones en tiempo y forma","Eficacia","Estrategico","(Contribuyentes cumplidos X 100 /pronostico Contribuyentes obligados)",100000,3000,"Anual","Porcentaje",33,"Cuenta Pública","Inestabilidad política,economia y social."]
[null,"Municipio de la Huerta, Jalisco","Manejo de los Ingresos de la Hacienda Municipal","Apoyo al proceso presupuestario y para mejorar la Eficiencia Institucional","Ingresos","Gobierno","Asuntos Financieros yHacendarios","Asuntos Hacendarios","ECONOMIA","Mantener finanzas sanas","Gobierno Efectivo e Integridad Pública","Hacienda pública","Gobierno","Implementar mejoras regulatorias en los tramites y servicios","Componente 1",null,"Recaudacion de pagos de Contribuyentes","Licencias Municipales Actualizadas","Cantidad de dinero que hay que pagar a la Administración para contribuir a la hacienda pública\nDeclaración expresa que hace una persona, especialmente con autoridad legal, para permitir que se haga cierta cosa","Eficacia","Estrategico","(Contribuyentes cumplidos X 100 /pronostico Contribuyentes obligados)",100000,3000,"Anual","Porcentaje",33,"Cuenta Pública","Inestabilidad política,economia y social.",696135,69000,4000]
[null,"Municipio de la Huerta, Jalisco","Manejo de los Ingresos de la Hacienda Municipal","Apoyo al proceso presupuestario y para mejorar la Eficiencia Institucional","Ingresos","Gobierno","Asuntos Financieros yHacendarios","Asuntos Hacendarios","ECONOMIA","Mantener finanzas sanas","Gobierno Efectivo e Integridad Pública","Hacienda pública","Gobierno","Implementar mejoras regulatorias en los tramites y servicios","Actividad 1.1",null,"Actualización de las bases de datos registrados","Porcentajes de avisos de licencias de giros","Actualización de las bases de datos registrados","Eficiencia","Estrategico","Licencias de giro del 2020 recaudadas x 100 /Pronostico de Licencias de giros 2020",100000,3000,"Anual","Porcentaje",33,"Base de datos de Licencias Municipales","Inestabilidad política,economia y social."]
[null,"Municipio de la Huerta, Jalisco","Manejo de los Ingresos de la Hacienda Municipal","Apoyo al proceso presupuestario y para mejorar la Eficiencia Institucional","Ingresos","Gobierno","Asuntos Financieros yHacendarios","Asuntos Hacendarios","ECONOMIA","Mantener finanzas sanas","Gobierno Efectivo e Integridad Pública","Hacienda pública","Gobierno","Implementar mejoras regulatorias en los tramites y servicios","Actividad 1.2"]
[null,"Municipio de la Huerta, Jalisco","Aplicación del Reglamento  de Policia y Buen Gobierno ","Imparticion de Justicia ","Juez Municipal ","Gobierno","Asuntos de Orden Público y Seguridad Interior","Otros asuntos de orden público y seguridad","Politica y Gobierno","Imparticion de Justcia igualitaria ","Gobierno Efectivo e Integridad Pública","Justicia gubernamental Administrativa","Gobierno","Fomentar la cultura de la imparticion de la justicia Administrativa a nivel Municipal ","Fin",null,"Reducir el numero de Infractores al reglamento de Policia y Buen gobierno ","Estadistica de infractores","Mide la cantidad de infractores.","Eficiencia","Estratégico","Estadistico",12,12,"Anual","'Porcentaje",80,"'Informes y Estadisticas","'Se cuenta con los recursos necesarios",{"$nulls":13},75551.1]
[null,"Municipio de la Huerta, Jalisco","Aplicación del Reglamento  de Policia y Buen Gobierno ","Imparticion de Justicia ","Juez Municipal ","Gobierno","Asuntos de Orden Público y Seguridad Interior","Otros asuntos de orden público y seguridad","Politica y Gobierno","Imparticion de Justcia igualitaria ","Gobierno Efectivo e Integridad Pública","Justicia gubernamental Administrativa","Gobierno","Fomentar la cultura de la imparticion de la justicia Administrativa a nivel Municipal ","Propósito",null,"Fomentar la cultura de la imparticion de la justicia Administrativa a nivel Municipal ","Estadistica de infractores","Mide la cantidad de reduccion de infractores","Eficiencia","Estratégico","Estadistico",12,12,"Anual","'Porcentaje",80,"'Informes y Estadisticas","'Se cuenta con los recursos necesarios"]
[null,"Municipio de la Huerta, Jalisco","Aplicación del Reglamento  de Policia y Buen Gobierno ","Imparticion de Justicia ","Juez Municipal ","Gobierno","Asuntos de Orden Público y Seguridad Interior","Otros asuntos de orden público y seguridad","Politica y Gobierno","Imparticion de Justcia igualitaria ","Gobierno Efectivo e Integridad Pública","Justicia gubernamental Administrativa","Gobierno","Fomentar la cultura de la imparticion de la justicia Administrativa a nivel Municipal ","Componente 1",null,"Fomentar, promover y garantizar la imparticion de justicia municipal.","Aplicación de reglamentos municipales","Imparticion de justicia municipal.","Eficiencia","Estratégico","Estadistico",1500,1500,"Anual","'Porcentaje",80,"'Informes y Estadisticas","'Se cuenta con los recursos necesarios",196858,null,2000,null,15000]
[null,"Municipio de la Huerta, Jalisco","Aplicación del Reglamento  de Policia y Buen Gobierno ","Imparticion de Justicia ","Juez Municipal ","Gobierno","Asuntos de Orden Público y Seguridad Interior","Otros asuntos de orden público y seguridad","Politica y Gobierno","Imparticion de Justcia igualitaria ","Gobierno Efectivo e Integridad Pública","Justicia gubernamental Administrativa","Gobierno","Fomentar la cultura de la imparticion de la justicia Administrativa a nivel Municipal ","Actividad 1.1",null,"Brindar atencion a los Ciudadanos con problemas de adiccion a sustancias ilicitas.","Estadistica de atencion ciudadana.","Mide la cantidad de atencion ciudadana.","Eficiencia","Gestion","Estadistico",1500,1500,"Anual","'Porcentaje",80,"'Informes y Estadisticas","'Se cuenta con los recursos necesarios"]
[null,"Municipio de la Huerta, Jalisco","Aplicación del Reglamento  de Policia y Buen Gobierno ","Imparticion de Justicia ","Juez Municipal ","Gobierno","Asuntos de Orden Público y Seguridad Interior","Otros asuntos de orden público y seguridad","Politica y Gobierno","Imparticion de Justcia igualitaria ","Gobierno Efectivo e Integridad Pública","Justicia gubernamental Administrativa","Gobierno","Fomentar la cultura de la imparticion de la justicia Administrativa a nivel Municipal ","Actividad 1.2",null,"Brindar atencion a los Ciudadanos que esten siendo molestados por terceros de acuerdo al Reglamento de Policia y Buen gobierno","Estadistica de atencion ciudadana.","Mide la cantidad de atencion ciudadana.","Eficiencia","Gestion","Estadistico",1500,1500,"Anual","'Porcentaje",80,"'Informes y Estadisticas","'Se cuenta con los recursos necesarios"]
[null,"Municipio de la Huerta, Jalisco","Aplicación del Reglamento  de Policia y Buen Gobierno ","Imparticion de Justicia ","Juez Municipal ","Gobierno","Asuntos de Orden Público y Seguridad Interior","Otros asuntos de orden público y seguridad","Politica y Gobierno","Imparticion de Justcia igualitaria ","Gobierno Efectivo e Integridad Pública","Justicia gubernamental Administrativa","Gobierno","Fomentar la cultura de la imparticion de la justicia Administrativa a nivel Municipal ","Actividad 1.3",null,"Realizacion de todo tipo de convenios entre las partes siempre y cuando esto incurra en una falta administrativa.","Estadistica de atencion ciudadana.","Mide la cantidad de atencion ciudadana.","Eficiencia","Gestion","Estadistico",100,100,"Anual","'Porcentaje",80,"'Informes y Estadisticas","'Se cuenta con los recursos necesarios"]
[null,"Municipio de la Huerta, Jalisco","Aplicación del Reglamento  de Policia y Buen Gobierno ","Imparticion de Justicia ","Juez Municipal ","Gobierno","Asuntos de Orden Público y Seguridad Interior","Otros asuntos de orden público y seguridad","Politica y Gobierno","Imparticion de Justcia igualitaria ","Gobierno Efectivo e Integridad Pública","Justicia gubernamental Administrativa","Gobierno","Fomentar la cultura de la imparticion de la justicia Administrativa a nivel Municipal ","Actividad 1.4",null,"Aplicar las multas correspondientes qaue se encuentren establecidas dentro del Reglamento de Policia y Buen Gobierno.","Estadistica de infractores","Mide la cantidad de infractores.","Eficiencia","Gestion","Estadistico",70,70,"Anual","'Porcentaje",80,"'Informes y Estadisticas","'Se cuenta con los recursos necesarios"]
[null,"Municipio de la Huerta, Jalisco","Prevencion social de las violencias y la delincuencia","Prestación de servicios públicos","D.A.R.E","Gobierno","Asuntos_de_Orden_Público_y_Seguridad_Interior","1.7.3 Otros Asuntos de Orden Público y Seguridad","México_en_Paz","1.5. Garantizar el respeto y protección de los derechos humanos y la erradicación de la discriminación","O23_Garantizar_el_respeto_y_la_protección_de_los_derechos_humanos_y_eliminar_la_discriminación","O23E1 Disminuir la incidencia de las violaciones a los Derechos Humanos",null,null,"Fin",null,"Prevenir  conductas antisociales y el cosumo de sustancias adictivas, a traves de programas  y acciones preventivas, en la niñez y juventud Huertense.","Numero de programas y acciones preventivas.","De acuerdo a las necesidades especificas de conducta en las escuelas se aplican los programas: Prevencion Juvenil, DARE, Aprendiendo a cuidarte y en acciones seran campañas de temporada y talleres preventivos.","Eficiencia","Estratégico","(Numero de programas y acciones/ los meses del año) ",13,12,"Trimestral","Programas y acciones",13,"Bitacora","Falta de material didactico",{"$nulls":14},4412.9,18557.9]
[null,"Municipio de la Huerta, Jalisco","Prevencion social de las violencias y la delincuencia","Prestación de servicios públicos","D.A.R.E","Gobierno","Asuntos_de_Orden_Público_y_Seguridad_Interior","1.7.3 Otros Asuntos de Orden Público y Seguridad","México_en_Paz","1.5. Garantizar el respeto y protección de los derechos humanos y la erradicación de la discriminación","O23_Garantizar_el_respeto_y_la_protección_de_los_derechos_humanos_y_eliminar_la_discriminación","O23E1 Disminuir la incidencia de las violaciones a los Derechos Humanos",null,null,"Propósito",null,"Niños y jovenes Huertenses presentan buena conducta y reducen el consumo de sustancias adictivas.","Numero de personas que se ven beneficiadas con los programas y acciones.","A traves de una serie de platicas y participacion en acciones preventivas los niños y jovenes  son mas consientes de sus actos.","Eficiencia","Estratégico","(Numero de personas/ los programas y acciones preventivas)",2565,12,"Trimestral","Personas",2565,"Registro de participacion.","Suspension de clases en los dias  programados"]
[null,"Municipio de la Huerta, Jalisco","Prevencion social de las violencias y la delincuencia","Prestación de servicios públicos","D.A.R.E","Gobierno","Asuntos_de_Orden_Público_y_Seguridad_Interior","1.7.3 Otros Asuntos de Orden Público y Seguridad","México_en_Paz","1.5. Garantizar el respeto y protección de los derechos humanos y la erradicación de la discriminación","O23_Garantizar_el_respeto_y_la_protección_de_los_derechos_humanos_y_eliminar_la_discriminación","O23E1 Disminuir la incidencia de las violaciones a los Derechos Humanos",null,null,"Componente 1",null,"Aplicación de programas preventivos en planteles educativos y ** Apoyo de traslados a centros de recuperacion por consumo de sustancias adictivas y  a Hospitales Psiquiatricos.","Numero de planteles educativos que se veran beneficiados con los programas  de prevencion. **Numero de personas que recibiran el apoyo de traslado. ","Aplicación de programas preventivos en planteles educativos. **Apoyo de traslados a centros de recuperacion por consumo de sustancias adictivas y  a Hospitales Psiquiatricos.","Eficiencia","Estratégico","(Numero de planteles educativos/ programas y acciones preventivas)",16,12,"Trimestral","Planteles educativos",16,"Base de datos ","Negativa de los directivos",null,74100,48000,null,5000]
[null,"Municipio de la Huerta, Jalisco","Prevencion social de las violencias y la delincuencia","Prestación de servicios públicos","D.A.R.E","Gobierno","Asuntos_de_Orden_Público_y_Seguridad_Interior","1.7.3 Otros Asuntos de Orden Público y Seguridad","México_en_Paz","1.5. Garantizar el respeto y protección de los derechos humanos y la erradicación de la discriminación","O23_Garantizar_el_respeto_y_la_protección_de_los_derechos_humanos_y_eliminar_la_discriminación","O23E1 Disminuir la incidencia de las violaciones a los Derechos Humanos",null,null,"Actividad 1.1",null,"Contactar a las autoridades de los planteles educativos.","Numero de  escuelas visitadas para agendar la aplicación de los programas.","Tomar datos necesarios para posteriormente  iniciar con la aplicación de programas y acciones preventivas.","Eficiencia","Estratégico","(Numero de escuelas/ programas y acciones preventivas)",16,12,"Semestral","Escuelas",16,"Oficios","Negativa de los directivos"]
[null,"Municipio de la Huerta, Jalisco","Prevencion social de las violencias y la delincuencia","Prestación de servicios públicos","D.A.R.E","Gobierno","Asuntos_de_Orden_Público_y_Seguridad_Interior","1.7.3 Otros Asuntos de Orden Público y Seguridad","México_en_Paz","1.5. Garantizar el respeto y protección de los derechos humanos y la erradicación de la discriminación","O23_Garantizar_el_respeto_y_la_protección_de_los_derechos_humanos_y_eliminar_la_discriminación","O23E1 Disminuir la incidencia de las violaciones a los Derechos Humanos",null,null,"Actividad 1.2",null,"Implementacion  de programas preventivos en hora clase.","Numero de grupos que participan en los programas  preventivos.","Preparacion de material pertinente para llevar a cabo las diferentes sesiones y lecciones de los programas.","Eficiencia","Estratégico","(Numero de grupos/ programas  y acciones preventivas)",103,12,"Trimestral","Grupos",103,"Constancia de asistencia","Inasitencia de alumnos"]
[null,"Municipio de la Huerta, Jalisco","Prevencion social de las violencias y la delincuencia","Prestación de servicios públicos","D.A.R.E","Gobierno","Asuntos_de_Orden_Público_y_Seguridad_Interior","1.7.3 Otros Asuntos de Orden Público y Seguridad","México_en_Paz","1.5. Garantizar el respeto y protección de los derechos humanos y la erradicación de la discriminación","O23_Garantizar_el_respeto_y_la_protección_de_los_derechos_humanos_y_eliminar_la_discriminación","O23E1 Disminuir la incidencia de las violaciones a los Derechos Humanos",null,null,"Actividad 1.3",null,"Atencion  y llenado de solicitudes  a peticion del ciudadano interesado en el proceso de traslado de un familiar. ","Numero de personas que solicitan informacion para el proceso de traslado.","Se brinda informacion necesaria  y se emite documento de gestion para llevar a cabo el proceso de traslado a centros de recuperacion y Hospitales Psiquiatricos.","Eficiencia","Estratégico","(Numero de personas atendidas/ los documentos emitidos de gestion familiar que si se les dio el apoyo)",100,12,"Mensual","Personas",100,"Documento de gestion familiar","Personal en comision"]
[null,"Municipio de la Huerta, Jalisco","Prevencion social de las violencias y la delincuencia","Prestación de servicios públicos","D.A.R.E","Gobierno","Asuntos_de_Orden_Público_y_Seguridad_Interior","1.7.3 Otros Asuntos de Orden Público y Seguridad","México_en_Paz","1.5. Garantizar el respeto y protección de los derechos humanos y la erradicación de la discriminación","O23_Garantizar_el_respeto_y_la_protección_de_los_derechos_humanos_y_eliminar_la_discriminación","O23E1 Disminuir la incidencia de las violaciones a los Derechos Humanos",null,null,"Actividad 1.4",null,"Apoyo para trasladar al  beneficiario que requiere la atencion de un centro de recuperacion y/o Hospital Psiquiatrico.","Numero  personas  que se beneficiaran con el servicio traslado."," Se realiza el tramite correspondiente para brindar el servicio de traslado.","Eficiencia","Estratégico","(Numero de personas trasladas al mes/ los oficios emitidos)  ",100,12,"Mensual","Personas",100,"Oficios y reportes de comision.","Falta de vehiculo"]
[null,"Municipio de la Huerta, Jalisco","Prevencion social de las violencias y la delincuencia","Prestación de servicios públicos","D.A.R.E","Gobierno","Asuntos_de_Orden_Público_y_Seguridad_Interior","1.7.3 Otros Asuntos de Orden Público y Seguridad","México_en_Paz","1.5. Garantizar el respeto y protección de los derechos humanos y la erradicación de la discriminación","O23_Garantizar_el_respeto_y_la_protección_de_los_derechos_humanos_y_eliminar_la_discriminación","O23E1 Disminuir la incidencia de las violaciones a los Derechos Humanos",null,null,"Actividad 1.5",null,"Asistir a capacitaciones y/o reuniones  en materia de prevencion y a las  convocadas por el estado y municipio. ","Numero de capacitaciones y/o reuniones  convocadas.","Capacitacion permanente para fortalecer los programas y acciones que se desempeñan en la presente area.","Eficiencia","Estratégico","(Numero de capacitaciones y/o reunions / los meses del año)",4,12,"Trimestral","Capacitaciones y/o reuniones",4,"Oficios y registro de asistencia ","Notificacion a destiempo"]
[null,"Municipio de la Huerta, Jalisco","Agenda de Goboierno","Prestación de servicios Públicos","Gobernación","Gobierno","Coordinación de Politica de Gobierno","Presidencia/Gubernatura",{"$nulls":6},"Fin",null,"Propiciar a satisfacer demandas de la sociedad, para la prestación en los diferentes servicios publicos","Porcentaje de cumplimiento de gestiones realizadas","Contribuir a satisfacer demandas de la sociedad, en la prestación de los diferentes servicios publicos","Eficacia","Estratégico","(Gestiones realizadas/Gestiones Totales )*100",30,38,"Anual","%",0.8,"Acuse de recibido de oficios, convenios,, contratos","Inestabilidad política,\neconómica y social",{"$nulls":13},437904.75,132744.09,275318.4,1980000]
[null,"Municipio de la Huerta, Jalisco","Agenda de Goboierno","Prestación de servicios Públicos","Gobernación","Gobierno","Coordinación de Politica de Gobierno","Presidencia/Gubernatura",{"$nulls":6},"Propósito",null,"Servicios publicos prestados, satisfaciendo la demanda de la sociedad","Porcentaje de cumplimiento de gestiones realizadas","Prestación de los Servicios publicos, que satisfacen la demanda de la sociedad","Eficacia","Estratégico","(Gestiones realizadas/Gestiones Totales )*100",30,38,"Anual","%",0.8,"Acuse de recibido de oficios, convenios,, contratos","Inestabilidad política,\neconómica y social"]
[null,"Municipio de la Huerta, Jalisco","Agenda de Goboierno","Prestación de servicios Públicos","Gobernación","Gobierno","Coordinación de Politica de Gobierno","Presidencia/Gubernatura",{"$nulls":6},"Componente 1",null,"Gestiones realizadas ante la Federacion y el estado, de recursos economicos ","Porcentaje de cumplimiento de gestiones realizadas","Gestiones realizadas ante la Federacion y el estado, de recursos economicos  para el incremento de las participaciones y convenios","Eficacia","Estratégico","(Gestiones realizadas/Gestiones Totales )*100",30,38,"Anual","%",0.8,"Acuse de recibido de oficios, convenios,, contratos","Inestabilidad política,\neconómica y social",1607165,276400,370600,5190000,20000]
[null,"Municipio de la Huerta, Jalisco","Agenda de Goboierno","Prestación de servicios Públicos","Gobernación","Gobierno","Coordinación de Politica de Gobierno","Presidencia/Gubernatura",{"$nulls":6},"Actividad 1.1",null,"Reuniones de trabajo con directores y jefes de area","Porcentaje de cumplimiento de gestiones realizadas","Reuniones de trabajo con directores y jefes de area, para canalizar las diferentes necesidades ","Eficacia","Estratégico","(Gestiones realizadas/Gestiones Totales )*100",30,38,"Anual","%",0.8,"Acuse de recibido de oficios, convenios,, contratos","Inestabilidad política,\neconómica y social"]
[null,"Municipio de la Huerta, Jalisco","Agenda de Goboierno","Prestación de servicios Públicos","Gobernación","Gobierno","Coordinación de Politica de Gobierno","Presidencia/Gubernatura",{"$nulls":6},"Actividad 1.2",null,"Reuniones de trabajo con diputados locales y federales","Porcentaje de cumplimiento de gestiones realizadas","Reuniones de trabajo con diputados locales y federales, haciendoles saber las necesidades y requerimientos del municipio","Eficacia","Estratégico","(Gestiones realizadas/Gestiones Totales )*100",30,38,"Anual","%",0.8,"Acuse de recibido de oficios, convenios,, contratos","Inestabilidad política,\neconómica y social"]
[null,"Municipio de la Huerta, Jalisco","Agenda de Goboierno","Prestación de servicios Públicos","Gobernación","Gobierno","Coordinación de Politica de Gobierno","Presidencia/Gubernatura",{"$nulls":6},"Actividad 1.3",null,"Subir en la plataforma de transparencia la  agenda de gobierno","Porcentaje de cumplimiento de gestiones realizadas","Subir en la plataforma de transparencia la  agenda de gobierno, con las diferentes actividades que se realizaron en las diferentes gestiones","Eficacia","Estratégico","(Gestiones realizadas/Gestiones Totales )*100",30,38,"Anual","%",0.8,"Acuse de recibido de oficios, convenios,, contratos","Inestabilidad política,\neconómica y social"]
[null,"Municipio de la Huerta, Jalisco","Agenda de Goboierno","Prestación de servicios Públicos","Gobernación","Gobierno","Coordinación de Politica de Gobierno","Presidencia/Gubernatura",{"$nulls":6},"Actividad 1.4",null,"Reuniones de trabajo con las diferentes secretarias estatales y federales","Porcentaje de cumplimiento de gestiones realizadas","Reuniones de trabajo con las diferentes secretarias estatales y federales, haciendoles saber las necesidades y requerimientos del municipio","Eficacia","Estratégico","(Gestiones realizadas/Gestiones Totales )*100",30,38,"Anual","%",0.8,"Acuse de recibido de oficios, convenios,, contratos","Inestabilidad política,\neconómica y social"]
[null,"Municipio de la Huerta, Jalisco","Manejo de la Hacienda Municipal","Apoyo al Proceso Presupuestario y para Mejorar la Eficiencia Institucional","Hacienda Municipal","Gobierno","Asuntos_Financieros_y_Hacendarios","1.5.2 Asuntos Hacendarios","México_Próspero","4.1. Mantener la estabilidad macroeconómica del país","O25_Mejorar_la_efectividad_de_las_instituciones_públicas_y_gubernamentales","O25E7 Mejorar la planeación, programación, el seguimiento y la evaluación para una gestión pública eficiente orientada a resultados",null,null,"Fin",null,"Propiciar un gasto público más eficiente, manteniendo la disciplina y el equilibrio presupuestal, así como la transparencia y rendición de cuentas.","Porcentaje de cumplimiento en la presentación de la cuenta publica y transparencia","Contribuir a fortalecer la Hacienda Municipal a través de la rendición de la cuenta publica en tiempo y forma","Eficacia","Estratégico","(cuenta publica entregada/cuentas publicas totales)*100",12,12,"Anual","%",0.9167,"Cuenta publica","Inestabilidad política,\neconómica y social",{"$nulls":13},476920.95,4769984.71,186227.17,{"$nulls":5},4827608.45]
[null,"Municipio de la Huerta, Jalisco","Manejo de la Hacienda Municipal","Apoyo al Proceso Presupuestario y para Mejorar la Eficiencia Institucional","Hacienda Municipal","Gobierno","Asuntos_Financieros_y_Hacendarios","1.5.2 Asuntos Hacendarios","México_Próspero","4.1. Mantener la estabilidad macroeconómica del país","O25_Mejorar_la_efectividad_de_las_instituciones_públicas_y_gubernamentales","O25E7 Mejorar la planeación, programación, el seguimiento y la evaluación para una gestión pública eficiente orientada a resultados",null,null,"Propósito",null,"Se cumple en tiempo y forma con la entrega de la cuenta publica y transparencia","Porcentaje de cumplimiento en la presentación de la cuenta publica y transparencia","Entrega de la cuenta publica a las Instituciones de gobierno correspondientes y subidas en la plataforma de transparencia","Eficacia","Estratégico","(cuenta publica entregada/cuentas publicas totales)*100",12,12,"Anual","%",0.9167,"Cuenta publica","Falta de acción de otras\náreas"]
[null,"Municipio de la Huerta, Jalisco","Manejo de la Hacienda Municipal","Apoyo al Proceso Presupuestario y para Mejorar la Eficiencia Institucional","Hacienda Municipal","Gobierno","Asuntos_Financieros_y_Hacendarios","1.5.2 Asuntos Hacendarios","México_Próspero","4.1. Mantener la estabilidad macroeconómica del país","O25_Mejorar_la_efectividad_de_las_instituciones_públicas_y_gubernamentales","O25E7 Mejorar la planeación, programación, el seguimiento y la evaluación para una gestión pública eficiente orientada a resultados",null,null,"Componente 1",null,"Cuentas publicas entregadas y subidas en transparencia","Porcentaje de cumplimiento  de la cuenta publica entregada","Entrega de la cuenta publica a las Instituciones de gobierno correspondientes y subidas en la plataforma de transparencia","Eficacia","Estratégico","(cuenta publica entregada/cuentas publicas totales)*100",12,12,"Anual","%",0.9167,"Cuenta publica","Falta de acción de otras\náreas",1307107,12087325,534976,null,85000,{"$nulls":3},5649517]
[null,"Municipio de la Huerta, Jalisco","Manejo de la Hacienda Municipal","Apoyo al Proceso Presupuestario y para Mejorar la Eficiencia Institucional","Hacienda Municipal","Gobierno","Asuntos_Financieros_y_Hacendarios","1.5.2 Asuntos Hacendarios","México_Próspero","4.1. Mantener la estabilidad macroeconómica del país","O25_Mejorar_la_efectividad_de_las_instituciones_públicas_y_gubernamentales","O25E7 Mejorar la planeación, programación, el seguimiento y la evaluación para una gestión pública eficiente orientada a resultados",null,null,"Actividad 1.1",null,"Registro de los momentos contables del egreso e ingreso en tiempo real","Porcentaje de cumplimiento  de la cuenta publica entregada","Al momento en que se origina la información del gasto y del ingreso, se realizara el registro contable en tiempo real","Eficacia","Estratégico","(cuenta publica entregada/cuentas publicas totales)*100",12,12,"Anual","%",0.9167,"Base de datos catastral","Falta de acción de otras\ninstituciones"]
[null,"Municipio de la Huerta, Jalisco","Manejo de la Hacienda Municipal","Apoyo al Proceso Presupuestario y para Mejorar la Eficiencia Institucional","Hacienda Municipal","Gobierno","Asuntos_Financieros_y_Hacendarios","1.5.2 Asuntos Hacendarios","México_Próspero","4.1. Mantener la estabilidad macroeconómica del país","O25_Mejorar_la_efectividad_de_las_instituciones_públicas_y_gubernamentales","O25E7 Mejorar la planeación, programación, el seguimiento y la evaluación para una gestión pública eficiente orientada a resultados",null,null,"Actividad 1.2",null,"Requisiciones recibidas detallando las partidas presupuestales y fuente de financiamiento","Porcentaje de cumplimiento  de la cuenta publica entregada","Formatos de requisición de bienes y servicios estructurados con la partida presupuestal y fuente de financiamiento, para el control presupuestal","Eficacia","Estratégico","(cuenta publica entregada/cuentas publicas totales)*100",12,12,"Anual","%",0.9167,"Requisiciones recibidas","Falta de acción de otras\náreas"]
[null,"Municipio de la Huerta, Jalisco","Manejo de la Hacienda Municipal","Apoyo al Proceso Presupuestario y para Mejorar la Eficiencia Institucional","Hacienda Municipal","Gobierno","Asuntos_Financieros_y_Hacendarios","1.5.2 Asuntos Hacendarios","México_Próspero","4.1. Mantener la estabilidad macroeconómica del país","O25_Mejorar_la_efectividad_de_las_instituciones_públicas_y_gubernamentales","O25E7 Mejorar la planeación, programación, el seguimiento y la evaluación para una gestión pública eficiente orientada a resultados",null,null,"Actividad 1.3",null,"Subir en la plataforma de transparencia la cuenta publica ","Porcentaje de cumplimiento  de la cuenta publica subida a transparencia","Estar alimentando la plataforma de transparencia al momento de originarse la información","Eficacia","Estratégico","(total de incisos que corresponden a hacienda municipal / total de incisos que se esta cumpliendo)*100",12,12,"Anual","%",0.9167,"Plataforfo web","Falta de acción de otras\náreas"]
[null,"Municipio de la Huerta, Jalisco","Manejo de la Hacienda Municipal","Apoyo al Proceso Presupuestario y para Mejorar la Eficiencia Institucional","Hacienda Municipal","Gobierno","Asuntos_Financieros_y_Hacendarios","1.5.2 Asuntos Hacendarios","México_Próspero","4.1. Mantener la estabilidad macroeconómica del país","O25_Mejorar_la_efectividad_de_las_instituciones_públicas_y_gubernamentales","O25E7 Mejorar la planeación, programación, el seguimiento y la evaluación para una gestión pública eficiente orientada a resultados",null,null,"Actividad 1.4",null,"Adjudicación de proveedores conforme al Reglamento de compras y adquisición de bienes y servicios","Porcentaje de cumplimiento  de requisiciones atendidas","Sesionar el Comité de Adquisiciones para la adjudicación de proveedores de bienes y servicios de acuerdo al Reglamento aprobado","Eficacia","Estratégico","(sesiones realizadas del comité de adquisiciones/sesiones totales del comité de adquisiciones)*100",12,12,"Anual","%",0.9167,"Minutas de sesiones","Falta de acción de otras\náreas"]
[null,"Municipio de la Huerta, Jalisco","Vigilancia permanente y resguardo de la Seguridad Publica","Sujeto a Reglas de Operación","Policia Municipal","Gobierno","Asuntos_de_Orden_Público_y_Seguridad_Interior","1.7.1 Policía","México_en_Paz","1.3. Mejorar las condiciones de seguridad pública","O20_Reducir_la_incidencia_delictiva_y_mejorar_la_percepción_de_seguridad","O20E1 Fortalecer las capacidades y equipamiento de los cuerpos de seguridad pública",null,null,"Fin",null,"Salvaguardar los bienes y servicios de los ciudadanos y mantener el orden publico, mediante la vigilancia permanente","Recorridos por: Comunidades rurales, delegaciones  y colonias de la cabecera municipal.","Proteger y respetar la vida, la integridad corporal, la dignidad y los derechos de las personas, así como de sus bienes.","Eficacia","Estratégico","(Numero de recorridos durante el mes)",365,12,"Mensual","Recorridos de vigilancia",365,"Bitacora","Presencia de fenomenos naturales.",{"$nulls":13},3673507.97,358823.29,2547767.6]
[null,"Municipio de la Huerta, Jalisco","Vigilancia permanente y resguardo de la Seguridad Publica","Sujeto a Reglas de Operación","Policia Municipal","Gobierno","Asuntos_de_Orden_Público_y_Seguridad_Interior","1.7.1 Policía","México_en_Paz","1.3. Mejorar las condiciones de seguridad pública","O20_Reducir_la_incidencia_delictiva_y_mejorar_la_percepción_de_seguridad","O20E1 Fortalecer las capacidades y equipamiento de los cuerpos de seguridad pública",null,null,"Propósito",null,"Los ciudadanos  que habitan en el municipio de La Huerta estan conformes con el servicio de vigilancia y persiven la disminucion de la incidencia delictiva","Numero de reportes efectuados por el ciudadano.","La presencia policial aumento en comparacion a otros años por lo tanto disminuye el riesgo de que se den actos ilicitos.","Eficiencia","Estratégico","(Numero de reportes * mes/365)",365,12,"Mensual","Reportes",365,"Bitacora","Patrullas en malas condiciones."]
[null,"Municipio de la Huerta, Jalisco","Vigilancia permanente y resguardo de la Seguridad Publica","Sujeto a Reglas de Operación","Policia Municipal","Gobierno","Asuntos_de_Orden_Público_y_Seguridad_Interior","1.7.1 Policía","México_en_Paz","1.3. Mejorar las condiciones de seguridad pública","O20_Reducir_la_incidencia_delictiva_y_mejorar_la_percepción_de_seguridad","O20E1 Fortalecer las capacidades y equipamiento de los cuerpos de seguridad pública",null,null,"Componente 1",null,"Vigilancia Permanente ","Numero de  eventos  sociales, tradicionales, civicos con presencia policial en el año.","A peticion del ciudadano, de la administracion  y del sector privado solo para prevenir infracciones administrativas y a futuro delitos.","Eficacia","Estratégico","(Numero de eventos * mes/365)",24,12,"Mensual","Eventos",24,"Oficios","Patrullas en malas condiciones.",10626011,2876511,5254000]
[null,"Municipio de la Huerta, Jalisco","Vigilancia permanente y resguardo de la Seguridad Publica","Sujeto a Reglas de Operación","Policia Municipal","Gobierno","Asuntos_de_Orden_Público_y_Seguridad_Interior","1.7.1 Policía","México_en_Paz","1.3. Mejorar las condiciones de seguridad pública","O20_Reducir_la_incidencia_delictiva_y_mejorar_la_percepción_de_seguridad","O20E1 Fortalecer las capacidades y equipamiento de los cuerpos de seguridad pública",null,null,"Actividad 1.1",null,"Vigilancia y resguardo de la seguridad en lugares publicos.","Presencia policial  en lugares estrategicos para garantizar al ciudadano sus derechos humanos.","En planteles educativos de alto riesgo por el transito controlar la vialidad, recorrido por calles, jardines, playas, restaurantes, centros nocturnos, depositos, colonias.","Eficiencia","Estratégico","(Presencia policial durante el mes)",365,12,"Mensual","Presencia policial",365,"Bitacora","Falta de personal operativo"]
[null,"Municipio de la Huerta, Jalisco","Vigilancia permanente y resguardo de la Seguridad Publica","Sujeto a Reglas de Operación","Policia Municipal","Gobierno","Asuntos_de_Orden_Público_y_Seguridad_Interior","1.7.1 Policía","México_en_Paz","1.3. Mejorar las condiciones de seguridad pública","O20_Reducir_la_incidencia_delictiva_y_mejorar_la_percepción_de_seguridad","O20E1 Fortalecer las capacidades y equipamiento de los cuerpos de seguridad pública",null,null,"Actividad 1.2",null,"Detenciones en flagranacia","Numero de detenidos por incumplimiento al Reglamento de Policia y Buen Gobierno.","Se acudira a la brevedad al momento de recibir reporte por parte del ciudadano inconforme con las acciones que se denominen un riesgo para la sociedad por falta administrativa y/o delito.","Eficiencia","Estratégico","(Numero de detenidos * mes/365)",96,12,"Mensual","Detenidos",96,"Fichas de detenidos","Falta de personal operativo"]
[null,"Municipio de la Huerta, Jalisco","Vigilancia permanente y resguardo de la Seguridad Publica","Sujeto a Reglas de Operación","Policia Municipal","Gobierno","Asuntos_de_Orden_Público_y_Seguridad_Interior","1.7.1 Policía","México_en_Paz","1.3. Mejorar las condiciones de seguridad pública","O20_Reducir_la_incidencia_delictiva_y_mejorar_la_percepción_de_seguridad","O20E1 Fortalecer las capacidades y equipamiento de los cuerpos de seguridad pública",null,null,"Actividad 1.3",null,"Capacitaciones internas y externas.","Numero de capacitaciones durante el año","Las internas son de manera permanente: arme y desarme, instrucción de orden cerrado, defensa personal, en teoria tener presente la garanatia de los Derechos Humanos del ciudadano. En la externa de acuerdo al Plan Operativo por parte de la fiscalia.","Eficiencia","Estratégico","(Capacitaciones * mes/12)",20,12,"Mensual","Capacitaciones ",20,"Registro de asistencia o convocatoria","Convocatorio en destiempo y personal renuente."]
[null,"Municipio de la Huerta, Jalisco","Vigilancia permanente y resguardo de la Seguridad Publica","Sujeto a Reglas de Operación","Policia Municipal","Gobierno","Asuntos_de_Orden_Público_y_Seguridad_Interior","1.7.1 Policía","México_en_Paz","1.3. Mejorar las condiciones de seguridad pública","O20_Reducir_la_incidencia_delictiva_y_mejorar_la_percepción_de_seguridad","O20E1 Fortalecer las capacidades y equipamiento de los cuerpos de seguridad pública",null,null,"Actividad 1.4",null,"Tramites fundamentales para la formacion policial.","Numero de policias que son citados para cumplir con el tramite correspondiente.","Cumplir con las disposiciones oficiales para la portacion de armas de fuego asignada a la policia municipal.   Los elementos se someteran al proceso de evalucion de control y confianza, para un mejor desempeño de sus funciones.","Eficacia","Estratégico","(Numero de policias * mes/12)",60,12,"Mensual","Policias",60,"Ofios de comision","No contar con los documentos necesarios."]
[null,"Municipio de la Huerta, Jalisco","Vigilancia permanente y resguardo de la Seguridad Publica","Sujeto a Reglas de Operación","Policia Municipal","Gobierno","Asuntos_de_Orden_Público_y_Seguridad_Interior","1.7.1 Policía","México_en_Paz","1.3. Mejorar las condiciones de seguridad pública","O20_Reducir_la_incidencia_delictiva_y_mejorar_la_percepción_de_seguridad","O20E1 Fortalecer las capacidades y equipamiento de los cuerpos de seguridad pública",null,null,"Actividad 1.5",null,"Reuniones de consejo de Seguridad Publica.","Numero de reuniones en el año.","Por parte de la fiscalia se forma un Consejo regional de Seguridad Publica, este a su vez convoca a reuniones bimestrales, para tratar asuntos relacionados con el buen funcionamiento de la Seguridad Publica a nivel Municipal como Regional.","Eficacia","Estratégico","(Numeros de reuniones * bimestre/12)",4,12,"Bimestral","Reuniones",4,"Covocatoria y/o oficio de comision.","Convocatoria en destiempo"]

{"sheet":"Listas","index":7,"n_rows":110,"n_cols":8,"rows_kept":110}
[]
[null,"Categoría programática","Fin","Función","Sub-función"]
[null,"Subsidios sujetos a reglas de operación","1. Gobierno","1.1. Legislación","1.1.1 Legislación",null,null,"a"]
[null,"Otros subsidios",null,null,"1.1.2 Fiscalización",null,null,"b"]
[null,"Prestación de servicios públicos",null,"1.2. Justicia","1.2.1 Impartición de Justicia",null,null,"c"]
[null,"Provisión de bienes públicos",null,null,"1.2.2 Procuración de Justicia",null,null,"d"]
[null,"Planeación, Seguimiento y Evaluación de políticas Públicas",null,null,"1.2.3 Reclusión y Readaptación Social",null,null,"e"]
[null,"Promoción y fomento",null,null,"1.2.4 Derechos Humanos",null,null,"f"]
[null,"Regulación y Supervisión",null,"1.3.Coordinación_Política_de_Gobierno","1.3.1 Presidencia / Gubernatura",null,null,"g"]
[null,"Específicos",null,null,"1.3.2 Política Interior",null,null,"h"]
[null,"Proyectos de Inversión",null,null,"1.3.3 Preservación y Cuidado del Patrimonio Público",null,null,"i"]
[null,"Apoyo al Proceso Presupuestario y para Mejorar la Eficiencia Institucional",null,null,"1.3.4 Función Pública",null,null,"j"]
[null,"Apoyo a la Función Pública y al Mejoramiento de la Gestión",null,null,"1.3.5 Asuntos Jurídicos",null,null,"k"]
[null,"Operaciones Ajenas",null,null,"1.3.6 Organización de Procesos Electorales",null,null,"l"]
[null,"Obligaciones de Cumplimiento de Resolución Jurisdiccional",null,null,"1.3.7 Población",null,null,"m"]
[null,"Desastres Naturales",null,null,"1.3.8 Territorio",null,null,"n"]
[null,"Pensiones y Jubilaciones.",null,null,"1.3.9 Otros Asuntos de Orden Público y Seguridad Interior",null,null,"o"]
[null,"Aportaciones a la Seguiridad Social",null,"1.4. Relaciones_Exteriores","1.4.1 Relaciones Exteriores",null,null,"p"]
[{"$nulls":3},"1.5. Asuntos_Financieros_y_Hacendarios","1.5.1 Asuntos Financieros",null,null,"q"]
[{"$nulls":4},"1.5.2 Asuntos Hacendarios",null,null,"r"]
[{"$nulls":3},"1.7. Asuntos_de_Orden_Público_y_Seguridad_Interior","1.7.1 Policía",null,null,"s"]
[{"$nulls":4},"1.7.2 Protección Civil",null,null,"t"]
[{"$nulls":4},"1.7.3 Otros Asuntos de Orden Público y Seguridad",null,null,"u"]
[{"$nulls":4},"1.7.4 Sistema Nacional de Seguridad Pública",null,null,"v"]
[{"$nulls":3},"1.8. Otros_Servicios_Generales","1.8.1 Servicios Registrales, Administrativos y Patrimoniales",null,null,"w"]
[{"$nulls":4},"1.8.2 Servicios Estadísticos",null,null,"x"]
[{"$nulls":4},"1.8.3 Servicios de Comunicación y Medios",null,null,"y"]
[{"$nulls":4},"1.8.4 Acceso a la Información Pública Gubernamental",null,null,"z"]
[{"$nulls":4},"1.8.5 Otros",null,null,1]
[null,null,"2. Desarrollo_Social","Protección_Ambiental","2.1.1 Ordenación de Desechos",null,null,2]
[{"$nulls":4},"2.1.2 Administración del Agua",null,null,3]
[{"$nulls":4},"2.1.3 Ordenación de Aguas Residuales, Drenaje y Alcantarillado",null,null,4]
[{"$nulls":4},"2.1.4 Reducción de la Contaminación",null,null,5]
[{"$nulls":4},"2.1.5 Protección de la Diversidad Biológica y del Paisaje",null,null,6]
[{"$nulls":4},"2.1.6 Otros de Protección Ambiental",null,null,7]
[{"$nulls":3},"Vivienda_y_Servicios_a_la_Comunidad","2.2.1 Urbanización",null,null,8]
[{"$nulls":4},"2.2.2 Desarrollo Comunitario",null,null,9]
[{"$nulls":4},"2.2.3 Abastecimiento de Agua",null,null,0]
[{"$nulls":4},"2.2.4 Alumbrado Público",null,null,"."]
[{"$nulls":4},"2.2.5 Vivienda",null,null,","]
[{"$nulls":4},"2.2.6 Servicios Comunales",null,null,"+"]
[{"$nulls":4},"2.2.7 Desarrollo Regional",null,null,"-"]
[{"$nulls":3},"Salud","2.3.1 Prestación de Servicios de Salud a la Comunidad",null,null,"="]
[{"$nulls":4},"2.3.2 Prestación de Servicios de Salud a la Persona",null,null,"/"]
[{"$nulls":4},"2.3.3 Generación de Recursos para la Salud",null,null,"*"]
[{"$nulls":4},"2.3.4 Rectoría del Sistema de Salud"]
[{"$nulls":4},"2.3.5 Protección Social en Salud"]
[{"$nulls":3},"Recreación_Cultura_y_Otras_Manifestaciones_Sociales","2.4.1 Deporte y Recreación"]
[{"$nulls":4},"2.4.2 Cultura"]
[{"$nulls":4},"2.4.3 Radio, Televisión y Editoriales"]
[{"$nulls":4},"2.4.4 Asuntos Religiosos y Otras Manifestaciones Sociales"]
[{"$nulls":3},"Educación","2.5.1 Educación Básica"]
[{"$nulls":4},"2.5.2 Educación Media Superior"]
[{"$nulls":4},"2.5.3 Educación Superior"]
[{"$nulls":4},"2.5.4 Posgrado"]
[{"$nulls":4},"2.5.5 Educación para Adultos"]
[{"$nulls":4},"2.5.6 Otros Servicios Educativos y Actividades Inherentes"]
[{"$nulls":3},"Protección_Social","2.6.1 Enfermedad e Incapacidad"]
[{"$nulls":4},"2.6.2 Edad Avanzada"]
[{"$nulls":4},"2.6.3 Familia e Hijos"]
[{"$nulls":4},"2.6.4 Desempleo"]
[{"$nulls":4},"2.6.5 Alimentación y Nutrición"]
[{"$nulls":4},"2.6.6 Apoyo Social para la Vivienda"]
[{"$nulls":4},"2.6.7 Indígenas"]
[{"$nulls":4},"2.6.8 Otros Grupos Vulnerables"]
[{"$nulls":4},"2.6.9 Otros de Seguridad Social y Asistencia Social"]
[{"$nulls":3},"Otros_Asuntos_Sociales","2.7.1 Otros Asuntos Sociales"]
[null,null,"3. Desarrollo_Económico","Asuntos_Económicos_Comerciales_y_Laborales_Generales","3.1.1 Asuntos Económicos y Comerciales en General"]
[{"$nulls":4},"3.1.2 Asuntos Laborales Generales"]
[{"$nulls":3},"Agropecuaria_Silvicultura_Pesca_y_Caza","3.2.1 Agropecuaria"]
[{"$nulls":4},"3.2.2 Silvicultura"]
[{"$nulls":4},"3.2.3 Acuacultura, Pesca y Caza"]
[{"$nulls":4},"3.2.4 Agroindustrial"]
[{"$nulls":4},"3.2.5 Hidroagrícola"]
[{"$nulls":4},"3.2.6 Apoyo Financiero a la Banca y Seguro Agropecuario"]
[{"$nulls":3},"Combustibles_y_Energía","3.3.1 Carbón y Otros Combustibles Minerales Sólidos"]
[{"$nulls":4},"3.3.2 Petróleo y Gas Natural (Hidrocarburos)"]
[{"$nulls":4},"3.3.3 Combustibles Nucleares"]
[{"$nulls":4},"3.3.4 Otros Combustibles"]
[{"$nulls":4},"3.3.5 Electricidad"]
[{"$nulls":4},"3.3.6 Energía no Eléctrica"]
[{"$nulls":3},"Minería_Manufacturas_y_Construcción","3.4.1 Extracción de Recursos Minerales excepto los Combustibles Minerales"]
[{"$nulls":4},"3.4.2 Manufacturas"]
[{"$nulls":4},"3.4.3 Construcción"]
[{"$nulls":3},"Transporte","3.5.1 Transporte por Carretera"]
[{"$nulls":4},"3.5.2 Transporte por Agua y Puertos"]
[{"$nulls":4},"3.5.3 Transporte por Ferrocarril"]
[{"$nulls":4},"3.5.4 Transporte Aéreo"]
[{"$nulls":4},"3.5.5 Transporte por Oleoductos y Gasoductos y Otros Sistemas de Transporte"]
[{"$nulls":4},"3.5.6 Otros Relacionados con Transporte"]
[{"$nulls":3},"Comunicaciones","3.6.1 Comunicaciones"]
[{"$nulls":3},"Turismo","3.7.1 Turismo"]
[{"$nulls":4},"3.7.2 Hoteles y Restaurantes"]
[{"$nulls":3},"Ciencia_Tecnología_e_Innovación","3.8.1 Investigación Científica"]
[{"$nulls":4},"3.8.2 Desarrollo Tecnológico"]
[{"$nulls":4},"3.8.3 Servicios Científicos y Tecnológicos"]
[{"$nulls":4},"3.8.4 Innovación"]
[{"$nulls":3},"Otras_Industrias_y_Otros_Asuntos_Económicos","3.9.1 Comercio, Distribución, Almacenamiento y Depósito"]
[{"$nulls":4},"3.9.2 Otras Industrias"]
[{"$nulls":4},"3.9.3 Otros Asuntos Económicos"]
[null,null,"4. Otros","Transacciones_de_la_Deuda_Financiera_y_Costo_Financiero_Deuda","4.1.1 Deuda Pública Interna"]
[{"$nulls":4},"4.1.2 Deuda Pública Externa"]
[{"$nulls":3},"Transferencias_Participaciones_y_Aportaciones","4.2.1 Transferencias entre Diferentes Niveles y Ordenes de Gobierno"]
[{"$nulls":4},"4.2.2 Participaciones entre Diferentes Niveles y Ordenes de Gobierno"]
[{"$nulls":4},"4.2.3 Aportaciones entre Diferentes Niveles y Ordenes de Gobierno"]
[{"$nulls":3},"Saneamiento_del_Sistema_Financiero","4.3.1 Saneamiento del Sistema Financiero"]
[{"$nulls":4},"4.3.2 Apoyos IPAB"]
[{"$nulls":4},"4.3.3 Banca de Desarrollo"]
[{"$nulls":4},"4.3.4 Apoyo a los programas de reestructura en unidades de inversión (UDIS)"]
[{"$nulls":3},"Adeudos_Anteriores","4.4.1 Adeudos de Ejercicios Fiscales Anteriores"]